{"text_format":"1","workbook":"xlsx","n_sheets":91,"sheets":["TitlePage","Disclaimer","General Notes","Chemical Notes","Revisions","Contents","A01","A02a","A02b","A02c","A02d","A03","B01","B02","B03a","B03b","B04Rt","B04a","B04b","C01a","C01b","C02a","C02b","C02c","D01","D02","D03a","D03b","D04","D05","D06a","D06b","D07","D08a","D08b","E01","E02","E03","E04","F01a","F01b","F01c","F01d","F01e","F01f","F01g","F02a","F02b","F02c","F02d","F02e","F02f","F02g","F03a","F03b","F03c","F03d","F03e","F04a","F04b","F04c","F05a","F05b","F05c","F05d","F05e","F05f","F05g","F06a","F06b","F06c","F06d","F06e","F07a","F07b","F07c","F07d","F07e","F08","F09a","F09b","F09c","F09d","F09e","F10a","F10b","F10c","G01","G02","G03","References"],"not_rendered":{"charts":3,"images":20,"macros":1,"external_links":0,"defined_names":831,"comments":0,"pivot_tables":0},"unopened":[],"bounds":{"document_bytes":16777216,"sheet_cells":100000,"rows_first":2000,"rows_last":500,"rows_between":2000,"halvings":0,"cell_chars":16384,"cell_head_chars":4096},"cells_cut":0,"cells_raw":0,"read":"whole","date_system":"1900"}

{"sheet":"TitlePage","index":0,"n_rows":51,"n_cols":9,"rows_kept":51,"cut":false,"hidden":false,"merged":[[0,1,4,7],[5,2,7,6],[50,0,50,8]]}
["Title page"]
[]
[]
[]
[]
[null,null,"Rozol Prairie Dog Bait, Hand Baiting :Chlorophacinone"]
[]
[]
[]
[]
[]
[]
[]
[]
[]
[null,null,null,null,null,null,null,null,"SERA XLS-056-10-03a"]
[null,null,null,null,"WorksheetMaker Version ","6.00.13"]
[]
[]
[]
[]
[]
[]
[]
[]
[]
[]
[]
[]
[]
[]
[]
[]
[]
[]
[]
[]
[]
[]
[]
[]
[]
[]
[]
[]
[]
[]
[]
[]
[]
["2015-07-26"]

{"sheet":"Disclaimer","index":1,"n_rows":1,"n_cols":1,"rows_kept":1,"cut":false,"hidden":false,"merged":[]}
["DISCLAIMER"]

{"sheet":"General Notes","index":2,"n_rows":59,"n_cols":3,"rows_kept":59,"cut":false,"hidden":false,"merged":[[0,0,0,2]]}
["General Notes"]
[null,"Prepared by:","Patrick R. Durkin"]
[null,"Program Version:","6.00.13"]
[null,"Database Used:","FS WsMkr V06-00-01.mdb"]
[null,"Template Workbook:","FS WsMkr V06-00-01.mdb"]
[null,"Base Workbook:","FS WSMkr Blank V06-00-01.xlsm"]
[]
["Color Codes in WorksheetMaker"]
[]
[]
[]
[]
["Color Codes used in Workbook for Front Matter, Data and Calculation Worksheets"]
[null,"Green shading ","This is a default value or a user specified a value.  You can change these values as you see fit but you should have a reason for doing so."]
[null,"Yellow shading ","This is a source for a link in other parts of the workbook.  If you have good reason to change the value, you should note the change (with your reason) in the “Revisions” page."]
[null,"Blue shading ","This cell is linked to another cell in the workbook.  Do not change this value.  If you change any of these values, the workbook may not update correctly."]
[null,"Blue shading blue border ","This cell is linked to a Program parameter in Worksheet A01.  Do not change this value.  If you want the value to change, go to Worksheet A01 and change the value in that worksheet."]
[null,"Purple Shading","Indicates (for information only) that the typical of order of Lower and Upper values is intentionally reversed.  This is only used in the second (label) column."]
[null,"Italics, no shading","The value in this cell is generated by a formula (the number that you see is the result of an equation).  This cell is linked only to other cells in the worksheet.  Do not change this value."]
[]
[]
[]
[]
[]
["Color Codes used in Workbook for Risk Characterization Worksheets"]
[null,"HQ ≥ 2","For hazard quotient greater than 2, the number is in bold font with a red background and rounded to the nearest integer."]
[null,"HQ > 1 but < 2","For hazard quotient greater than 1 but less than two, the number is in bold font with a white background and rounded to one significant place after the decimal."]
[null,"HQ ≥ 0.1 but <1","For hazard quotient greater than 0.1 but less than one, the number is in regular font with a white background and rounded to one significant place after the decimal."]
[null,"HQ < 0.1","For hazard quotient less than 0.1, the number is in regular font with a white background.   The number is expressed in scientific notation and rounded to one significant place -- e.g., 2E-02 rather than 0.02."]
[]
[]
[]
[]
[]
[]
[]
[]
[]
[]
[]
[]
[]
[]
[]
[]
[]
[]
[]
[]
[]
[]
[]
[]
[]
[null,"Prepared by:","Patrick R. Durkin"]
[null,"Program Version:","6.00.13"]
[null,"Database Used:","FS WsMkr V06-00-01.mdb"]
[null,"Template Workbook:","FS WsMkr V06-00-01.mdb"]
[null,"Base Workbook:","FS WSMkr Blank V06-00-01.xlsm"]

{"sheet":"Chemical Notes","index":3,"n_rows":6,"n_cols":4,"rows_kept":6,"cut":false,"hidden":false,"merged":[[0,0,0,2],[1,0,1,2],[1,3,1,5],[2,0,2,2],[2,3,2,4]]}
["Chemical specific notes"]
["Risk Assessment:",null,null,"SERA TR-056-10-02a"]
["Report Date:",null,null,"October, 2014"]
[]
[]
["The area below is an embedded MS Word Document.  Add chemical-specific notes as appropriate."]

{"sheet":"Revisions","index":4,"n_rows":8,"n_cols":1,"rows_kept":8,"cut":false,"hidden":false,"merged":[]}
["Revision Histroy"]
[]
[]
[]
[]
[]
[]
["The area below is an embedded MS Word Document.  Add revision notes as appropriate."]

{"sheet":"Contents","index":5,"n_rows":93,"n_cols":3,"rows_kept":93,"cut":false,"hidden":false,"merged":[]}
[null,"Table of Contents","Toc"]
["Work-sheet No.","Worksheet Title"]
["TitlePage","Title page"]
["Disclaimer","DISCLAIMER"]
["General Notes","General Notes"]
["Chemical Notes","Chemical specific notes"]
["Revisions","Revision Histroy"]
["Contents"]
["A01","Program Data: Application rate, concentration in formulation, and amounts handled by workers"]
["A02a","General reference values and exposure factors used in worksheets."]
["A02b","General reference values and exposure factors used in worksheets."]
["A02c","General reference values and exposure factors used in worksheets."]
["A02d","General reference values and exposure factors used in worksheets."]
["A03","Food items for terrestrial animals"]
["B01","Chemical and Physical Properties for  Chlorophacinone"]
["B02","Toxicity values for  Chlorophacinone"]
["B03a","Calculation of Zero-Order Dermal Permeability Rate (Kp) in cm/hour"]
["B03b","Calculation of First-Order Dermal Absorption Rate"]
["B04Rt","Estimates of Water Contamination Rates -- i.e., the concentration in ambient water per pound applied per acre"]
["B04a","Expected Concentrations in Surface Water"]
["B04b","Pond: Concentration of pesticide (granular formulation) in pond water after an accidental spill"]
["C01a","Exposure estimates based on Pesticide Handlers Exposure Database (PHED) Method"]
["C01b","Exposure estimates based on Pesticide Handlers Exposure Database (PHED) Method"]
["C02a","Dermal Exposure Assessment for a Granular Exposure Using Zero-Order Absorption, Worker, Surface Area, Hands, for 1 minute(s)"]
["C02b","Dermal Exposure Assessment for a Granular Exposure Using Zero-Order Absorption, Worker, Surface Area, Hands, for 60 minute(s)"]
["C02c","Dermal Exposure Assessment for a Granular Exposure Using Zero-Order Absorption, Worker, Surface Area, Hands, for 480 minute(s)"]
["D01","Consumption of Bait by a Small Child"]
["D02","Consumption of contaminated water by Child, Accidental Spill "]
["D03a","Consumption of Contaminated Fish (Accidental Spill), Adult Male, acute exposure"]
["D03b","Consumption of Contaminated Fish (Accidental Spill), Subsistence Populations, acute exposure"]
["D04","Swimming Exposure Assessment Using Zero-Order Absorption, Adult Female, Surface Area, Whole body, for 60 minute(s)"]
["D05","Consumption of contaminated water by Child, Peak Conentrations "]
["D06a","Consumption of Contaminated Fish (Peak Exposure), Adult Male, acute exposure"]
["D06b","Consumption of Contaminated Fish (Peak Exposure), Subsistence Populations, acute exposure"]
["D07","Consumption of contaminated water by Adult Male, Longer-term Conentrations "]
["D08a","Consumption of Contaminated Fish (Longer-term), Adult Male, chronic exposure"]
["D08b","Consumption of Contaminated Fish (Longer-term), Subsistence Populations, chronic exposure"]
["E01","Worksheet E01: Summary of Worker Exposure Assessments"]
["E02","Worksheet E01: Summary of Worker Hazard Quotients (Toxicity)"]
["E03","Worksheet E03: Summary of Exposure Assessments for the General Public"]
["E04","Worksheet E03: Summary of Hazard Quotients (Toxicity) for the General Public"]
["F01a","Consumption of Contaminated Bait, Mouse, Accidental Spill "]
["F01b","Consumption of Contaminated Bait, Squirrel, Accidental Spill "]
["F01c","Consumption of Contaminated Bait, Passerine, Accidental Spill "]
["F01d","Consumption of Contaminated Bait, Mallard, Accidental Spill "]
["F01e","Consumption of Contaminated Bait, Pigeon, Accidental Spill "]
["F01f","Consumption of Contaminated Bait, Quail, Accidental Spill "]
["F01g","Consumption of Contaminated Bait, Deer, Accidental Spill "]
["F02a","Consumption of Contaminated Bait, Mouse, Misapplication "]
["F02b","Consumption of Contaminated Bait, Squirrel, Misapplication "]
["F02c","Consumption of Contaminated Bait, Skunk, Misapplication "]
["F02d","Consumption of Contaminated Bait, Passerine, Misapplication "]
["F02e","Consumption of Contaminated Bait, Mallard, Misapllication "]
["F02f","Consumption of Contaminated Bait, Pigeon, Misapplication "]
["F02g","Consumption of Contaminated Bait, Quail, Misapplication "]
["F03a","Acute exposure of Small Mammal after an accidental spill of the pesticide into a pond"]
["F03b","Acute exposure of Canid after an accidental spill of the pesticide into a pond"]
["F03c","Acute exposure of Large Mammal after an accidental spill of the pesticide into a pond"]
["F03d","Acute exposure of Small Passerine after an accidental spill of the pesticide into a pond"]
["F03e","Acute exposure of Canada Goose after an accidental spill of the pesticide into a pond"]
["F04a","Acute scenario for the consumption of Contaminated Fish ( Accidental Spill) by Bird, piscivorous "]
["F04b","Acute scenario for the consumption of Contaminated Fish (Peak) by Bird, piscivorous "]
["F04c","Chronic scenario for the consumption of Contaminated Fish (Longer-term) by Bird, piscivorous "]
["F05a","Consumption of Contaminated Bait, Mouse, Standard Application "]
["F05b","Consumption of Contaminated Bait, Squirrel, Standard Application "]
["F05c","Consumption of Contaminated Bait, Skunk, Standard Application "]
["F05d","Consumption of Contaminated Bait, Passerine, Standard Application "]
["F05e","Consumption of Contaminated Bait, Mallard, Standard Application "]
["F05f","Consumption of Contaminated Bait, Pigeon, Standard Application "]
["F05g","Consumption of Contaminated Bait, Quail, Standard Application "]
["F06a","Consumption of contaminated water by Mammal, small, Peak Concentrations "]
["F06b","Consumption of contaminated water by Mammal, carnivorous, Peak Concentrations "]
["F06c","Consumption of contaminated water by Mammal, large, Peak Concentrations "]
["F06d","Consumption of contaminated water by Bird, small, Peak ConcentrationsT "]
["F06e","Consumption of contaminated water by Bird, large, Peak Concentrations "]
["F07a","Consumption of contaminated water by Mammal, small, Longer-term Concentrations "]
["F07b","Consumption of contaminated water by Mammal, carnivorous, Longer-term Concentrations "]
["F07c","Consumption of contaminated water by Mammal, large, Longer-term Concentrations "]
["F07d","Consumption of contaminated water by Bird, small, Longer-term Concentrations "]
["F07e","Consumption of contaminated water by Bird, large, Longer-term Concentrations "]
["F08","Consumption of bait by a bear "]
["F09a","Consumption of Poisoned Gopher by a Coyete "]
["F09b","Consumption of Poisoned Prairie Dog by a Badger "]
["F09c","Consumption of Poisoned Prairie Dog by a Mink "]
["F09d","Consumption of Poisoned Prairie Dog by a Owl "]
["F09e","Consumption of Poisoned Prairie Dog by a Snake "]
["F10a","Consumption of Contaminated Contaminated Insects by Mouse "]
["F10b","Consumption of Contaminated Contaminated Insects by Small bird "]
["F10c","Consumption of Contaminated Contaminated Insects by Bullfrog "]
["G01","Summary of Rodenticide Exposure Assessments for the Terrestrial Animals"]
["G02","Summary of Rodenticide Hazard Quotients (Toxicity) for the Terrestrial Animals"]
["G03","Worksheet G03: Summary of Hazard Quotients for Aquatic Species"]
["References","References cited in workbook"]

{"sheet":"A01","index":6,"n_rows":42,"n_cols":5,"rows_kept":42,"cut":false,"hidden":false,"merged":[[34,0,37,0],[38,0,41,0],[26,0,29,0],[30,0,33,0],[0,0,0,4],[4,0,7,0],[5,3,7,3],[10,0,13,0],[11,3,13,3],[22,0,25,0]]}
["Program Data: Application rate, concentration in formulation, and amounts handled by workers"]
["Parameter/Assumption","Code / Range","Equation/ Value","Units","Reference/ Equation"]
["% a.i. in Formulation","a.i.",5.0000000000000002E-5,"percent","Program Input"]
["Formulation Application Rate","ApRtForm",12.5,"lb formulation/acre","Program Input"]
["Pounds of Formulation Handled by Each Worker Per Day","WrkHndForm"]
[null,"Central ",1.5,"lbs. formulation per day","Program Input"]
[null,"Lower ",0.75,null,"Program Input"]
[null,"Upper ",3,null,"Program Input"]
["Do not change the red cells below."]
["a.i. Application Rate","ApRt",{"$f":"C4*C3","v":6.2500000000000001E-4},"lb a.i./acre","Eq"]
["Pounds of Formulation Handled by Each Worker Per Day","WrkAmntHnd"]
[null,"Central ",{"$f":"C6*C$3","v":7.5000000000000007E-5},"lbs. a.i. per day","Eq"]
[null,"Lower ",{"$f":"C7*C$3","v":3.7500000000000003E-5},null,"Eq"]
[null,"Upper ",{"$f":"C8*C$3","v":1.5000000000000001E-4},null,"Eq"]
["Standard Values/Options for Scenarios (You can change the values below.)"]
["Surface area of pond for spill","PondSA_M",1000,"Sq. Meters","Risk assessment."]
["Pond depth","PondDepthM",1,"Meters","Risk assessment."]
["Stream flow rate for drift scenario","StreamFlowLD",710000,"Liters/day","Risk assessment."]
["Stream length for drift scenario","StreamLengthFt",1038,"Feet","Risk assessment."]
["Stream width for drift scenario","StreamWidthFt",6,"Feet","Risk assessment."]
["Duration for longer-term exposures","SubChDays",90,"Days","Risk assessment."]
["Duration for swimming scenarios","SwimMin",60,"Minutes","Risk assessment."]
["Toxic Equivalency Factor for formulation","TEF"]
[null,"Central",1,null,"Risk assessment."]
[null,"Lower",1]
[null,"Upper",1]
["Amount spilled into ponds","PondSpillAmntLbs"]
[null,"Central",1.5E-3,"Lbs","Risk assessment."]
[null,"Lower",1E-3]
[null,"Upper",2E-3]
["Concentration in insect","InsectRes"]
[null,"Central",0.2,"ug/g","Risk assessment."]
[null,"Lower",7.0000000000000007E-2]
[null,"Upper",0.6]
["Proportion of Contaminated diet for accidental spill scenario.","InsectRes"]
[null,"Central",0.3,"unitless","Risk assessment, Section 4.2.2.1."]
[null,"Lower",0.03]
[null,"Upper",1]
["Proportion of Contaminated diet for accidental spill scenario.","InsectRes"]
[null,"Central",0.03,"unitless","Risk assessment, Section 4.2.2.2."]
[null,"Lower",3.0000000000000001E-3]
[null,"Upper",0.1]

{"sheet":"A02a","index":7,"n_rows":41,"n_cols":6,"rows_kept":41,"cut":false,"hidden":false,"merged":[[0,0,0,4]]}
["General reference values and exposure factors used in worksheets."]
[]
["Receptor","Factor","Value","Units"," Reference","Reference Note"]
["Adult Female","Body weight",64,"kg","U.S. EPA/ORD 1985","page 5, Table 2-2"]
["Adult Female","Surface Area, Feet and lower Legs",2915,"cm2","U.S. EPA/ORD 1992","p. 8-11, Table 8-3, total for feet and lower legs"]
["Adult Female","Surface Area, Wearing shorts and T-shirt",5300,"cm2","U.S. EPA/ORD 1992","p. 8-11, Table 8-3, total for arms, hands, lower legs, and feet."]
["Adult Female","Surface Area, Whole body",16900,"cm2","U.S. EPA/ORD 1997","p. 6-13, Table 6-3, whole body, 50th percentile"]
["Adult Male","Body weight",70,"kg","ICRP 1975","p. 13."]
["Subsistence Populations","Body weight",70,"kg","ICRP 1975","p. 13"]
["Worker, Aerial Spray","Absorbed dose rate, central estimate",3.0000000000000001E-5,"(mg/kg bw)/(lbs handled per day)","SERA 2007","Acres treated per hour"]
["Worker, Aerial Spray","Absorbed dose rate, lower range",9.9999999999999995E-7,"(mg/kg bw)/(lbs handled per day)","SERA 2007","Acres treated per hour"]
["Worker, Aerial Spray","Absorbed dose rate, upper range",1E-4,"(mg/kg bw)/(lbs handled per day)","SERA 2007","Acres treated per hour"]
["Worker, Aerial Spray","Hours of application per day, central estimate",7,"Hours per day","USDA 1989a","N/A"]
["Worker, Aerial Spray","Hours of application per day, lower range",6,"Hours per day","USDA 1989a","N/A"]
["Worker, Aerial Spray","Hours of application per day, upper range",8,"Hours per day","USDA 1989a","N/A"]
["Worker, Aerial Spray","Acres treated per hour, central estimate",70,"acres/hour","USDA 1989a","Acres treated per hour"]
["Worker, Aerial Spray","Acres treated per hour, lower range",40,"acres/hour","USDA 1989a","Acres treated per hour"]
["Worker, Aerial Spray","Acres treated per hour, upper range",100,"acres/hour","USDA 1989a","Acres treated per hour"]
["Worker, Backpack","Absorbed dose rate, central estimate",3.0000000000000001E-3,"(mg/kg bw)/(lbs handled per day)","SERA 2007","Acres treated per hour"]
["Worker, Backpack","Absorbed dose rate, lower range",2.9999999999999997E-4,"(mg/kg bw)/(lbs handled per day)","SERA 2007","Acres treated per hour"]
["Worker, Backpack","Absorbed dose rate, upper range",0.01,"(mg/kg bw)/(lbs handled per day)","SERA 2007","Acres treated per hour"]
["Worker, Backpack","Hours of application per day, central estimate",7,"Hours per day","USDA 1989a","N/A"]
["Worker, Backpack","Hours of application per day, lower range",6,"Hours per day","USDA 1989a","N/A"]
["Worker, Backpack","Hours of application per day, upper range",8,"Hours per day","USDA 1989a","N/A"]
["Worker, Backpack","Acres treated per hour, central estimate",0.625,"acres/hour","USDA 1989a","Acres treated per hour"]
["Worker, Backpack","Acres treated per hour, lower range",0.25,"acres/hour","USDA 1989a","Acres treated per hour"]
["Worker, Backpack","Acres treated per hour, upper range",1,"acres/hour","USDA 1989a","Acres treated per hour"]
["Child","Body weight",13.3,"kg","U.S. EPA/ORD 1996","p. 7-1, Table 7-2"]
["Child","Surface Area, Whole body",6030,"cm2","U.S. EPA/ORD 1996","p. 6-15, Table 6-6, 50th percentile."]
["Worker, Ground Spray","Absorbed dose rate, central estimate",2.0000000000000001E-4,"(mg/kg bw)/(lbs handled per day)","SERA 2007","Acres treated per hour"]
["Worker, Ground Spray","Absorbed dose rate, lower range",1.0000000000000001E-5,"(mg/kg bw)/(lbs handled per day)","SERA 2007","Acres treated per hour"]
["Worker, Ground Spray","Absorbed dose rate, upper range",8.9999999999999998E-4,"(mg/kg bw)/(lbs handled per day)","SERA 2007","Acres treated per hour"]
["Worker, Ground Spray","Hours of application per day, central estimate",7,"Hours per day","USDA 1989a","N/A"]
["Worker, Ground Spray","Hours of application per day, lower range",6,"Hours per day","USDA 1989a","N/A"]
["Worker, Ground Spray","Hours of application per day, upper range",8,"Hours per day","USDA 1989a","N/A"]
["Worker, Ground Spray","Acres treated per hour, central estimate",16,"acres/hour","USDA 1989a","Acres treated per hour"]
["Worker, Ground Spray","Acres treated per hour, lower range",11,"acres/hour","USDA 1989a","Acres treated per hour"]
["Worker, Ground Spray","Acres treated per hour, upper range",21,"acres/hour","USDA 1989a","Acres treated per hour"]
["Worker","Body weight",70,"kg","ICRP 1975","p. 13"]
["Worker","Surface Area, Hands",840,"cm2","U.S. EPA/ORD 1992"," p. 8-11"]
["Worker","Surface Area, Lower legs",2070,"cm2","U.S. EPA/ORD 1992","p. 8-11"]

{"sheet":"A02b","index":8,"n_rows":80,"n_cols":6,"rows_kept":80,"cut":false,"hidden":false,"merged":[[0,0,0,4]]}
["General reference values and exposure factors used in worksheets."]
[]
["Receptor","Factor","Value","Units"," Reference","Reference Note"]
["Amphibian","Kilocalories, alpha parameter for allometric equation",5.3999999999999999E-2,"BW(g),Kcal (kcal/day)","U.S. EPA/ORD 1993","p. 3-7, equation 3-14"]
["Amphibian","Kilocalories, beta parameter for allometric equation",0.79900000000000004,"BW(g),Kcal (kcal/day)","U.S. EPA/ORD 1993","p. 3-7, equation 3-14"]
["Amphibian, bull frog","Food consumption, alpha parameter for allometric equation",1.0900000000000001,"BW(g),FC(g)","SERA 2010","Figure 15"]
["Amphibian, bull frog","Food consumption, beta parameter for allometric equation",0.17230000000000001,"BW(g),FC(g)","SERA 2010","Figure 15"]
["Bird, NOS","Food consumption, alpha parameter for allometric equation",0.64800000000000002,"BW(g),FC(g)","U.S. EPA/ORD 1993","Eq. 3-3, p. 3-4, all birds"]
["Bird, NOS","Food consumption, beta parameter for allometric equation",0.65100000000000002,"BW(g),FC(g)","U.S. EPA/ORD 1993","Eq. 3-3, p. 3-4, all birds"]
["Bird, carnivorous","Body weight",0.64,"kg","Dunning 1993","p. 97. Female Spotted Owl (Strix occidentalis).  Range of 548 to 760 g."]
["Bird, carnivorous","Kilocalories, alpha parameter for allometric equation",1.1459999999999999,"BW(g),KCal(kcal/day)","U.S. EPA/ORD 1993","Eq. 3-37, nonpasserines"]
["Bird, carnivorous","Kilocalories, beta parameter for allometric equation",0.749,"BW(g),KCal(kcal/day)","U.S. EPA/ORD 1993","Eq. 3-37, nonpasserines"]
["Bird, carnivorous","Water consumption, alpha parameter for allometric equation",5.8999999999999997E-2,"BW(kg), WC(L)","U.S. EPA/ORD 1993","Eq. 3-15, p. 3-8"]
["Bird, carnivorous","Water consumption, beta parameter for allometric equation",0.67,"BW(kg), WC(L)","U.S. EPA/ORD 1993","Eq. 3-15, p. 3-8"]
["Bird, large","Body weight",4,"kg","Default","Canada goose"]
["Bird, large","Kilocalories, alpha parameter for allometric equation",1.1459999999999999,"BW(g),KCal(kcal/day)","U.S. EPA/ORD 1993","Eq. 3-37, non-passerines"]
["Bird, large","Kilocalories, beta parameter for allometric equation",0.749,"BW(g),KCal(kcal/day)","U.S. EPA/ORD 1993","Eq. 3-37, non-passerines"]
["Bird, large","Water consumption, alpha parameter for allometric equation",5.8999999999999997E-2,"BW(kg), WC(L)","U.S. EPA/ORD 1993","Eq. 3-15, p. 3-8"]
["Bird, large","Water consumption, beta parameter for allometric equation",0.67,"BW(kg), WC(L)","U.S. EPA/ORD 1993","Eq. 3-15, p. 3-8"]
["Bird, non-Passerine","Food consumption, alpha parameter for allometric equation",0.30099999999999999,"BW(g),FC(g)","U.S. EPA/ORD 1993","Eq. 3-5, p. 3-5, non-passerines"]
["Bird, non-Passerine","Food consumption, beta parameter for allometric equation",0.751,"BW(g),FC(g)","U.S. EPA/ORD 1993","Eq. 3-5, p. 3-5, non-passerines"]
["Bird, Passerine","Food consumption, alpha parameter for allometric equation",0.39800000000000002,"BW(g),FC(g)","U.S. EPA/ORD 1993","Eq. 3-4, p. 3-4, passerines"]
["Bird, Passerine","Food consumption, beta parameter for allometric equation",0.85,"BW(g),FC(g)","U.S. EPA/ORD 1993","Eq. 3-4, p. 3-4, passerines"]
["Bird, piscivorous","Body weight",2.4,"kg","Sibley 2000","p. 60. Great Blue Heron"]
["Bird, piscivorous","Food consumption, alpha parameter for allometric equation",0.495,"BW(g), FC(g)","U.S. EPA/ORD 1993","Eq. 3-6, p. 3-5, seabird"]
["Bird, piscivorous","Food consumption, beta parameter for allometric equation",0.70399999999999996,"BW(g), FC(g)","U.S. EPA/ORD 1993","Eq. 3-6, p. 3-5, seabird"]
["Bird, piscivorous","Kilocalories, alpha parameter for allometric equation",1.9159999999999999,"BW(g),KCal(kcal/day)","U.S. EPA/ORD 1993","Eq. 3-38, p. 3-23, seabird"]
["Bird, piscivorous","Kilocalories, beta parameter for allometric equation",0.70399999999999996,"BW(g),KCal(kcal/day)","U.S. EPA/ORD 1993","Eq. 3-38, p. 3-23, seabird"]
["Bird, piscivorous","Water consumption, alpha parameter for allometric equation",5.8999999999999997E-2,"BW(kg), WC(L)","U.S. EPA/ORD 1993","Eq. 3-15, p. 3-8"]
["Bird, piscivorous","Water consumption, beta parameter for allometric equation",0.67,"BW(kg), WC(L)","U.S. EPA/ORD 1993","Eq. 3-15, p. 3-8"]
["Bird, small","Body weight",0.01,"kg","Default","N/A"]
["Bird, small","Kilocalories, alpha parameter for allometric equation",3.12,"BW(g),KCal(kcal/day)","U.S. EPA/ORD 1993","Equation 3-36, passerines"]
["Bird, small","Kilocalories, beta parameter for allometric equation",0.60499999999999998,"BW(g),KCal(kcal/day)","U.S. EPA/ORD 1993","Equation 3-36, passerines"]
["Bird, small","Water consumption, alpha parameter for allometric equation",5.8999999999999997E-2,"BW(kg), WC(L)","U.S. EPA/ORD 1993","Eq. 3-15, p. 3-8"]
["Bird, small","Water consumption, beta parameter for allometric equation",0.67,"BW(kg), WC(L)","U.S. EPA/ORD 1993","Eq. 3-15, p. 3-8"]
["Honeybee","Body weight",1.16E-4,"kg","Winston 1987","p. 54. Arithmetic average of range: 81 to 151 mg/bee."]
["Honeybee","Surface Area, Whole body",1.42,"cm2","Humphery and Dykes 2008","Based on a bee with a body length of 1.44 cm."]
["Mammal, Nos","Food consumption, alpha parameter for allometric equation",0.23499999999999999,"BW(g),FC(g)","U.S. EPA/ORD 1993","Eq. 3-7 ,p. 3-6, all mammals"]
["Mammal, Nos","Food consumption, beta parameter for allometric equation",0.82199999999999995,"BW(g),FC(g)","U.S. EPA/ORD 1993","Eq. 3-7 ,p. 3-6, all mammals"]
["Mammal, 400 g","Body weight",0.4,"kg","Default","N/A"]
["Mammal, 400 g","Food consumption, alpha parameter for allometric equation",0.621,"BW(g),FC(g)","U.S. EPA/ORD 1993","Eq. 3-8, p. 3-6, equation for rodents"]
["Mammal, 400 g","Food consumption, beta parameter for allometric equation",0.56399999999999995,"BW(g),FC(g)","U.S. EPA/ORD 1993","Eq. 3-8, p. 3-6, equation for rodents"]
["Mammal, 400 g","Kilocalories, alpha parameter for allometric equation",2.5139999999999998,"BW(g),KCal(kcal/day)","U.S. EPA/ORD 1993","Equation 3-48, rodent"]
["Mammal, 400 g","Kilocalories, beta parameter for allometric equation",0.50700000000000001,"BW(g),KCal(kcal/day)","U.S. EPA/ORD 1993","Equation 3-48, rodent"]
["Mammal, 400 g","Water consumption, alpha parameter for allometric equation",9.9000000000000005E-2,"BW(kg),WC(L)","U.S. EPA/ORD 1993","Eq. 3-17, p. 3-10, all mammals"]
["Mammal, 400 g","Water consumption, beta parameter for allometric equation",0.9,"BW(kg),WC(L)","U.S. EPA/ORD 1993","Eq. 3-17, p. 3-10, all mammals"]
["Mammal, carnivorous","Body weight",5,"kg","U.S. EPA/ORD 1993","p. 2-221.  Central value for red fox with a range of 3 to 7 kg."]
["Mammal, carnivorous","Kilocalories, alpha parameter for allometric equation",0.61670000000000003,"BW(g),KCal(kcal/day)","U.S. EPA/ORD 1993","Equation 3-47, non-herbivore"]
["Mammal, carnivorous","Kilocalories, beta parameter for allometric equation",0.86199999999999999,"BW(g),KCal(kcal/day)","U.S. EPA/ORD 1993","Equation 3-47, non-herbivore"]
["Mammal, carnivorous","Water consumption, alpha parameter for allometric equation",9.9000000000000005E-2,"BW(kg),WC(L)","U.S. EPA/ORD 1993","Eq. 3-17, p. 3-10, all mammals"]
["Mammal, carnivorous","Water consumption, beta parameter for allometric equation",0.9,"BW(kg), WC(L)","U.S. EPA/ORD 1993","Eq. 3-17, p. 3-10, all mammals"]
["Mammal, large carnivorous","Body weight",70,"kg","Reid 2006"," pp. 451-453.  Black bear or small grizzly."]
["Mammal, large carnivorous","Kilocalories, alpha parameter for allometric equation",0.61670000000000003,"BW(g),KCal(kcal/day)","U.S. EPA/ORD 1993","Equation 3-47, non-herbivore"]
["Mammal, large carnivorous","Kilocalories, beta parameter for allometric equation",0.86199999999999999,"BW(g),KCal(kcal/day)","U.S. EPA/ORD 1993","Equation 3-47, non-herbivore"]
["Mammal, large carnivorous","Water consumption, alpha parameter for allometric equation",9.9000000000000005E-2,"BW(kg),WC(L)","U.S. EPA/ORD 1993","Eq. 3-17, p. 3-10, all mammals"]
["Mammal, large carnivorous","Water consumption, beta parameter for allometric equation",0.9,"BW(kg), WC(L)","U.S. EPA/ORD 1993","Eq. 3-17, p. 3-10, all mammals"]
["Mammal, herbivorous","Food consumption, alpha parameter for allometric equation",0.57699999999999996,"BW(g),FC(g)","U.S. EPA/ORD 1993","Eq. 3-9, p. 3-6, equation for herbivores"]
["Mammal, herbivorous","Food consumption, beta parameter for allometric equation",0.72699999999999998,"BW(g),FC(g)","U.S. EPA/ORD 1993","Eq. 3-9, p. 3-6, equation for herbivores"]
["Mammal, herbivorous","Kilocalories, alpha parameter for allometric equation",1.518,"BW(g),KCal(kcal/day)","U.S. EPA/ORD 1993","Equation 3-46, herbivores"]
["Mammal, herbivorous","Kilocalories, beta parameter for allometric equation",0.73,"BW(g),KCal(kcal/day)","U.S. EPA/ORD 1993","Equation 3-46, herbivores"]
["Mammal, large","Body weight",70,"kg","Default","N/A"]
["Mammal, large","Kilocalories, alpha parameter for allometric equation",1.518,"BW(g),KCal(kcal/day)","U.S. EPA/ORD 1993","p. 3-6, Eq. 3-10, herbivores"]
["Mammal, large","Kilocalories, beta parameter for allometric equation",0.73,"BW(g),KCal(kcal/day)","U.S. EPA/ORD 1993","p. 3-6, Eq. 3-10, herbivores"]
["Mammal, large","Water consumption, alpha parameter for allometric equation",9.9000000000000005E-2,"BW(kg),WC(L)","U.S. EPA/ORD 1993","Eq. 3-17, p. 3-10, all mammals"]
["Mammal, large","Water consumption, beta parameter for allometric equation",0.9,"BW(kg), WC(L)","U.S. EPA/ORD 1993","Eq. 3-17, p. 3-10, all mammals"]
["Mammal, rabbit","Body weight",1.3,"kg","Default","N/A"]
["Mammal, rabbit","Surface Area, alpha parameter for allometric equation",0.11,"BW(kg),SA(m2)","U.S. EPA/ORD 1993","p. 3-14, Eq. 3-22, for all mammals"]
["Mammal, rabbit","Surface Area, beta parameter for allometric equation",0.65,"BW(kg),SA(m2)","U.S. EPA/ORD 1993","p. 3-14, Eq. 3-22, for all mammals"]
["Mammal, rodent","Food consumption, alpha parameter for allometric equation",0.621,"BW(g),FC(g)","U.S. EPA/ORD 1993","Eq. 3-8, p. 3-6, equation for rodents"]
["Mammal, rodent","Food consumption, beta parameter for allometric equation",0.58399999999999996,"BW(g),FC(g)","U.S. EPA/ORD 1993","Eq. 3-8,p. 3-6, equation for rodents"]
["Mammal, small","Body weight",0.02,"kg","Default","N/A"]
["Mammal, small","Caloric content (wet weight)",1.7,"kcal/g  (wet weight)","U.S. EPA/ORD 1993","Table 4-1, p. 4-13. Value for small mammals. Wet weight."]
["Mammal, small","Food consumption, alpha parameter for allometric equation",0.621,"BW(g),FC(g)","U.S. EPA/ORD 1993","Eq. 3-8, p. 3-6, equation for rodents"]
["Mammal, small","Food consumption, beta parameter for allometric equation",0.56399999999999995,"BW(g),FC(g)","U.S. EPA/ORD 1993","Eq. 3-8, p. 3-6, equation for rodents"]
["Mammal, small","Kilocalories, alpha parameter for allometric equation",2.5139999999999998,"BW(g),KCal(kcal/day)","U.S. EPA/ORD 1993","Equation 3-48, rodent"]
["Mammal, small","Kilocalories, beta parameter for allometric equation",0.50700000000000001,"BW(g),KCal(kcal/day)","U.S. EPA/ORD 1993","Equation 3-48, rodent"]
["Mammal, small","Surface Area, alpha parameter for allometric equation",0.11,"BW(kg),SA(m2)","U.S. EPA/ORD 1993","p. 3-14, Eq. 3-22, for all mammals"]
["Mammal, small","Surface Area, beta parameter for allometric equation",0.65,"BW(kg),SA(m2)","U.S. EPA/ORD 1993","p. 3-14, Eq. 3-22, for all mammals"]
["Mammal, small","Water consumption, alpha parameter for allometric equation",9.9000000000000005E-2,"BW(kg),WC(L)","U.S. EPA/ORD 1993","Eq. 3-17, p. 3-10, all mammals"]
["Mammal, small","Water consumption, beta parameter for allometric equation",0.9,"BW(kg),WC(L)","U.S. EPA/ORD 1993","Eq. 3-17, p. 3-10, all mammals"]

{"sheet":"A02c","index":9,"n_rows":24,"n_cols":6,"rows_kept":24,"cut":false,"hidden":false,"merged":[[0,0,0,4]]}
["General reference values and exposure factors used in worksheets."]
[]
["Receptor","Factor","Value","Units"," Reference","Reference Note"]
["Small Insects","Caloric content (wet weight)",1.5,"kcal/g (wet weight)","U.S. EPA/ORD 1993","Table 4-1, p. 4-13.  Value for beetles. Wet weight"]
["Fish","Caloric content (wet weight)",1.2,"kcal/g (wet weight)","U.S. EPA/ORD 1993","Table 4-1, p. 4-13.  Value for bony fish. Wet weight"]
["Vegetation","Caloric content (dry weight)",2.2599999999999998,"kcal/g","U.S. EPA/ORD 1993","p. 3-5, Table 3-1"]
["Vegetation","Water content (proportion)",0.85,"unitless","U.S. EPA/ORD 1993","p. 4-14"]
["VegRR","Broadleaf/forage plants and small insects, central estimate",45,"mg chem/kg veg","Fletcher et al. 1994","Broadleaf/forage plants and small insects"]
["VegRR","Broadleaf/forage plants and small insects, upper range",135,"mg chem/kg veg","Fletcher et al. 1994","Broadleaf/forage plants and small insects"]
["VegRR","Fruits, pods, seeds, and large insects, central estimate",7,"mg chem/kg veg","Fletcher et al. 1994","Fruits, pods, seeds, and large insects"]
["VegRR","Fruits, pods, seeds, and large insects, upper range",15,"mg chem/kg veg","Fletcher et al. 1994","Fruits, pods, seeds, and large insects"]
["VegRR","Broadleaf plants and small insects, granular applications, central estimate",1.8,"mg chem/kg veg","SERA 2005","Broadleaf forage plants and contaminated insects after granular application"]
["VegRR","Broadleaf plants and small insects, granular applications, upper range",5.4,"mg chem/kg veg","SERA 2005","Broadleaf forage plants and contaminated insects after granular application"]
["VegRR","Fruits, granular applications, central estimate",0.28000000000000003,"mg chem/kg veg","SERA 2005","Fruit after granular application"]
["VegRR","Fruits, granular applications, upper range",0.6,"mg chem/kg veg","SERA 2005","Fruit after granular application"]
["VegRR","Short grass, granular applications, lower range",1.2,"mg chem/kg veg","SERA 2005","Short grass after granular application"]
["VegRR","Short grass, granular applications, upper range",9.6,"mg chem/kg veg","SERA 2005","Short grass after granular application"]
["VegRR","Tall grass, granular applications, central estimate",1.44,"mg chem/kg veg","SERA 2005","Tall grass after granular application"]
["VegRR","Tall grass, granular applications, upper range",4.4000000000000004,"mg chem/kg veg","SERA 2005","Tall grass after granular application"]
["VegRR","Short grass, central estimate",85,"mg chem/kg veg","Fletcher et al. 1994","Short grass"]
["VegRR","Short grass, lower range",30,"mg chem/kg veg","SERA 2007","Short grass"]
["VegRR","Short grass, upper range",240,"mg chem/kg veg","Fletcher et al. 1994","Short grass"]
["VegRR","Tall grass, central estimate",36,"mg chem/kg veg","Fletcher et al. 1994","Tall grass"]
["VegRR","Tall grass, upper range",110,"mg chem/kg veg","Fletcher et al. 1994","Tall grass"]

{"sheet":"A02d","index":10,"n_rows":24,"n_cols":6,"rows_kept":24,"cut":false,"hidden":false,"merged":[[0,0,0,4]]}
["General reference values and exposure factors used in worksheets."]
[]
["Receptor","Factor","Value","Units"," Reference","Reference Note"]
["Conversion Factors","acrefoot2gal",325900,"gal/acre-foot","Budavari  1989","N/A"]
["Conversion Factors","liters per gal",3.7850000000000001,"L/gal","Budavari  1989","N/A"]
["Conversion Factors","pound per milligram",453600,"mg/lb","Budavari  1989","N/A"]
["Conversion Factors","lbac2mgcm2",1.1209999999999999E-2,"mg/cm2 per lb/acre","Budavari  1989","N/A"]
["Conversion Factors","lbac2ugcm2",11.21,"ug/cm2 per lb/acre","Budavari  1989","N/A"]
["Conversion Factors","conversion for milligrams to pounds",2.204E-6,"lb/mg","Budavari  1989","N/A"]
["Conversion Factors","conversion for milliliters to gallons",3785,"ml/gal","Budavari  1989","N/A"]
["Misc","Liquid adhering to skin",8.0000000000000002E-3,"mL/cm2","Mason and Johnson 1987","Weight of liquid adhering to surface of skin after a spill"]
["Misc","Dislodgeable residue as proportion",0.1,"none","Harris and Solomon 1992","Estimate of dislodgeable residue as a proportion of application rate shortly after application based on 2,4-D."]
["Standard Pond","Depth",1,"m","Default","Depth of pond"]
["Standard Pond","Surface Area",1000,"m^2","Default","Surface Area"]
["Standard Pond","Volume of Spill ",200,"gallons","Default","Volume of spill"]
["VegRR","Broadleaf/forage plants and small insects, lower range",15,"mg chem/kg veg","SERA 2007","Broadleaf/forage plants and small insects"]
["VegRR","Fruits, pods, seeds, and large insects, lower range",3.2,"mg chem/kg veg","SERA 2007","Fruits, pods, seeds, and large insects"]
["VegRR","Broadleaf plants and small insects, granular applications, lower range",0.6,"mg chem/kg veg","SERA 2007","Broadleaf/forage plants after granular application"]
["VegRR","Fruits, granular applications, lower range",0.13,"mg chem/kg veg","SERA 2007","Fruit after granular application"]
["VegRR","Short grass, granular applications, central estimate",3.4,"mg chem/kg veg","SERA 2005","Short grass after granular application"]
["VegRR","Short grass, granular applications, lower range",1.2,"mg chem/kg veg","SERA 2007","Short grass after granular application"]
["VegRR","Tall grass, granular applications, lower range",0.48,"mg chem/kg veg","SERA 2007","Tall grass after granular application"]
["VegRR","Short grass, lower range",30,"mg chem/kg veg","Fletcher et al. 1994","Short grass"]
["VegRR","Tall grass, lower range",12,"mg chem/kg veg","SERA 2007","Tall grass"]

{"sheet":"A03","index":11,"n_rows":66,"n_cols":8,"rows_kept":66,"cut":false,"hidden":false,"merged":[[0,0,0,6]]}
["Food items for terrestrial animals"]
[]
["Receptor","Consumer","Qualifier","Modifier","Value","Units"," Reference","Reference Note"]
["Adult Female","Fish","Amount","central estimate",0.01,"kg/day","U.S. EPA/ORD 1996","p. 10-51, average of means from four studies rounded to one significant place."]
["Adult Female","Fish","Amount","upper range",0.158,"kg/day","Ruffle et al. 1994","N/A"]
["Adult Female","Fruit","Proportion of body weight","central estimate",1.6800000000000001E-3,"kg fruit/kg bw/day","U.S. EPA/ORD 1996","Table 9-3, p. 9-11, mean value."]
["Adult Female","Fruit","Proportion of body weight","lower range",1.6800000000000001E-3,"kg fruit/kg bw/day","U.S. EPA/ORD 1996","Table 9-3, p. 9-11. The 5th percentile is given as zero.  For these worksheets, the central estimate is used for the lower bound."]
["Adult Female","Fruit","Proportion of body weight","upper range",1.244E-2,"kg fruit/kg bw/day","U.S. EPA/ORD 1996","Table 9-3, p. 9-11, 95th percentile value."]
["Adult Female","Vegetation, home grown","Proportion of body weight","central estimate",7.6000000000000004E-4,"kg veg/kg bw/day","U.S. EPA/ORD 1996","Table 12-15, p. 9-14, mean for individuals between 20 and 39 years old."]
["Adult Female","Vegetation, home grown","Proportion of body weight","lower range",8.0000000000000007E-5,"kg veg/kg bw/day","U.S. EPA/ORD 1996","Table 12-15, p. 9-14, 5th percentile for individuals between 20 and 39 years old."]
["Adult Female","Vegetation, home grown","Proportion of body weight","upper range",4.9199999999999999E-3,"kg veg/kg bw/day","U.S. EPA/ORD 1996","Table 12-15, p. 9-14, 95th percentile for individuals between 20 and 39 years old."]
["Adult Female","Vegetation","Amount","Extreme",0.45400000000000001,"kg food","U.S. EPA/ORD 1996","1 lb.  The approximate mid range of the above typical and upper limits based on the 64 kg body weight."]
["Adult Female","Vegetation","Proportion of body weight","central estimate",3.5999999999999999E-3,"kg veg/kg bw/day","U.S. EPA/ORD 1996","Table 9-12, p. 9-12, mean."]
["Adult Female","Vegetation","Proportion of body weight","lower range",7.5000000000000002E-4,"kg veg/kg bw/day","U.S. EPA/ORD 1996","Table 9-12, p. 9-12, 5th percentile."]
["Adult Female","Vegetation","Proportion of body weight","upper range",0.01,"kg veg/kg bw/day","U.S. EPA/ORD 1996","Table 9-12, p. 9-12, 95th percentile."]
["Adult Female","Water","Amount","central estimate",2,"L/day","U.S. EPA/ORD 1996","p. 3-28, Table 3-30, midpoint of mean (1.4 L/day) and 90th percentile (2.4 L/day) rounded to one significant place."]
["Adult Female","Water","Amount","lower range",1.4,"L/day","U.S. EPA/ORD 1996","p. 3-28, Table 3-30, mean"]
["Adult Female","Water","Amount","upper range",2.4,"L/day","U.S. EPA/ORD 1996","p. 3-28, Table 3-30, 90th percentile"]
["Adult Male","Fish","Amount","central estimate",0.01,"kg/day","U.S. EPA/ORD 1996","p. 10-51, average of means from four studies rounded to one significant place."]
["Adult Male","Fish","Amount","upper range",0.158,"kg/day","Ruffle et al. 1994","N/A"]
["Adult Male","Fruit","Proportion of body weight","central estimate",1.6800000000000001E-3,"unitless","U.S. EPA/ORD 1996","Table 9-3, p. 9-11, mean value."]
["Adult Male","Fruit","Proportion of body weight","lower range",1.6800000000000001E-3,"unitless","U.S. EPA/ORD 1996","Table 9-3, p. 9-11. The 5th percentile is given as zero.  For these worksheets, the central estimate is used for the lower bound."]
["Adult Male","Fruit","Proportion of body weight","upper range",1.244E-2,"unitless","U.S. EPA/ORD 1996","Table 9-3, p. 9-11, 95th percentile value."]
["Adult Male","Vegetation, home grown","Proportion of body weight","central estimate",7.6000000000000004E-4,"unitless","U.S. EPA/ORD 1996","Table 12-15, p. 9-14, mean for individuals between 20 and 39 years old."]
["Adult Male","Vegetation, home grown","Proportion of body weight","lower range",8.0000000000000007E-5,"unitless","U.S. EPA/ORD 1996","Table 12-15, p. 9-14, 5th percentile for individuals between 20 and 39 years old."]
["Adult Male","Vegetation, home grown","Proportion of body weight","upper range",4.9199999999999999E-3,"unitless","U.S. EPA/ORD 1996","Table 12-15, p. 9-14, 95th percentile for individuals between 20 and 39 years old."]
["Adult Male","Vegetation","Amount","Extreme",0.45400000000000001,"kg/day","U.S. EPA/ORD 1996","1 lb.  The approximate mid range of the above typical and upper limits based on the 64 kg body weight."]
["Adult Male","Vegetation","Proportion of body weight","central estimate",3.5999999999999999E-3,"unitless","U.S. EPA/ORD 1996","Table 9-12, p. 9-12, mean."]
["Adult Male","Vegetation","Proportion of body weight","lower range",7.5000000000000002E-4,"unitless","U.S. EPA/ORD 1996","Table 9-12, p. 9-12, 5th percentile."]
["Adult Male","Vegetation","Proportion of body weight","upper range",0.01,"unitless","U.S. EPA/ORD 1996","Table 9-12, p. 9-12, 95th percentile."]
["Adult Male","Water","Amount","central estimate",2,"L/day","U.S. EPA/ORD 1996","p. 3-28, Table 3-30, midpoint of mean (1.4 L/day) and 90th percentile (2.4 L/day) rounded to one significant place."]
["Adult Male","Water","Amount","lower range",1.4,"L/day","U.S. EPA/ORD 1996","p. 3-28, Table 3-30, mean"]
["Adult Male","Water","Amount","upper range",2.4,"L/day","U.S. EPA/ORD 1996","p. 3-28, Table 3-30, 90th percentile"]
["Subsistence Populations","Fish","Amount","central estimate",8.1000000000000003E-2,"kg/day","U.S. EPA/ORD 1996","p. 10-51, median value of 94 individuals"]
["Subsistence Populations","Fish","Amount","upper range",0.77,"kg/day","U.S. EPA/ORD 1993","p. 10-51, highest value of 94 individuals"]
["Bird, NOS","Fish","Kilocalories","FoodVal",3.87,"Kcal/gram (dw)","U.S. EPA/ORD 1993","Table 3-1, p. 3-5"]
["Bird, NOS","Fish","Wat","FoodVal",0.7,"Unitless","Ali et al. 2005","N/A"]
["Bird, NOS","Fruit","Kilocalories","FoodVal",1.1000000000000001,"Kcal/gram (dw)","U.S. EPA/ORD 1993","Gross caloric value of 2.2 kcal/g dw (U.S. EPA/ORD 1993, Table 4-2) with assim fact of 0.51"]
["Bird, NOS","Fruit","Wat","FoodVal",0.77,"Unitless","U.S. EPA/ORD 1993","Table 4-2, p. 4-14"]
["Bird, NOS","Insect","Kilocalories","FoodVal",4.3,"Kcal/gram (dw)","U.S. EPA/ORD 1993","Table 4-2, p. 4-14"]
["Bird, NOS","Insect","Wat","FoodVal",0.7,"Unitless","Chapman 1998","Typrical range 60-80%"]
["Bird, NOS","Vegetation","Kilocalories","FoodVal",2,"Kcal/gram (dw)","U.S. EPA/ORD 1993","gross caloric value of 4.2 kcal/g dw for dicot leaves (U.S. EPA/ORD 1993, Table 4-2) with assim fact of 0.47"]
["Bird, NOS","Vegetation","Wat","FoodVal",0.85,"Unitless","U.S. EPA/ORD 1993","Table 4-2, p. 4-14"]
["Child","Water","Amount","central estimate",1,"L/day","U.S. EPA/ORD 1996","p. 3-28, Table 3-30, midpoint of mean (0.61L/day) and 90th percentile (1.5 L/day) rounded to one significant place."]
["Child","Water","Amount","lower range",0.61,"L/day","U.S. EPA/ORD 1996","p. 3-28, Table 3-30, mean"]
["Child","Water","Amount","upper range",1.5,"L/day","U.S. EPA/ORD 1996","p. 3-28, Table 3-30, 90th percentile"]
["Herbivorous Insect","Broadleaf/Small Insects","Proportion of body weight","central estimate",1.3,"kg food/kg bw/day","Waldbauer 1968","N/A"]
["Herbivorous Insect","Broadleaf/Small Insects","Proportion of body weight","lower range",0.6,"kg food/kg bw/day","Reichle et al. 1973","N/A"]
["Herbivorous Insect","Broadleaf/Small Insects","Proportion of body weight","upper range",2.2000000000000002,"kg food/kg bw/day","Waldbauer 1968","N/A"]
["Herbivorous Insect","Fruit","Proportion of body weight","central estimate",1.3,"kg food/kg bw/day","Waldbauer 1968","N/A"]
["Herbivorous Insect","Fruit","Proportion of body weight","lower range",0.6,"kg food/kg bw/day","Reichle et al. 1973","N/A"]
["Herbivorous Insect","Fruit","Proportion of body weight","upper range",2.2000000000000002,"kg food/kg bw/day","Waldbauer 1968","N/A"]
["Herbivorous Insect","Short grass","Proportion of body weight","central estimate",1.3,"kg food/kg bw/day","Waldbauer 1968","N/A"]
["Herbivorous Insect","Short grass","Proportion of body weight","lower range",0.6,"kg food/kg bw/day","Reichle et al. 1973","N/A"]
["Herbivorous Insect","Short grass","Proportion of body weight","upper range",2.2000000000000002,"kg food/kg bw/day","Waldbauer 1968","N/A"]
["Herbivorous Insect","Tall Grass","Proportion of body weight","central estimate",1.3,"kg food/kg bw/day","Waldbauer 1968","N/A"]
["Herbivorous Insect","Tall Grass","Proportion of body weight","lower range",0.6,"kg food/kg bw/day","Reichle et al. 1973","N/A"]
["Herbivorous Insect","Tall Grass","Proportion of body weight","upper range",2.2000000000000002,"kg food/kg bw/day","Waldbauer 1968","N/A"]
["Mammal, Nos","Fish","Kilocalories","FoodVal",4.47,"Kcal/gram (dw)","U.S. EPA/ORD 1993","Table 3-1, p. 3-5"]
["Mammal, Nos","Fish","Wat","FoodVal",0.7,"Unitless","Ali et al. 2005","N/A"]
["Mammal, Nos","Fruit","Kilocalories","FoodVal",1.1000000000000001,"Kcal/gram (dw)","U.S. EPA/ORD 1993","Gross caloric value of 2.2 kcal/g dw (U.S. EPA/ORD 1993, Table 4-2) with assim fact of 0.51"]
["Mammal, Nos","Fruit","Wat","FoodVal",0.77,"Unitless","U.S. EPA/ORD 1993","Table 4-2, p. 4-14"]
["Mammal, Nos","Insect","Kilocalories","FoodVal",4.47,"Kcal/gram (dw)","U.S. EPA/ORD 1993","Table 4-2, p. 4-14"]
["Mammal, Nos","Insect","Wat","FoodVal",0.7,"Unitless","Chapman 1998","Typrical range 60-80%"]
["Mammal, Nos","Vegetation","Kilocalories","FoodVal",2.2599999999999998,"Kcal/gram (dw)","U.S. EPA/ORD 1993","Table 3-1, p. 3-5"]
["Mammal, Nos","Vegetation","Wat","FoodVal",0.85,"Unitless","U.S. EPA/ORD 1993","Table 4-2, p. 4-14"]

{"sheet":"B01","index":12,"n_rows":22,"n_cols":5,"rows_kept":22,"cut":false,"hidden":false,"merged":[[0,0,0,4]]}
["Chemical and Physical Properties for  Chlorophacinone"]
[]
["Property","Receptor","Value","Units","Document Reference"]
["Bioconcentration Factor (BCF), edible, acute","N/A",2.4079999999999999,"L/kg fish","Section 3.2.3.5."]
["Bioconcentration Factor (BCF), edible, chronic","N/A",2.4079999999999999,"L/kg fish","Section 3.2.3.5."]
["Bioconcentration Factor (BCF), whole fish, acute","N/A",2.4079999999999999,"L/kg fish","Section 3.2.3.5."]
["Bioconcentration Factor (BCF), whole fish, chronic","N/A",2.4079999999999999,"L/kg fish","Section 3.2.3.5."]
["Kow (Octanol-water partition coefficient)","N/A",94.5,"unitless","Table 1"]
["Molecular weight","N/A",374.83,"grams/mole","N/A"]
["Water Solubility","N/A",3.43,"mg/L","N/A"]
["First order dermal absorption rate (ka), central estimate","N/A",6.9999999999999999E-4,"per hour","N/A"]
["First order dermal absorption rate (ka), lower range","N/A",2.5000000000000001E-4,"per hour","N/A"]
["First order dermal absorption rate (ka), upper range","N/A",1.9E-3,"per hour","N/A"]
["Dermal permeability (Kp), central estimate","N/A",2.3000000000000001E-4,"cm/hour","N/A"]
["Dermal permeability (Kp), lower range","N/A",1.3999999999999999E-4,"cm/hour","N/A"]
["Dermal permeability (Kp), upper range","N/A",3.8999999999999999E-4,"cm/hour","N/A"]
["Halftime, central estimate","Fruit",1,"days","Not used"]
["Halftime, lower range","Fruit",1,"days","Not used"]
["Halftime, upper range","Fruit",1,"days","Not used"]
["Halftime, central estimate","Vegetation",1,"days","Not used"]
["Halftime, lower range","Vegetation",1,"days","Not used"]
["Halftime, upper range","Vegetation",1,"days","Not used"]

{"sheet":"B02","index":13,"n_rows":12,"n_cols":7,"rows_kept":12,"cut":false,"hidden":false,"merged":[[0,0,0,6]]}
["Toxicity values for  Chlorophacinone"]
[]
["Receptor","Receptor","Qualifier","Endpoint","Value","Units","Document Reference"]
["Human","acute","N/A","Reference Dose (RfD)",3.0000000000000001E-3,"mg/kg bw","N/A"]
["Human","chronic","N/A","Reference Dose (RfD)",5.0000000000000002E-5,"mg/kg bw/day","N/A"]
["Mammal, Nos","acute","N/A","NOAEL",0.03,"mg/kg bw","N/A"]
["Mammal, Nos","chronic","N/A","NOAEL",5.0000000000000001E-3,"mg/kg bw/day","N/A"]
["Bird, NOS","acute","N/A","NOAEL",0.6,"mg/kg bw","N/A"]
["Bird, NOS","chronic","N/A","NOAEL",7.0000000000000007E-2,"mg/kg bw/day","N/A"]
["Aquatic invertebrate","acute","tolerant species","NOAEC",0.28000000000000003,"mg/L","N/A"]
["Fish","acute","sensitive species","NOAEC",0.12,"mg/L","N/A"]
["Fish","acute","tolerant species","NOAEC",0.36,"mg/L","N/A"]

{"sheet":"B03a","index":14,"n_rows":28,"n_cols":5,"rows_kept":28,"cut":false,"hidden":false,"merged":[[24,0,27,0],[0,0,0,4],[1,1,1,3],[5,0,7,0],[9,0,12,0],[20,0,23,0]]}
["Calculation of Zero-Order Dermal Permeability Rate (Kp) in cm/hour"]
["Short Title","Calculation of Kp",null,null,"ChemDrmKp"]
["Parameter/Assumption","Code / Range","Equation/   Value","Units","Reference/Designation"]
["Molecular weight","MW",{"$f":"'B01'!$C$9","v":374.83},"g/mole"]
["Ko/w","Kow",{"$f":"'B01'!$C$8","v":94.5},"unitless"]
["Vector a[]","a[1]",1]
[null,"a[2]",{"$f":"C4","v":374.83}]
[null,"a[3]",{"$f":"LOG10(C5)","v":1.975431808509263}]
["Transpose of a[] (a')",{"$f":"$C$6","v":1},{"$f":"$C$7","v":374.83},{"$f":"$C$8","v":1.975431808509263}]
["X'X Cross Product Matrix","X'X"]
[null,5.5931000000000002E-2,-9.4154599999999995E-5,-1.0344300000000001E-2]
[null,-9.4154599999999995E-5,5.9780000000000002E-7,-2.22508E-5]
[null,-1.0344300000000001E-2,-2.22508E-5,7.40677E-3]
["a'X'X a","a'X'X a",{"$f":"MMULT(B9:D9,MMULT(B11:D13, C6:C8))","v":2.4419974864499538E-2}]
["Coefficients for model"]
["Intercept","K0",-2.7257600000000002]
["Coeff for MW","K1",-6.1510000000000002E-3]
["Coeff for Log10(Kow)","K2",0.70664800000000005]
["Standard deviation of model","s",0.72712900000000003]
["Critical value at 0.025 with 87 d.f.","t0.025",1.96]
["Log10 of Estimated dermal permeability rate (Kp)","Log(Kp) = ","K0 + K1  MW + K2 Log10(Kow) "]
[null,"Central",{"$f":" $C$16 + ($C$17*$C$4) + ($C$18*LOG10($C$5))","v":-3.6354043933805462},null,"Eq"]
[null,"Lower 95% CI",{"$f":"$C$22 - ($C$20 * $C$19 * ($C$14^0.5))","v":-3.8581146116504699},null,"Eq"]
[null,"Upper 95% CI",{"$f":"$C$22 + ($C$20 * $C$19 * ($C$14^0.5))","v":-3.4126941751106226},null,"Eq"]
["Estimated dermal permeability rate (Kp)","Kp = ","10Log(Kp)"]
[null,"Central",{"$f":"10^C22","v":2.3152378118726952E-4},"cm/hour","Eq"]
[null,"Lower 95% CI",{"$f":"10^C23","v":1.3863899080263575E-4},null,"Eq"]
[null,"Upper 95% CI",{"$f":"10^C24","v":3.8663914779615995E-4},null,"Eq"]

{"sheet":"B03b","index":15,"n_rows":28,"n_cols":5,"rows_kept":28,"cut":false,"hidden":false,"merged":[[24,0,27,0],[0,0,0,4],[1,1,1,3],[5,0,7,0],[9,0,12,0],[20,0,23,0]]}
["Calculation of First-Order Dermal Absorption Rate"]
["Short Title","Calculation of ka",null,null,"ChemDrmKa"]
["Parameter/Assumption","Code / Range","Equation/   Value","Units","Reference/Designation"]
["Molecular weight","MW",{"$f":"'B01'!$C$9","v":374.83},"g/mole"]
["Ko/w","Kow",{"$f":"'B01'!$C$8","v":94.5},"unitless"]
["Vector a[]","a[1]",1]
[null,"a[2]",{"$f":"C4","v":374.83}]
[null,"a[3]",{"$f":"LOG10(C5)","v":1.975431808509263}]
["Transpose of a[] (a')",{"$f":"$C$6","v":1},{"$f":"$C$7","v":374.83},{"$f":"$C$8","v":1.975431808509263}]
["X'X Cross Product Matrix","X'X"]
[null,0.307537,-1.03089E-3,8.2276899999999993E-3]
[null,-1.03089E-3,4.3769999999999998E-6,-9.4435899999999995E-5]
[null,8.2276899999999993E-3,-9.4435899999999995E-5,8.5286000000000008E-3]
["a'X'X a","a'X'X a",{"$f":"MMULT(B9:D9,MMULT(B11:D13, C6:C8))","v":7.5615253413290229E-2}]
["Coefficients for model"]
["Intercept","K0",-1.4961500000000001]
["Coeff for MW","K1",-5.6569999999999997E-3]
["Coeff for Log10(Kow)","K2",0.23325499999999999]
["Standard deviation of model","s",0.78721799999999997]
["Critical value at 0.025 with 26 d.f.","t0.025",2.056]
["Log10 of Estimated first-order absorption rate","Log(ka) = ","K0 + K1  MW + K2 Log10(Kow) "]
[null,"Central",{"$f":"  $C$16 + ($C$17*$C$4) + ($C$18*LOG10($C$5))","v":-3.1557839635061722},null,"Eq"]
[null,"Lower 95% CI",{"$f":"$C$22 - ($C$20 * $C$19 * ($C$14^0.5))","v":-3.6008483378773439},null,"Eq"]
[null,"Upper 95% CI",{"$f":"$C$22 + ($C$20 * $C$19 * ($C$14^0.5))","v":-2.7107195891350004},null,"Eq"]
["Estimated first-order absorption rate","ka = ","10Log(ka)"]
[null,"Central",{"$f":"10^C22","v":6.9857982088992034E-4},"hour-1","Eq"]
[null,"Lower 95% CI",{"$f":"10^C23","v":2.5069845766607105E-4},null,"Eq"]
[null,"Upper 95% CI",{"$f":"10^C24","v":1.9466165476160419E-3},null,"Eq"]

{"sheet":"B04Rt","index":16,"n_rows":11,"n_cols":5,"rows_kept":11,"cut":false,"hidden":false,"merged":[[0,0,0,4],[2,0,5,0],[6,0,9,0],[10,1,10,4]]}
["Estimates of Water Contamination Rates -- i.e., the concentration in ambient water per pound applied per acre"]
["Parameter/Assumption","Code / Range","Equation/ Value","Units","WCRV6"]
["Short-term peak concentrations","Peak",null,null,"WCRV6"]
[null,"Central ",2E-3,"mg/L"]
[null,"Lower ",2.0000000000000001E-4]
[null,"Upper ",0.01]
["Longer-term average concentrations","Average"]
[null,"Central ",5.0000000000000002E-5,"mg/L"]
[null,"Lower ",1.9999999999999999E-6]
[null,"Upper ",2.9999999999999997E-4]
["User Specified Gleams-Driver File:","None"]

{"sheet":"B04a","index":17,"n_rows":21,"n_cols":5,"rows_kept":21,"cut":false,"hidden":false,"merged":[[21,1,21,4],[0,0,0,3],[4,0,7,0],[8,0,11,0],[13,0,16,0],[17,0,20,0]]}
["Expected Concentrations in Surface Water",null,null,null,"EECRtV6"]
["Parameter/Assumption","Code / Range","Equation/ Value","Units","EECRtV6"]
["Application Rate","ApRt",{"$f":"'A01'!ApRt_C","v":6.2500000000000001E-4},"lb/acre","Worksheet A01"]
["Water Contamination Rates"]
["Short-term peak water contamination rates (WCR)","Peak"]
[null,"Central ",{"$f":"B04Rt!$C$4","v":2E-3},"mg/L"]
[null,"Lower ",{"$f":"B04Rt!$C$5","v":2.0000000000000001E-4}]
[null,"Upper ",{"$f":"B04Rt!$C$6","v":0.01}]
["Longer-term average water contamination rates (WCR)","Average"]
[null,"Central ",{"$f":"B04Rt!$C$8","v":5.0000000000000002E-5},"mg/L"]
[null,"Lower ",{"$f":"B04Rt!$C$9","v":1.9999999999999999E-6}]
[null,"Upper ",{"$f":"B04Rt!$C$10","v":2.9999999999999997E-4}]
["EECs in Surface Water"]
["Short-term peak concentrations","Peak"]
[null,"Central ",{"$f":"$C$3*C6","v":1.2500000000000001E-6},"mg/L","Eq"]
[null,"Lower ",{"$f":"$C$3*C7","v":1.2500000000000002E-7},null,"Eq"]
[null,"Upper ",6.2500000000000003E-6,null,"Eq"]
["Longer-term average concentrations","Average"]
[null,"Central ",{"$f":"$C$3*C10","v":3.1250000000000005E-8},"mg/L","Eq"]
[null,"Lower ",{"$f":"$C$3*C11","v":1.25E-9},null,"Eq"]
[null,"Upper ",1.8749999999999998E-7,null,"Eq"]

{"sheet":"B04b","index":18,"n_rows":22,"n_cols":5,"rows_kept":22,"cut":false,"hidden":false,"merged":[[18,0,21,0],[0,0,0,4],[1,1,1,3],[2,1,2,3],[3,1,3,3],[9,0,12,0],[14,0,17,0]]}
["Pond: Concentration of pesticide (granular formulation) in pond water after an accidental spill"]
["Short Title","Pond Spill",null,null,"PondSpillGranV6"]
["Receptor","Pond"]
["Duration","Acute "]
["Parameter/Assumption","Code / Range","Equation/   Value","Units","Reference/Designation"]
["Surface Area of Pond","SA",{"$f":"'A01'!C$16","v":1000},"m2","Worksheet A01"]
["Depth of Pond","Depth",{"$f":"'A01'!C$17","v":1},"meter","Worksheet A01"]
["Volume of Pond","VPM",{"$f":"C6*C7","v":1000},"m3","Eq"]
[null,"VPL",{"$f":"1000*C8","v":1000000},"liters","Eq"]
["Pounds of compound spilled into water","Lbs"]
[null,"Central ",{"$f":"'A01'!C$28","v":1.5E-3},"lbs a.i. or a.e","Worksheet A01"]
[null,"Lower ",{"$f":"'A01'!C$29","v":1E-3},null,"Worksheet A01"]
[null,"Upper ",{"$f":"'A01'!C$30","v":2E-3},null,"Worksheet A01"]
["mg per lb","MgLbs",453600,"mg/lbs"]
["Toxic Equivalency Factor for formulation:  (See risk assessment if this has a value other than 1.)","TEF"]
[null,"Central ",{"$f":"'A01'!C$24","v":1},"unitless","Worksheet A01"]
[null,"Lower ",{"$f":"'A01'!C$25","v":1},null,"Worksheet A01"]
[null,"Upper ",{"$f":"'A01'!C$26","v":1},null,"Worksheet A01"]
["Concentration in pond water","ConcWat","Lbs  × TEF x MgLbs ÷ VPL"]
[null,"Central ",{"$f":"C11*C16*C$14/C$9","v":6.8039999999999995E-4},"mg/L","Eq"]
[null,"Lower ",{"$f":"C12*C17*C$14/C$9","v":4.5360000000000002E-4},null,"Eq"]
[null,"Upper ",{"$f":"C13*C18*C$14/C$9","v":9.0720000000000004E-4},null,"Eq"]

{"sheet":"C01a","index":19,"n_rows":52,"n_cols":5,"rows_kept":52,"cut":false,"hidden":false,"merged":[[35,0,38,0],[39,0,42,0],[44,0,47,0],[48,0,51,0],[14,0,17,0],[18,0,21,0],[19,3,21,3],[22,0,25,0],[27,0,30,0],[31,0,34,0],[0,0,0,4],[1,1,1,3],[2,1,2,3],[3,1,3,3],[6,0,9,0],[10,0,13,0],[11,3,13,3]]}
["Exposure estimates based on Pesticide Handlers Exposure Database (PHED) Method"]
["Short Title","General Exposure",null,null,"WkPHED"]
["Receptor","Worker"]
["Duration","Acute"]
["Parameter/Assumption","Code / Range","Equation/ Value","Units","Reference/Equation"]
["Body Weight","BW",{"$f":"A02a!$C$39","v":70},null,"ICRP 1975"]
["Amount a.i. handled per day (a.e. for weak acids): ","Amnt"]
[null,"Central ",{"$f":"'A01'!WrkAmntHndl_C","v":7.5000000000000007E-5},"lb a.i.","Worksheet A01"]
[null,"Lower ",{"$f":"'A01'!WrkAmntHndl_L","v":3.7500000000000003E-5},null,"Worksheet A01"]
[null,"Upper ",{"$f":"'A01'!WrkAmntHndl_U","v":1.5000000000000001E-4},null,"Worksheet A01"]
["Dermal Exposure Rate: ","DermRate"]
[null,"Central ",71,"mg per lb handled","Worksheet A01"]
[null,"Lower ",71,null,"Worksheet A01"]
[null,"Upper ",71,null,"Worksheet A01"]
["PPE Factor for Dermal Exposure: ","DermPPE"]
[null,"Central ",0,"Proportion","Scenario parameter"]
[null,"Upper ",0,null,"Scenario parameter"]
[null,"Lower ",0,null,"Scenario parameter"]
["Amount Deposited on Skin","DermAmnt","Amnt × DermRate × (1-DermPPE)"]
[null,"Central",{"$f":"C8*C12*(1-C16)","v":5.3250000000000007E-3},"mg/day","Eq."]
[null,"Lower",{"$f":"C9*C13*(1-C17)","v":2.6625000000000004E-3},null,"Eq."]
[null,"Upper",{"$f":"C10*C14*(1-C18)","v":1.0650000000000001E-2},null,"Eq."]
["First-order dermal absorption rates ","ka"]
[null,"Central",{"$f":"'B01'!$C$11","v":6.9999999999999999E-4},"hour-1"]
[null,"Lower",{"$f":"'B01'!$C$12","v":2.5000000000000001E-4}]
[null,"Upper",{"$f":"'B01'!$C$13","v":1.9E-3}]
["Period of exposure","T",8,"hours","Scenario parameter"]
["Proportion absorbed by skin over period T","Prop","1-exp(-ka T)"]
[null,"Central",{"$f":"1-EXP(-C24*C$27)","v":5.584349228402119E-3},"Proportion","Eq."]
[null,"Lower",{"$f":"1-EXP(-C25*C$27)","v":1.998001332666921E-3},null,"Eq."]
[null,"Upper",{"$f":"1-EXP(-C26*C$27)","v":1.5085063083932537E-2},null,"Eq."]
["Absorbed Dermal Dose","DermAbs","Amnt × Prop"]
[null,"Central",{"$f":"C20*C29","v":2.9736659641241289E-5},"mg","Eq."]
[null,"Lower",{"$f":"C21*C30","v":5.3196785482256781E-6},"mg","Eq."]
[null,"Upper",{"$f":"C22*C31","v":1.6065592184388156E-4},"mg","Eq."]
["Inhalation Exposure Rate: ","InhExpRate"]
[null,"Central ",0.47,"mg/lb handled","Worksheet A01"]
[null,"Lower ",0.47,null,"Worksheet A01"]
[null,"Upper ",0.47,null,"Worksheet A01"]
["PPE Factor for Inhalation Exposure: ","InhPPE"]
[null,"Central ",0,"Proportion","Scenario parameter"]
[null,"Upper ",0,null,"Scenario parameter"]
[null,"Lower ",0,null,"Scenario parameter"]
["Inhalation Absorption Rate: ","InhRate",1,"Proportion"]
["Absorbed Inhalation Dose","InhAbs","Amnt × InhExpRate × (1-InhPPE)"]
[null,"Central",{"$f":"C8*C37*C$44","v":3.5250000000000003E-5},"mg","Eq."]
[null,"Lower",{"$f":"C9*C38*C$44","v":1.7625000000000002E-5},null,"Eq."]
[null,"Upper",{"$f":"C10*C39*C$44","v":7.0500000000000006E-5},null,"Eq."]
["Total Absorbed dose","Dose","(DermAbs + InhAbs) ÷ BW"]
[null,"Central ",{"$f":"(C33+C46)/C$6","v":9.2838085201773271E-7},"mg/kg bw/day","Eq"]
[null,"Lower ",{"$f":"(C34+C47)/C$6","v":3.2778112211750971E-7},null,"Eq"]
[null,"Upper ",{"$f":"(C35+C48)/C$6","v":3.3022274549125939E-6},null,"Eq"]

{"sheet":"C01b","index":20,"n_rows":52,"n_cols":5,"rows_kept":52,"cut":false,"hidden":false,"merged":[[35,0,38,0],[39,0,42,0],[44,0,47,0],[48,0,51,0],[14,0,17,0],[18,0,21,0],[19,3,21,3],[22,0,25,0],[27,0,30,0],[31,0,34,0],[0,0,0,4],[1,1,1,3],[2,1,2,3],[3,1,3,3],[6,0,9,0],[10,0,13,0],[11,3,13,3]]}
["Exposure estimates based on Pesticide Handlers Exposure Database (PHED) Method"]
["Short Title","Poor Hygiene",null,null,"WkPHED"]
["Receptor","Worker"]
["Duration","Acute"]
["Parameter/Assumption","Code / Range","Equation/ Value","Units","Reference/Equation"]
["Body Weight","BW",{"$f":"A02a!$C$39","v":70},null,"ICRP 1975"]
["Amount a.i. handled per day (a.e. for weak acids): ","Amnt"]
[null,"Central ",{"$f":"'A01'!WrkAmntHndl_C","v":7.5000000000000007E-5},"lb a.i.","Worksheet A01"]
[null,"Lower ",{"$f":"'A01'!WrkAmntHndl_L","v":3.7500000000000003E-5},null,"Worksheet A01"]
[null,"Upper ",{"$f":"'A01'!WrkAmntHndl_U","v":1.5000000000000001E-4},null,"Worksheet A01"]
["Dermal Exposure Rate: ","DermRate"]
[null,"Central ",{"$f":"'C01a'!C$12","v":71},"mg per lb handled","Worksheet A01"]
[null,"Lower ",{"$f":"'C01a'!C$13","v":71},null,"Worksheet A01"]
[null,"Upper ",{"$f":"'C01a'!C$14","v":71},null,"Worksheet A01"]
["PPE Factor for Dermal Exposure: ","DermPPE"]
[null,"Central ",0,"Proportion","Scenario parameter"]
[null,"Upper ",0,null,"Scenario parameter"]
[null,"Lower ",0,null,"Scenario parameter"]
["Amount Deposited on Skin","DermAmnt","Amnt × DermRate × (1-DermPPE)"]
[null,"Central",{"$f":"C8*C12*(1-C16)","v":5.3250000000000007E-3},"mg/day","Eq."]
[null,"Lower",{"$f":"C9*C13*(1-C17)","v":2.6625000000000004E-3},null,"Eq."]
[null,"Upper",{"$f":"C10*C14*(1-C18)","v":1.0650000000000001E-2},null,"Eq."]
["First-order dermal absorption rates ","ka"]
[null,"Central",{"$f":"'B01'!$C$11","v":6.9999999999999999E-4},"hour-1"]
[null,"Lower",{"$f":"'B01'!$C$12","v":2.5000000000000001E-4}]
[null,"Upper",{"$f":"'B01'!$C$13","v":1.9E-3}]
["Period of exposure","T",24,"hours","Scenario parameter"]
["Proportion absorbed by skin over period T","Prop","1-exp(-ka T)"]
[null,"Central",{"$f":"1-EXP(-C24*C$27)","v":1.6659666963978803E-2},"Proportion","Eq."]
[null,"Lower",{"$f":"1-EXP(-C25*C$27)","v":5.9820359460647232E-3},null,"Eq."]
[null,"Upper",{"$f":"1-EXP(-C26*C$27)","v":4.4575944610864005E-2},null,"Eq."]
["Absorbed Dermal Dose","DermAbs","Amnt × Prop"]
[null,"Central",{"$f":"C20*C29","v":8.8712726583187144E-5},"mg","Eq."]
[null,"Lower",{"$f":"C21*C30","v":1.5927170706397326E-5},"mg","Eq."]
[null,"Upper",{"$f":"C22*C31","v":4.7473381010570173E-4},"mg","Eq."]
["Inhalation Exposure Rate: ","InhExpRate"]
[null,"Central ",{"$f":"'C01a'!C$37","v":0.47},"mg/lb handled","Worksheet A01"]
[null,"Lower ",{"$f":"'C01a'!C$38","v":0.47},null,"Worksheet A01"]
[null,"Upper ",{"$f":"'C01a'!C$39","v":0.47},null,"Worksheet A01"]
["PPE Factor for Inhalation Exposure: ","InhPPE"]
[null,"Central ",0,"Proportion","Scenario parameter"]
[null,"Upper ",0,null,"Scenario parameter"]
[null,"Lower ",0,null,"Scenario parameter"]
["Inhalation Absorption Rate: ","InhRate",1,"Proportion"]
["Absorbed Inhalation Dose","InhAbs","Amnt × InhExpRate × (1-InhPPE)"]
[null,"Central",{"$f":"C8*C37*C$44","v":3.5250000000000003E-5},"mg","Eq."]
[null,"Lower",{"$f":"C9*C38*C$44","v":1.7625000000000002E-5},null,"Eq."]
[null,"Upper",{"$f":"C10*C39*C$44","v":7.0500000000000006E-5},null,"Eq."]
["Total Absorbed dose","Dose","(DermAbs + InhAbs) ÷ BW"]
[null,"Central ",{"$f":"(C33+C46)/C$6","v":1.7708960940455306E-6},"mg/kg bw/day","Eq"]
[null,"Lower ",{"$f":"(C34+C47)/C$6","v":4.7931672437710469E-7},null,"Eq"]
[null,"Upper ",{"$f":"(C35+C48)/C$6","v":7.7890544300814521E-6},null,"Eq"]

{"sheet":"C02a","index":21,"n_rows":23,"n_cols":5,"rows_kept":23,"cut":false,"hidden":false,"merged":[[11,0,14,0],[15,0,18,0],[19,0,22,0],[0,0,0,4],[1,1,1,3],[2,1,2,3],[3,1,3,3],[4,1,4,3],[7,0,8,0]]}
["Dermal Exposure Assessment for a Granular Exposure Using Zero-Order Absorption, Worker, Surface Area, Hands, for 1 minute(s)"]
["Short Title","Contaminated Gloves, 1 minute",null,null,"DrmZrGran"]
["Receptor","Worker"]
["Duration","Acute"]
["Surface Contaminated","Surface Area, Hands"]
["Parameter/Assumption","Code / Range","Equation/   Value","Units","Reference/Designation"]
["Surface Area","SA",{"$f":"A02a!$C$40","v":840},"cm2","U.S. EPA/ORD 1992"]
["Duration of Exposure","T_min",1,"minutes","Scenario parameter"]
[null,"T_hr",{"$f":"C8/60","v":1.6666666666666666E-2},"hours","Eq"]
["Body weight","BW",{"$f":"A02a!$C$39","v":70},"kg","ICRP 1975"]
["Water Solubility (mg/mL)","WS",{"$f":"'B01'!$C$10/1000","v":3.4300000000000003E-3},"mg/mL"]
["Toxic Equivalency Factor for formulation:  (See risk assessment if this has a value other than 1.)","TEF"]
[null,"Central ",{"$f":"'A01'!C$24","v":1},"Unitless","Worksheet A01"]
[null,"Lower ",{"$f":"'A01'!C$25","v":1},null,"Worksheet A01"]
[null,"Upper ",{"$f":"'A01'!C$26","v":1},null,"Worksheet A01"]
["Dermal permeability","Kp"]
[null,"Central ",{"$f":"'B01'!$C$14","v":2.3000000000000001E-4},"cm/hour"]
[null,"Lower ",{"$f":"'B01'!$C$15","v":1.3999999999999999E-4}]
[null,"Upper ",{"$f":"'B01'!$C$16","v":3.8999999999999999E-4}]
["Absorbed Dose","Dose","Kp × WS × T_hr × SA x TEF ÷ BW"]
[null,"Central ",{"$f":"C17*C$11*C$9*C$7*C13/C$10","v":1.5778E-7},"mg/kg","Eq"]
[null,"Lower ",{"$f":"C18*C$11*C$9*C$7*C14/C$10","v":9.6040000000000005E-8},"mg/kg","Eq"]
[null,"Upper ",{"$f":"C19*C$11*C$9*C$7*C15/C$10","v":2.6754000000000003E-7},"mg/kg","Eq"]

{"sheet":"C02b","index":22,"n_rows":23,"n_cols":5,"rows_kept":23,"cut":false,"hidden":false,"merged":[[11,0,14,0],[15,0,18,0],[19,0,22,0],[0,0,0,4],[1,1,1,3],[2,1,2,3],[3,1,3,3],[4,1,4,3],[7,0,8,0]]}
["Dermal Exposure Assessment for a Granular Exposure Using Zero-Order Absorption, Worker, Surface Area, Hands, for 60 minute(s)"]
["Short Title","Contaminated Gloves, 1 hour",null,null,"DrmZrGran"]
["Receptor","Worker"]
["Duration","Acute"]
["Surface Contaminated","Surface Area, Hands"]
["Parameter/Assumption","Code / Range","Equation/   Value","Units","Reference/Designation"]
["Surface Area","SA",{"$f":"A02a!$C$40","v":840},"cm2","U.S. EPA/ORD 1992"]
["Duration of Exposure","T_min",60,"minutes","Scenario parameter"]
[null,"T_hr",{"$f":"C8/60","v":1},"hours","Eq"]
["Body weight","BW",{"$f":"A02a!$C$39","v":70},"kg","ICRP 1975"]
["Water Solubility (mg/mL)","WS",{"$f":"'B01'!$C$10/1000","v":3.4300000000000003E-3},"mg/mL"]
["Toxic Equivalency Factor for formulation:  (See risk assessment if this has a value other than 1.)","TEF"]
[null,"Central ",{"$f":"'A01'!C$24","v":1},"Unitless","Worksheet A01"]
[null,"Lower ",{"$f":"'A01'!C$25","v":1},null,"Worksheet A01"]
[null,"Upper ",{"$f":"'A01'!C$26","v":1},null,"Worksheet A01"]
["Dermal permeability","Kp"]
[null,"Central ",{"$f":"'B01'!$C$14","v":2.3000000000000001E-4},"cm/hour"]
[null,"Lower ",{"$f":"'B01'!$C$15","v":1.3999999999999999E-4}]
[null,"Upper ",{"$f":"'B01'!$C$16","v":3.8999999999999999E-4}]
["Absorbed Dose","Dose","Kp × WS × T_hr × SA x TEF ÷ BW"]
[null,"Central ",{"$f":"C17*C$11*C$9*C$7*C13/C$10","v":9.4668000000000006E-6},"mg/kg","Eq"]
[null,"Lower ",{"$f":"C18*C$11*C$9*C$7*C14/C$10","v":5.7624000000000001E-6},"mg/kg","Eq"]
[null,"Upper ",{"$f":"C19*C$11*C$9*C$7*C15/C$10","v":1.6052400000000002E-5},"mg/kg","Eq"]

{"sheet":"C02c","index":23,"n_rows":23,"n_cols":5,"rows_kept":23,"cut":false,"hidden":false,"merged":[[11,0,14,0],[15,0,18,0],[19,0,22,0],[0,0,0,4],[1,1,1,3],[2,1,2,3],[3,1,3,3],[4,1,4,3],[7,0,8,0]]}
["Dermal Exposure Assessment for a Granular Exposure Using Zero-Order Absorption, Worker, Surface Area, Hands, for 480 minute(s)"]
["Short Title","Contaminated Gloves, 1 day",null,null,"DrmZrGran"]
["Receptor","Worker"]
["Duration","Acute"]
["Surface Contaminated","Surface Area, Hands"]
["Parameter/Assumption","Code / Range","Equation/   Value","Units","Reference/Designation"]
["Surface Area","SA",{"$f":"A02a!$C$40","v":840},"cm2","U.S. EPA/ORD 1992"]
["Duration of Exposure","T_min",480,"minutes","Scenario parameter"]
[null,"T_hr",{"$f":"C8/60","v":8},"hours","Eq"]
["Body weight","BW",{"$f":"A02a!$C$39","v":70},"kg","ICRP 1975"]
["Water Solubility (mg/mL)","WS",{"$f":"'B01'!$C$10/1000","v":3.4300000000000003E-3},"mg/mL"]
["Toxic Equivalency Factor for formulation:  (See risk assessment if this has a value other than 1.)","TEF"]
[null,"Central ",{"$f":"'A01'!C$24","v":1},"Unitless","Worksheet A01"]
[null,"Lower ",{"$f":"'A01'!C$25","v":1},null,"Worksheet A01"]
[null,"Upper ",{"$f":"'A01'!C$26","v":1},null,"Worksheet A01"]
["Dermal permeability","Kp"]
[null,"Central ",{"$f":"'B01'!$C$14","v":2.3000000000000001E-4},"cm/hour"]
[null,"Lower ",{"$f":"'B01'!$C$15","v":1.3999999999999999E-4}]
[null,"Upper ",{"$f":"'B01'!$C$16","v":3.8999999999999999E-4}]
["Absorbed Dose","Dose","Kp × WS × T_hr × SA x TEF ÷ BW"]
[null,"Central ",{"$f":"C17*C$11*C$9*C$7*C13/C$10","v":7.5734400000000005E-5},"mg/kg","Eq"]
[null,"Lower ",{"$f":"C18*C$11*C$9*C$7*C14/C$10","v":4.6099200000000001E-5},"mg/kg","Eq"]
[null,"Upper ",{"$f":"C19*C$11*C$9*C$7*C15/C$10","v":1.2841920000000002E-4},"mg/kg","Eq"]

{"sheet":"D01","index":24,"n_rows":20,"n_cols":5,"rows_kept":20,"cut":false,"hidden":false,"merged":[[16,0,19,0],[0,0,0,4],[2,1,2,3],[4,1,4,3],[8,0,11,0],[12,0,15,0]]}
["Consumption of Bait by a Small Child"]
["Short Title","Consumption of bait by child",null,null,"BaitChild"]
["Receptor","Child"]
["Duration","Acute"]
["Material consumed","Bait"]
["Parameter/Assumption","Code / Range","Equation/   Value","Units","Reference/Designation"]
["Proportion a.i. in bait","PerCentAI",{"$f":"'A01'!PerCentAI","v":5.0000000000000002E-5},"proportion a.i.","Worksheet A01"]
["Body weight","BW",13.5,"kg","Scenario parameter"]
["Amount consumed (mouthful)","Amnt"]
[null,"Central ",8.1999999999999993,"grams","Ratnapalan et al. 2003"]
[null,"Lower ",5.5]
[null,"Upper ",10.9]
["Toxic Equivalency Factor for formulation:  (See risk assessment if this has a value other than 1.)","TEF"]
[null,"Central ",{"$f":"'A01'!C$24","v":1},"Unitless","Worksheet A01"]
[null,"Lower ",{"$f":"'A01'!C$25","v":1},null,"Worksheet A01"]
[null,"Upper ",{"$f":"'A01'!C$26","v":1},null,"Worksheet A01"]
["Dose","Dose","Amnt   ×  PerCentAI × 1000 mg/g × TEF / BW"]
[null,"Central",{"$f":"C$7* C10* 1000 *  C14/C$8","v":3.0370370370370367E-2},"mg/kg bw","Eq"]
[null,"Lower",{"$f":"C$7* C11* 1000 *  C15/C$8","v":2.0370370370370372E-2},null,"Eq"]
[null,"Upper",{"$f":"C$7* C12* 1000 *  C16/C$8","v":4.0370370370370376E-2},null,"Eq"]

{"sheet":"D02","index":25,"n_rows":19,"n_cols":5,"rows_kept":19,"cut":false,"hidden":false,"merged":[[15,0,18,0],[0,0,0,4],[1,1,1,3],[2,1,2,3],[5,0,8,0],[10,0,13,0]]}
["Consumption of contaminated water by Child, Accidental Spill "]
["Short Title","Accidental Spill",null,null,"WatAmntV6"]
["Receptor","Child"]
["Duration","Acute",null,null,"Scenario parameter"]
["Parameter/Assumption","Code / Range","Equation/   Value","Units","Reference/Designation"]
["Concentration in water","ConcWat"]
[null,"Central ",{"$f":"B04b!Acute_C","v":6.8039999999999995E-4},"mg/L","='B04b'!Acute_C"]
[null,"Lower ",{"$f":"B04b!Acute_L","v":4.5360000000000002E-4},null,"='B04b'!Acute_L"]
[null,"Upper ",{"$f":"B04b!Acute_U","v":9.0720000000000004E-4},null,"='B04b'!Acute_U"]
["Receptor"]
["Amount of water consumed in one day","Amnt"]
[null,"Central ",{"$f":"'A03'!$E$44","v":1},"liters/day","U.S. EPA/ORD 1996"]
[null,"Lower ",{"$f":"'A03'!$E$45","v":0.61},null,"U.S. EPA/ORD 1996"]
[null,"Upper ",{"$f":"'A03'!$E$46","v":1.5},null,"U.S. EPA/ORD 1996"]
["Body weight","BW",{"$f":"A02a!$C$28","v":13.3},"kg","U.S. EPA/ORD 1996"]
["Dose","Dose","ConcWat  × Amnt ÷ BW"]
[null,"Central ",{"$f":"C7*C12/C$15","v":5.1157894736842096E-5},"mg/kg","Eq"]
[null,"Lower ",{"$f":"C8*C13/C$15","v":2.0804210526315788E-5},"mg/kg","Eq"]
[null,"Upper ",{"$f":"C9*C14/C$15","v":1.0231578947368422E-4},"mg/kg","Eq"]

{"sheet":"D03a","index":26,"n_rows":34,"n_cols":5,"rows_kept":34,"cut":false,"hidden":false,"merged":[[15,0,18,0],[20,0,23,0],[24,0,27,0],[29,0,32,0],[0,0,0,4],[1,1,1,3],[2,1,2,3],[3,1,3,3],[6,0,9,0],[12,0,14,0]]}
["Consumption of Contaminated Fish (Accidental Spill), Adult Male, acute exposure"]
["Short Title","Fish consumption",null,null,"FishAmntV6"]
["Receptor","Adult Male"]
["Duration","acute"]
["Parameter/Assumption","Code / Range","Equation/   Value","Units","Reference/Designation"]
["Water"]
["Concentration in water","ConcWat","ApR × WCR"]
[null,"Central ",{"$f":"B04b!Acute_C","v":6.8039999999999995E-4},"mg/L","='B04b'!Acute_C"]
[null,"Lower ",{"$f":"B04b!Acute_L","v":4.5360000000000002E-4},null,"='B04b'!Acute_L"]
[null,"Upper ",{"$f":"B04b!Acute_U","v":9.0720000000000004E-4},null,"='B04b'!Acute_U"]
["Fish"]
["Bioconcentration factor","BCF"]
[null,"Central ",{"$f":"'B01'!$C$4","v":2.4079999999999999},"L/kg"]
[null,"Lower ",{"$f":"'B01'!$C$4","v":2.4079999999999999}]
[null,"Upper ",{"$f":"'B01'!$C$4","v":2.4079999999999999}]
["Concentration in fish","ConcFish","ConcWat × BCF"]
[null,"Central ",{"$f":"C8*C13","v":1.6384031999999997E-3},"mg/kg","Eq"]
[null,"Lower ",{"$f":"C9*C14","v":1.0922688E-3},null,"Eq"]
[null,"Upper ",{"$f":"C10*C15","v":2.1845376000000001E-3},null,"Eq"]
["Receptor"]
["Amount of fish consumed","Amnt"]
[null,"Central ",{"$f":"'A03'!$E$20","v":0.158},"kg/day","Ruffle et al. 1994"]
[null,"Lower ",{"$f":"'A03'!$E$20","v":0.158},null,"Ruffle et al. 1994"]
[null,"Upper ",{"$f":"'A03'!$E$20","v":0.158},null,"Ruffle et al. 1994"]
["Toxic Equivalency Factor for formulation:  (See risk assessment if this has a value other than 1.)","TEF"]
[null,"Central ",{"$f":"'A01'!C$24","v":1},"Unitless","Worksheet A01"]
[null,"Lower ",{"$f":"'A01'!C$25","v":1},null,"Worksheet A01"]
[null,"Upper ",{"$f":"'A01'!C$26","v":1},null,"Worksheet A01"]
["Body weight","BW",{"$f":"A02a!$C$8","v":70},"kg","ICRP 1975"]
["Dose","Dose","ConcFish× Amnt x TEF ÷ BW"]
[null,"Central ",{"$f":"C17*C22*C26/C$29","v":3.6981100799999991E-6},"mg/kg","Eq"]
[null,"Lower ",{"$f":"C18*C23*C27/C$29","v":2.4654067200000004E-6},"mg/kg","Eq"]
[null,"Upper ",{"$f":"C19*C24*C28/C$29","v":4.9308134400000008E-6},"mg/kg","Eq"]
[null,null,null,null,"FishAmntV6"]

{"sheet":"D03b","index":27,"n_rows":34,"n_cols":5,"rows_kept":34,"cut":false,"hidden":false,"merged":[[15,0,18,0],[20,0,23,0],[24,0,27,0],[29,0,32,0],[0,0,0,4],[1,1,1,3],[2,1,2,3],[3,1,3,3],[6,0,9,0],[12,0,14,0]]}
["Consumption of Contaminated Fish (Accidental Spill), Subsistence Populations, acute exposure"]
["Short Title","Fish consumption",null,null,"FishAmntV6"]
["Receptor","Subsistence Populations"]
["Duration","acute"]
["Parameter/Assumption","Code / Range","Equation/   Value","Units","Reference/Designation"]
["Water"]
["Concentration in water","ConcWat","ApR × WCR"]
[null,"Central ",{"$f":"B04b!Acute_C","v":6.8039999999999995E-4},"mg/L","='B04b'!Acute_C"]
[null,"Lower ",{"$f":"B04b!Acute_L","v":4.5360000000000002E-4},null,"='B04b'!Acute_L"]
[null,"Upper ",{"$f":"B04b!Acute_U","v":9.0720000000000004E-4},null,"='B04b'!Acute_U"]
["Fish"]
["Bioconcentration factor","BCF"]
[null,"Central ",{"$f":"'B01'!$C$4","v":2.4079999999999999},"L/kg"]
[null,"Lower ",{"$f":"'B01'!$C$4","v":2.4079999999999999}]
[null,"Upper ",{"$f":"'B01'!$C$4","v":2.4079999999999999}]
["Concentration in fish","ConcFish","ConcWat × BCF"]
[null,"Central ",{"$f":"C8*C13","v":1.6384031999999997E-3},"mg/kg","Eq"]
[null,"Lower ",{"$f":"C9*C14","v":1.0922688E-3},null,"Eq"]
[null,"Upper ",{"$f":"C10*C15","v":2.1845376000000001E-3},null,"Eq"]
["Receptor"]
["Amount of fish consumed","Amnt"]
[null,"Central ",{"$f":"'A03'!$E$35","v":0.77},"kg/day","U.S. EPA/ORD 1993"]
[null,"Lower ",{"$f":"'A03'!$E$35","v":0.77},null,"U.S. EPA/ORD 1993"]
[null,"Upper ",{"$f":"'A03'!$E$35","v":0.77},null,"U.S. EPA/ORD 1993"]
["Toxic Equivalency Factor for formulation:  (See risk assessment if this has a value other than 1.)","TEF"]
[null,"Central ",{"$f":"'A01'!C$24","v":1},"Unitless","Worksheet A01"]
[null,"Lower ",{"$f":"'A01'!C$25","v":1},null,"Worksheet A01"]
[null,"Upper ",{"$f":"'A01'!C$26","v":1},null,"Worksheet A01"]
["Body weight","BW",{"$f":"A02a!$C$9","v":70},"kg","ICRP 1975"]
["Dose","Dose","ConcFish× Amnt x TEF ÷ BW"]
[null,"Central ",{"$f":"C17*C22*C26/C$29","v":1.8022435199999994E-5},"mg/kg","Eq"]
[null,"Lower ",{"$f":"C18*C23*C27/C$29","v":1.20149568E-5},"mg/kg","Eq"]
[null,"Upper ",{"$f":"C19*C24*C28/C$29","v":2.40299136E-5},"mg/kg","Eq"]
[null,null,null,null,"FishAmntV6"]

{"sheet":"D04","index":28,"n_rows":31,"n_cols":5,"rows_kept":31,"cut":false,"hidden":false,"merged":[[27,0,30,0],[0,0,0,4],[1,1,1,3],[2,1,2,3],[3,1,3,3],[4,1,4,3],[8,0,9,0],[11,0,14,0],[12,3,14,3],[15,0,18,0],[19,0,22,0],[23,0,26,0]]}
["Swimming Exposure Assessment Using Zero-Order Absorption, Adult Female, Surface Area, Whole body, for 60 minute(s)"]
["Short Title","Swimming",null,null,"DrmZrSwm"]
["Receptor","Adult Female"]
["Duration","Acute"]
["Surface Contaminated","Surface Area, Whole body"]
["Parameter/Assumption","Code / Range","Equation/   Value","Units","Reference/Designation"]
["Application Rate","ApRt",{"$f":"'A01'!ApRt_C","v":6.2500000000000001E-4},"lb/acre","Worksheet A01"]
["Surface Area","SA",{"$f":"A02a!$C$7","v":16900},"cm2","U.S. EPA/ORD 1997"]
["Duration of Exposure","T_min",{"$f":"'A01'!C$22","v":60},"minutes","Worksheet A01"]
[null,"T_hr",{"$f":"C9/60","v":1},"hours","Eq"]
["Body weight","BW",{"$f":"A02a!$C$4","v":64},"kg","U.S. EPA/ORD 1985"]
["Water contamination rate","WCR"]
[null,"Central ",{"$f":"B04Rt!$C$4","v":2E-3},"mg/L per lb/acre"]
[null,"Lower ",{"$f":"B04Rt!$C$5","v":2.0000000000000001E-4}]
[null,"Upper ",{"$f":"B04Rt!$C$6","v":0.01}]
["Concentration in water in mg/mL","ConcWat","ApR × WCR / 1000"]
[null,"Central ",{"$f":"C$7*C13/1000","v":1.25E-9},"mg/mL","Eq"]
[null,"Lower ",{"$f":"C$7*C14/1000","v":1.2500000000000003E-10},null,"Eq"]
[null,"Upper ",{"$f":"C$7*C15/1000","v":6.2500000000000005E-9},null,"Eq"]
["Toxic Equivalency Factor for formulation:  (See risk assessment if this has a value other than 1.)","TEF"]
[null,"Central ",{"$f":"'A01'!C$24","v":1},"Unitless","Worksheet A01"]
[null,"Lower ",{"$f":"'A01'!C$25","v":1},null,"Worksheet A01"]
[null,"Upper ",{"$f":"'A01'!C$26","v":1},null,"Worksheet A01"]
["Dermal permeability","Kp"]
[null,"Central ",{"$f":"'B01'!$C$14","v":2.3000000000000001E-4},"cm/hour"]
[null,"Lower ",{"$f":"'B01'!$C$15","v":1.3999999999999999E-4}]
[null,"Upper ",{"$f":"'B01'!$C$16","v":3.8999999999999999E-4}]
["Absorbed Dose","Dose","Kp × Conc × T_hr × SA × TEF ÷ BW"]
[null,"Central ",{"$f":"C25*C17*C$10*C$8*C21/C$11","v":7.5917968750000006E-11},"mg/kg"]
[null,"Lower ",{"$f":"C26*C18*C$10*C$8*C22/C$11","v":4.6210937500000014E-12},"mg/kg"]
[null,"Upper ",{"$f":"C27*C19*C$10*C$8*C23/C$11","v":6.4365234374999997E-10},"mg/kg"]

{"sheet":"D05","index":29,"n_rows":19,"n_cols":5,"rows_kept":19,"cut":false,"hidden":false,"merged":[[15,0,18,0],[0,0,0,4],[1,1,1,3],[2,1,2,3],[5,0,8,0],[10,0,13,0]]}
["Consumption of contaminated water by Child, Peak Conentrations "]
["Short Title","Peak Conentrations",null,null,"WatAmntV6"]
["Receptor","Child"]
["Duration","Acute",null,null,"Scenario parameter"]
["Parameter/Assumption","Code / Range","Equation/   Value","Units","Reference/Designation"]
["Concentration in water","ConcWat"]
[null,"Central ",{"$f":"B04a!Acute_C","v":1.2500000000000001E-6},"mg/L","='B04a'!Acute_C"]
[null,"Lower ",{"$f":"B04a!Acute_L","v":1.2500000000000002E-7},null,"='B04a'!Acute_L"]
[null,"Upper ",{"$f":"B04a!Acute_U","v":6.2500000000000003E-6},null,"='B04a'!Acute_U"]
["Receptor"]
["Amount of water consumed in one day","Amnt"]
[null,"Central ",{"$f":"'A03'!$E$44","v":1},"liters/day","U.S. EPA/ORD 1996"]
[null,"Lower ",{"$f":"'A03'!$E$45","v":0.61},null,"U.S. EPA/ORD 1996"]
[null,"Upper ",{"$f":"'A03'!$E$46","v":1.5},null,"U.S. EPA/ORD 1996"]
["Body weight","BW",{"$f":"A02a!$C$28","v":13.3},"kg","U.S. EPA/ORD 1996"]
["Dose","Dose","ConcWat  × Amnt ÷ BW"]
[null,"Central ",{"$f":"C7*C12/C$15","v":9.3984962406015038E-8},"mg/kg","Eq"]
[null,"Lower ",{"$f":"C8*C13/C$15","v":5.7330827067669179E-9},"mg/kg","Eq"]
[null,"Upper ",{"$f":"C9*C14/C$15","v":7.0488721804511279E-7},"mg/kg","Eq"]

{"sheet":"D06a","index":30,"n_rows":34,"n_cols":5,"rows_kept":34,"cut":false,"hidden":false,"merged":[[15,0,18,0],[20,0,23,0],[24,0,27,0],[29,0,32,0],[0,0,0,4],[1,1,1,3],[2,1,2,3],[3,1,3,3],[6,0,9,0],[12,0,14,0]]}
["Consumption of Contaminated Fish (Peak Exposure), Adult Male, acute exposure"]
["Short Title","Fish consumption",null,null,"FishAmntV6"]
["Receptor","Adult Male"]
["Duration","acute"]
["Parameter/Assumption","Code / Range","Equation/   Value","Units","Reference/Designation"]
["Water"]
["Concentration in water","ConcWat","ApR × WCR"]
[null,"Central ",{"$f":"B04a!Acute_C","v":1.2500000000000001E-6},"mg/L","='B04a'!Acute_C"]
[null,"Lower ",{"$f":"B04a!Acute_L","v":1.2500000000000002E-7},null,"='B04a'!Acute_L"]
[null,"Upper ",{"$f":"B04a!Acute_U","v":6.2500000000000003E-6},null,"='B04a'!Acute_U"]
["Fish"]
["Bioconcentration factor","BCF"]
[null,"Central ",{"$f":"'B01'!$C$4","v":2.4079999999999999},"L/kg"]
[null,"Lower ",{"$f":"'B01'!$C$4","v":2.4079999999999999}]
[null,"Upper ",{"$f":"'B01'!$C$4","v":2.4079999999999999}]
["Concentration in fish","ConcFish","ConcWat × BCF"]
[null,"Central ",{"$f":"C8*C13","v":3.01E-6},"mg/kg","Eq"]
[null,"Lower ",{"$f":"C9*C14","v":3.0100000000000006E-7},null,"Eq"]
[null,"Upper ",{"$f":"C10*C15","v":1.505E-5},null,"Eq"]
["Receptor"]
["Amount of fish consumed","Amnt"]
[null,"Central ",{"$f":"'A03'!$E$20","v":0.158},"kg/day","Ruffle et al. 1994"]
[null,"Lower ",{"$f":"'A03'!$E$20","v":0.158},null,"Ruffle et al. 1994"]
[null,"Upper ",{"$f":"'A03'!$E$20","v":0.158},null,"Ruffle et al. 1994"]
["Toxic Equivalency Factor for formulation:  (See risk assessment if this has a value other than 1.)","TEF"]
[null,"Central ",{"$f":"'A01'!C$24","v":1},"Unitless","Worksheet A01"]
[null,"Lower ",{"$f":"'A01'!C$25","v":1},null,"Worksheet A01"]
[null,"Upper ",{"$f":"'A01'!C$26","v":1},null,"Worksheet A01"]
["Body weight","BW",{"$f":"A02a!$C$8","v":70},"kg","ICRP 1975"]
["Dose","Dose","ConcFish× Amnt x TEF ÷ BW"]
[null,"Central ",{"$f":"C17*C22*C26/C$29","v":6.7940000000000003E-9},"mg/kg","Eq"]
[null,"Lower ",{"$f":"C18*C23*C27/C$29","v":6.7940000000000016E-10},"mg/kg","Eq"]
[null,"Upper ",{"$f":"C19*C24*C28/C$29","v":3.3969999999999999E-8},"mg/kg","Eq"]
[null,null,null,null,"FishAmntV6"]

{"sheet":"D06b","index":31,"n_rows":34,"n_cols":5,"rows_kept":34,"cut":false,"hidden":false,"merged":[[15,0,18,0],[20,0,23,0],[24,0,27,0],[29,0,32,0],[0,0,0,4],[1,1,1,3],[2,1,2,3],[3,1,3,3],[6,0,9,0],[12,0,14,0]]}
["Consumption of Contaminated Fish (Peak Exposure), Subsistence Populations, acute exposure"]
["Short Title","Fish consumption",null,null,"FishAmntV6"]
["Receptor","Subsistence Populations"]
["Duration","acute"]
["Parameter/Assumption","Code / Range","Equation/   Value","Units","Reference/Designation"]
["Water"]
["Concentration in water","ConcWat","ApR × WCR"]
[null,"Central ",{"$f":"B04a!Acute_C","v":1.2500000000000001E-6},"mg/L","='B04a'!Acute_C"]
[null,"Lower ",{"$f":"B04a!Acute_L","v":1.2500000000000002E-7},null,"='B04a'!Acute_L"]
[null,"Upper ",{"$f":"B04a!Acute_U","v":6.2500000000000003E-6},null,"='B04a'!Acute_U"]
["Fish"]
["Bioconcentration factor","BCF"]
[null,"Central ",{"$f":"'B01'!$C$4","v":2.4079999999999999},"L/kg"]
[null,"Lower ",{"$f":"'B01'!$C$4","v":2.4079999999999999}]
[null,"Upper ",{"$f":"'B01'!$C$4","v":2.4079999999999999}]
["Concentration in fish","ConcFish","ConcWat × BCF"]
[null,"Central ",{"$f":"C8*C13","v":3.01E-6},"mg/kg","Eq"]
[null,"Lower ",{"$f":"C9*C14","v":3.0100000000000006E-7},null,"Eq"]
[null,"Upper ",{"$f":"C10*C15","v":1.505E-5},null,"Eq"]
["Receptor"]
["Amount of fish consumed","Amnt"]
[null,"Central ",{"$f":"'A03'!$E$35","v":0.77},"kg/day","U.S. EPA/ORD 1993"]
[null,"Lower ",{"$f":"'A03'!$E$35","v":0.77},null,"U.S. EPA/ORD 1993"]
[null,"Upper ",{"$f":"'A03'!$E$35","v":0.77},null,"U.S. EPA/ORD 1993"]
["Toxic Equivalency Factor for formulation:  (See risk assessment if this has a value other than 1.)","TEF"]
[null,"Central ",{"$f":"'A01'!C$24","v":1},"Unitless","Worksheet A01"]
[null,"Lower ",{"$f":"'A01'!C$25","v":1},null,"Worksheet A01"]
[null,"Upper ",{"$f":"'A01'!C$26","v":1},null,"Worksheet A01"]
["Body weight","BW",{"$f":"A02a!$C$9","v":70},"kg","ICRP 1975"]
["Dose","Dose","ConcFish× Amnt x TEF ÷ BW"]
[null,"Central ",{"$f":"C17*C22*C26/C$29","v":3.3109999999999997E-8},"mg/kg","Eq"]
[null,"Lower ",{"$f":"C18*C23*C27/C$29","v":3.3110000000000007E-9},"mg/kg","Eq"]
[null,"Upper ",{"$f":"C19*C24*C28/C$29","v":1.6555000000000002E-7},"mg/kg","Eq"]
[null,null,null,null,"FishAmntV6"]

{"sheet":"D07","index":32,"n_rows":19,"n_cols":5,"rows_kept":19,"cut":false,"hidden":false,"merged":[[15,0,18,0],[0,0,0,4],[1,1,1,3],[2,1,2,3],[5,0,8,0],[10,0,13,0]]}
["Consumption of contaminated water by Adult Male, Longer-term Conentrations "]
["Short Title","Longer-term Conentrations",null,null,"WatAmntV6"]
["Receptor","Adult Male"]
["Duration","Chronic",null,null,"Scenario parameter"]
["Parameter/Assumption","Code / Range","Equation/   Value","Units","Reference/Designation"]
["Concentration in water","ConcWat"]
[null,"Central ",{"$f":"B04a!Chronic_C","v":3.1250000000000005E-8},"mg/L","='B04a'!Chronic_C"]
[null,"Lower ",{"$f":"B04a!Chronic_L","v":1.25E-9},null,"='B04a'!Chronic_L"]
[null,"Upper ",{"$f":"B04a!Chronic_U","v":1.8749999999999998E-7},null,"='B04a'!Chronic_U"]
["Receptor"]
["Amount of water consumed in one day","Amnt"]
[null,"Central ",{"$f":"'A03'!$E$31","v":2},"liters/day","U.S. EPA/ORD 1996"]
[null,"Lower ",{"$f":"'A03'!$E$32","v":1.4},null,"U.S. EPA/ORD 1996"]
[null,"Upper ",{"$f":"'A03'!$E$33","v":2.4},null,"U.S. EPA/ORD 1996"]
["Body weight","BW",{"$f":"A02a!$C$8","v":70},"kg","ICRP 1975"]
["Dose","Dose","ConcWat  × Amnt ÷ BW"]
[null,"Central ",{"$f":"C7*C12/C$15","v":8.9285714285714298E-10},"mg/kg","Eq"]
[null,"Lower ",{"$f":"C8*C13/C$15","v":2.5000000000000001E-11},"mg/kg","Eq"]
[null,"Upper ",{"$f":"C9*C14/C$15","v":6.4285714285714279E-9},"mg/kg","Eq"]

{"sheet":"D08a","index":33,"n_rows":34,"n_cols":5,"rows_kept":34,"cut":false,"hidden":false,"merged":[[15,0,18,0],[20,0,23,0],[24,0,27,0],[29,0,32,0],[0,0,0,4],[1,1,1,3],[2,1,2,3],[3,1,3,3],[6,0,9,0],[12,0,14,0]]}
["Consumption of Contaminated Fish (Longer-term), Adult Male, chronic exposure"]
["Short Title","Fish consumption",null,null,"FishAmntV6"]
["Receptor","Adult Male"]
["Duration","chronic"]
["Parameter/Assumption","Code / Range","Equation/   Value","Units","Reference/Designation"]
["Water"]
["Concentration in water","ConcWat","ApR × WCR"]
[null,"Central ",{"$f":"B04a!Chronic_C","v":3.1250000000000005E-8},"mg/L","='B04a'!Chronic_C"]
[null,"Lower ",{"$f":"B04a!Chronic_L","v":1.25E-9},null,"='B04a'!Chronic_L"]
[null,"Upper ",{"$f":"B04a!Chronic_U","v":1.8749999999999998E-7},null,"='B04a'!Chronic_U"]
["Fish"]
["Bioconcentration factor","BCF"]
[null,"Central ",{"$f":"'B01'!$C$5","v":2.4079999999999999},"L/kg"]
[null,"Lower ",{"$f":"'B01'!$C$5","v":2.4079999999999999}]
[null,"Upper ",{"$f":"'B01'!$C$5","v":2.4079999999999999}]
["Concentration in fish","ConcFish","ConcWat × BCF"]
[null,"Central ",{"$f":"C8*C13","v":7.5250000000000015E-8},"mg/kg","Eq"]
[null,"Lower ",{"$f":"C9*C14","v":3.0100000000000002E-9},null,"Eq"]
[null,"Upper ",{"$f":"C10*C15","v":4.5149999999999993E-7},null,"Eq"]
["Receptor"]
["Amount of fish consumed","Amnt"]
[null,"Central ",{"$f":"'A03'!$E$19","v":0.01},"kg/day","U.S. EPA/ORD 1996"]
[null,"Lower ",{"$f":"'A03'!$E$19","v":0.01},null,"U.S. EPA/ORD 1996"]
[null,"Upper ",{"$f":"'A03'!$E$19","v":0.01},null,"U.S. EPA/ORD 1996"]
["Toxic Equivalency Factor for formulation:  (See risk assessment if this has a value other than 1.)","TEF"]
[null,"Central ",{"$f":"'A01'!C$24","v":1},"Unitless","Worksheet A01"]
[null,"Lower ",{"$f":"'A01'!C$25","v":1},null,"Worksheet A01"]
[null,"Upper ",{"$f":"'A01'!C$26","v":1},null,"Worksheet A01"]
["Body weight","BW",{"$f":"A02a!$C$8","v":70},"kg","ICRP 1975"]
["Dose","Dose","ConcFish× Amnt x TEF ÷ BW"]
[null,"Central ",{"$f":"C17*C22*C26/C$29","v":1.0750000000000002E-11},"mg/kg","Eq"]
[null,"Lower ",{"$f":"C18*C23*C27/C$29","v":4.3000000000000009E-13},"mg/kg","Eq"]
[null,"Upper ",{"$f":"C19*C24*C28/C$29","v":6.4499999999999997E-11},"mg/kg","Eq"]
[null,null,null,null,"FishAmntV6"]

{"sheet":"D08b","index":34,"n_rows":34,"n_cols":5,"rows_kept":34,"cut":false,"hidden":false,"merged":[[15,0,18,0],[20,0,23,0],[24,0,27,0],[29,0,32,0],[0,0,0,4],[1,1,1,3],[2,1,2,3],[3,1,3,3],[6,0,9,0],[12,0,14,0]]}
["Consumption of Contaminated Fish (Longer-term), Subsistence Populations, chronic exposure"]
["Short Title","Fish consumption",null,null,"FishAmntV6"]
["Receptor","Subsistence Populations"]
["Duration","chronic"]
["Parameter/Assumption","Code / Range","Equation/   Value","Units","Reference/Designation"]
["Water"]
["Concentration in water","ConcWat","ApR × WCR"]
[null,"Central ",{"$f":"B04a!Chronic_C","v":3.1250000000000005E-8},"mg/L","='B04a'!Chronic_C"]
[null,"Lower ",{"$f":"B04a!Chronic_L","v":1.25E-9},null,"='B04a'!Chronic_L"]
[null,"Upper ",{"$f":"B04a!Chronic_U","v":1.8749999999999998E-7},null,"='B04a'!Chronic_U"]
["Fish"]
["Bioconcentration factor","BCF"]
[null,"Central ",{"$f":"'B01'!$C$5","v":2.4079999999999999},"L/kg"]
[null,"Lower ",{"$f":"'B01'!$C$5","v":2.4079999999999999}]
[null,"Upper ",{"$f":"'B01'!$C$5","v":2.4079999999999999}]
["Concentration in fish","ConcFish","ConcWat × BCF"]
[null,"Central ",{"$f":"C8*C13","v":7.5250000000000015E-8},"mg/kg","Eq"]
[null,"Lower ",{"$f":"C9*C14","v":3.0100000000000002E-9},null,"Eq"]
[null,"Upper ",{"$f":"C10*C15","v":4.5149999999999993E-7},null,"Eq"]
["Receptor"]
["Amount of fish consumed","Amnt"]
[null,"Central ",{"$f":"'A03'!$E$34","v":8.1000000000000003E-2},"kg/day","U.S. EPA/ORD 1996"]
[null,"Lower ",{"$f":"'A03'!$E$34","v":8.1000000000000003E-2},null,"U.S. EPA/ORD 1996"]
[null,"Upper ",{"$f":"'A03'!$E$34","v":8.1000000000000003E-2},null,"U.S. EPA/ORD 1996"]
["Toxic Equivalency Factor for formulation:  (See risk assessment if this has a value other than 1.)","TEF"]
[null,"Central ",{"$f":"'A01'!C$24","v":1},"Unitless","Worksheet A01"]
[null,"Lower ",{"$f":"'A01'!C$25","v":1},null,"Worksheet A01"]
[null,"Upper ",{"$f":"'A01'!C$26","v":1},null,"Worksheet A01"]
["Body weight","BW",{"$f":"A02a!$C$9","v":70},"kg","ICRP 1975"]
["Dose","Dose","ConcFish× Amnt x TEF ÷ BW"]
[null,"Central ",{"$f":"C17*C22*C26/C$29","v":8.707500000000002E-11},"mg/kg","Eq"]
[null,"Lower ",{"$f":"C18*C23*C27/C$29","v":3.483E-12},"mg/kg","Eq"]
[null,"Upper ",{"$f":"C19*C24*C28/C$29","v":5.2244999999999999E-10},"mg/kg","Eq"]
[null,null,null,null,"FishAmntV6"]

{"sheet":"E01","index":35,"n_rows":11,"n_cols":6,"rows_kept":11,"cut":false,"hidden":false,"merged":[[0,0,0,5],[1,2,1,4],[2,0,3,0],[2,1,3,1],[2,2,2,4],[2,5,3,5]]}
["Worksheet E01: Summary of Worker Exposure Assessments"]
["Application Rate:",{"$f":"'A01'!ApRt_C","v":6.2500000000000001E-4}," lb a.i./acre",null,null,"E01aV5-1Rodent"]
["Scenario","Receptor","mg/kg/day or mg/kg/event",null,null,"Detail Worksheet"]
[null,null,"Central","Lower","Upper"]
["Accidental/Incidental Exposures"]
["Contaminated Gloves, 1 min.","Worker",{"$f":"'C02a'!Dose_C","v":1.5778E-7},{"$f":"'C02a'!Dose_L","v":9.6040000000000005E-8},{"$f":"'C02a'!Dose_U","v":2.6754000000000003E-7},"C02a"]
["Contaminated Gloves, 1 hour","Worker",{"$f":"'C02b'!Dose_C","v":9.4668000000000006E-6},{"$f":"'C02b'!Dose_L","v":5.7624000000000001E-6},{"$f":"'C02b'!Dose_U","v":1.6052400000000002E-5},"C02b"]
["Contaminated Gloves, 1 day","Worker",{"$f":"'C02c'!Dose_C","v":7.5734400000000005E-5},{"$f":"'C02c'!Dose_L","v":4.6099200000000001E-5},{"$f":"'C02c'!Dose_U","v":1.2841920000000002E-4},"C02c"]
["Poor Hygiene, 1 day","Worker",{"$f":"'C01b'!Dose_C","v":1.7708960940455306E-6},{"$f":"'C01b'!Dose_L","v":4.7931672437710469E-7},{"$f":"'C01b'!Dose_U","v":7.7890544300814521E-6},"C01b"]
["General Exposures"]
["Good Hygiene","Worker",{"$f":"'C01a'!Dose_C","v":9.2838085201773271E-7},{"$f":"'C01a'!Dose_L","v":3.2778112211750971E-7},{"$f":"'C01a'!Dose_U","v":3.3022274549125939E-6},"C01a"]

{"sheet":"E02","index":36,"n_rows":12,"n_cols":6,"rows_kept":12,"cut":false,"hidden":false,"merged":[[0,0,0,5],[1,2,1,4],[2,0,3,0],[2,1,3,1],[2,2,2,4],[2,5,3,5]]}
["Worksheet E01: Summary of Worker Hazard Quotients (Toxicity)"]
["Application Rate:",{"$f":"'A01'!ApRt_C","v":6.2500000000000001E-4}," lb a.i./acre",null,null,"E01aV5-1Rodent"]
["Scenario","Receptor","Hazard Quotients",null,null,"Toxicity Value"]
[null,null,"Central","Lower","Upper"]
["Accidental/Incidental Exposures"]
["Contaminated Gloves, 1 min.","Worker",{"$f":"'C02a'!$C$21/$F$6","v":5.259333333333333E-5},{"$f":"'C02a'!$C$22/$F$6","v":3.2013333333333334E-5},{"$f":"'C02a'!$C$23/$F$6","v":8.918000000000001E-5},{"$f":"'B02'!$E$4","v":3.0000000000000001E-3}]
["Contaminated Gloves, 1 hour","Worker",{"$f":"'C02b'!$C$21/$F$7","v":3.1556000000000002E-3},{"$f":"'C02b'!$C$22/$F$7","v":1.9208000000000001E-3},{"$f":"'C02b'!$C$23/$F$7","v":5.350800000000001E-3},{"$f":"'B02'!$E$4","v":3.0000000000000001E-3}]
["Contaminated Gloves, 1 day","Worker",{"$f":"'C02c'!$C$21/$F$8","v":2.5244800000000001E-2},{"$f":"'C02c'!$C$22/$F$8","v":1.5366400000000001E-2},{"$f":"'C02c'!$C$23/$F$8","v":4.2806400000000008E-2},{"$f":"'B02'!$E$4","v":3.0000000000000001E-3}]
["Poor Hygiene, 1 day","Worker",{"$f":"'C01b'!$C$50/$F$9","v":5.9029869801517686E-4},{"$f":"'C01b'!$C$51/$F$9","v":1.597722414590349E-4},{"$f":"'C01b'!$C$52/$F$9","v":2.5963514766938174E-3},{"$f":"'B02'!$E$4","v":3.0000000000000001E-3}]
["General Exposures"]
["Acute Toxicity","Worker",{"$f":"'C01a'!$C$50/$F$11","v":3.0946028400591092E-4},{"$f":"'C01a'!$C$51/$F$11","v":1.092603740391699E-4},{"$f":"'C01a'!$C$52/$F$11","v":1.1007424849708645E-3},{"$f":"'B02'!$E$4","v":3.0000000000000001E-3}]
["Chronic Toxicity","Worker",{"$f":"'C01a'!$C$50/$F$12","v":1.8567617040354652E-2},{"$f":"'C01a'!$C$51/$F$12","v":6.5556224423501935E-3},{"$f":"'C01a'!$C$52/$F$12","v":6.6044549098251873E-2},{"$f":"'B02'!$E$5","v":5.0000000000000002E-5}]

{"sheet":"E03","index":37,"n_rows":18,"n_cols":6,"rows_kept":18,"cut":false,"hidden":false,"merged":[[0,0,0,5],[1,2,1,4],[2,0,3,0],[2,1,3,1],[2,2,2,4],[2,5,3,5]]}
["Worksheet E03: Summary of Exposure Assessments for the General Public"]
["Application Rate:",{"$f":"'A01'!ApRt_C","v":6.2500000000000001E-4}," lb a.i./acre",null,null,"E03aV5Rodent"]
["Scenario","Receptor","mg/kg/day or mg/kg/event",null,null,"Detail Worksheet"]
[null,null,"Central","Lower","Upper"]
["Accidental Acute Exposures (dose in mg/kg/event)"]
["Consumption of Bait","Child",{"$f":"'D01'!Dose_C","v":3.0370370370370367E-2},{"$f":"'D01'!Dose_L","v":2.0370370370370372E-2},{"$f":"'D01'!Dose_U","v":4.0370370370370376E-2},"D01"]
["Water consumption (spill)","Child",{"$f":"'D02'!Dose_C","v":5.1157894736842096E-5},{"$f":"'D02'!Dose_L","v":2.0804210526315788E-5},{"$f":"'D02'!Dose_U","v":1.0231578947368422E-4},"D02"]
["Fish consumption (spill)","Adult Male",{"$f":"D03a!Dose_C","v":3.6981100799999991E-6},{"$f":"D03a!Dose_L","v":2.4654067200000004E-6},{"$f":"D03a!Dose_U","v":4.9308134400000008E-6},"D03a"]
["Fish consumption (spill)","Subsistence Populations",{"$f":"D03b!Dose_C","v":1.8022435199999994E-5},{"$f":"D03b!Dose_L","v":1.20149568E-5},{"$f":"D03b!Dose_U","v":2.40299136E-5},"D03b"]
["Non-Accidental Acute Exposures (dose in mg/kg/event)"]
["Swimming, one hour","Adult Female",{"$f":"'D04'!Dose_C","v":7.5917968750000006E-11},{"$f":"'D04'!Dose_L","v":4.6210937500000014E-12},{"$f":"'D04'!Dose_U","v":6.4365234374999997E-10},"D04"]
["Water consumption","Child",{"$f":"'D05'!Dose_C","v":9.3984962406015038E-8},{"$f":"'D05'!Dose_L","v":5.7330827067669179E-9},{"$f":"'D05'!Dose_U","v":7.0488721804511279E-7},"D05"]
["Fish consumption","Adult Male",{"$f":"D06a!Dose_C","v":6.7940000000000003E-9},{"$f":"D06a!Dose_L","v":6.7940000000000016E-10},{"$f":"D06a!Dose_U","v":3.3969999999999999E-8},"D06a"]
["Fish consumption","Subsistence Populations",{"$f":"D06b!Dose_C","v":3.3109999999999997E-8},{"$f":"D06b!Dose_L","v":3.3110000000000007E-9},{"$f":"D06b!Dose_U","v":1.6555000000000002E-7},"D06b"]
["Chronic/Longer Term Exposures (dose in mg/kg/day)"]
["Water consumption","Adult Male",{"$f":"'D07'!Dose_C","v":8.9285714285714298E-10},{"$f":"'D07'!Dose_L","v":2.5000000000000001E-11},{"$f":"'D07'!Dose_U","v":6.4285714285714279E-9},"D07"]
["Fish consumption","Adult Male",{"$f":"D08a!Dose_C","v":1.0750000000000002E-11},{"$f":"D08a!Dose_L","v":4.3000000000000009E-13},{"$f":"D08a!Dose_U","v":6.4499999999999997E-11},"D08a"]
["Fish consumption","Subsistence Populations",{"$f":"D08b!Dose_C","v":8.707500000000002E-11},{"$f":"D08b!Dose_L","v":3.483E-12},{"$f":"D08b!Dose_U","v":5.2244999999999999E-10},"D08b"]

{"sheet":"E04","index":38,"n_rows":18,"n_cols":6,"rows_kept":18,"cut":false,"hidden":false,"merged":[[0,0,0,5],[1,2,1,4],[2,0,3,0],[2,1,3,1],[2,2,2,4],[2,5,3,5]]}
["Worksheet E03: Summary of Hazard Quotients (Toxicity) for the General Public"]
["Application Rate:",{"$f":"'A01'!ApRt_C","v":6.2500000000000001E-4}," lb a.i./acre",null,null,"E03aV5Rodent"]
["Scenario","Receptor","Hazard Quotients",null,null,"Toxicity Value"]
[null,null,"Central","Lower","Upper"]
["Accidental Acute Exposures (dose in mg/kg/event)"]
["Consumption of Bait","Child",{"$f":"'D01'!$C$18/$F$6","v":10.123456790123456},{"$f":"'D01'!$C$19/$F$6","v":6.7901234567901243},{"$f":"'D01'!$C$20/$F$6","v":13.456790123456791},{"$f":"'B02'!$E$4","v":3.0000000000000001E-3}]
["Water consumption (spill)","Child",{"$f":"'D02'!$C$17/$F$7","v":1.7052631578947364E-2},{"$f":"'D02'!$C$18/$F$7","v":6.9347368421052626E-3},{"$f":"'D02'!$C$19/$F$7","v":3.4105263157894736E-2},{"$f":"'B02'!$E$4","v":3.0000000000000001E-3}]
["Fish consumption (spill)","Adult Male",{"$f":"D03a!$C$31/$F$8","v":1.2327033599999996E-3},{"$f":"D03a!$C$32/$F$8","v":8.2180224000000007E-4},{"$f":"D03a!$C$33/$F$8","v":1.6436044800000001E-3},{"$f":"'B02'!$E$4","v":3.0000000000000001E-3}]
["Fish consumption (spill)","Subsistence Populations",{"$f":"D03b!$C$31/$F$9","v":6.0074783999999977E-3},{"$f":"D03b!$C$32/$F$9","v":4.0049856000000002E-3},{"$f":"D03b!$C$33/$F$9","v":8.0099712000000003E-3},{"$f":"'B02'!$E$4","v":3.0000000000000001E-3}]
["Non-Accidental Acute Exposures (dose in mg/kg/event)"]
["Swimming, one hour","Adult Female",{"$f":"'D04'!$C$29/$F$11","v":2.5305989583333335E-8},{"$f":"'D04'!$C$30/$F$11","v":1.5403645833333337E-9},{"$f":"'D04'!$C$31/$F$11","v":2.1455078124999997E-7},{"$f":"'B02'!$E$4","v":3.0000000000000001E-3}]
["Water consumption","Child",{"$f":"'D05'!$C$17/$F$12","v":3.1328320802005012E-5},{"$f":"'D05'!$C$18/$F$12","v":1.9110275689223059E-6},{"$f":"'D05'!$C$19/$F$12","v":2.3496240601503758E-4},{"$f":"'B02'!$E$4","v":3.0000000000000001E-3}]
["Fish consumption","Adult Male",{"$f":"D06a!$C$31/$F$13","v":2.2646666666666667E-6},{"$f":"D06a!$C$32/$F$13","v":2.2646666666666672E-7},{"$f":"D06a!$C$33/$F$13","v":1.1323333333333332E-5},{"$f":"'B02'!$E$4","v":3.0000000000000001E-3}]
["Fish consumption","Subsistence Populations",{"$f":"D06b!$C$31/$F$14","v":1.1036666666666665E-5},{"$f":"D06b!$C$32/$F$14","v":1.1036666666666669E-6},{"$f":"D06b!$C$33/$F$14","v":5.5183333333333337E-5},{"$f":"'B02'!$E$4","v":3.0000000000000001E-3}]
["Chronic/Longer Term Exposures (dose in mg/kg/day)"]
["Water consumption","Adult Male",{"$f":"'D07'!$C$17/$F$16","v":1.7857142857142858E-5},{"$f":"'D07'!$C$18/$F$16","v":4.9999999999999998E-7},{"$f":"'D07'!$C$19/$F$16","v":1.2857142857142855E-4},{"$f":"'B02'!$E$5","v":5.0000000000000002E-5}]
["Fish consumption","Adult Male",{"$f":"D08a!$C$31/$F$17","v":2.1500000000000003E-7},{"$f":"D08a!$C$32/$F$17","v":8.6000000000000009E-9},{"$f":"D08a!$C$33/$F$17","v":1.2899999999999999E-6},{"$f":"'B02'!$E$5","v":5.0000000000000002E-5}]
["Fish consumption","Subsistence Populations",{"$f":"D08b!$C$31/$F$18","v":1.7415000000000004E-6},{"$f":"D08b!$C$32/$F$18","v":6.9660000000000003E-8},{"$f":"D08b!$C$33/$F$18","v":1.0448999999999999E-5},{"$f":"'B02'!$E$5","v":5.0000000000000002E-5}]

{"sheet":"F01a","index":39,"n_rows":28,"n_cols":5,"rows_kept":28,"cut":false,"hidden":false,"merged":[[24,0,27,0],[0,0,0,4],[2,1,2,3],[4,1,4,3],[8,0,10,0],[16,0,19,0],[20,0,23,0],[21,3,23,3]]}
["Consumption of Contaminated Bait, Mouse, Accidental Spill "]
["Short Title","Mouse, Accidental Spill",null,null,"BaitAlloBW_Ac"]
["Receptor","Mouse",null,null,"Scenario parameter"]
["Duration","Acute"]
["Material consumed","Bait"]
["Parameter/Assumption","Code / Range","Equation/   Value","Units","Reference/Designation"]
["Percent a.i. in bait","PerCentAI",{"$f":"'A01'!PerCentAI","v":5.0000000000000002E-5},"percent","Worksheet A01"]
["Body weight","BW",0.02,"kg","Scenario parameter"]
["Allometric coefficients for food consumption per day in grams and BW in grams"]
[null,"alpha",{"$f":"A02b!$C$69","v":0.621},null,"U.S. EPA/ORD 1993"]
[null,"beta",{"$f":"A02b!$C$70","v":0.58399999999999996},null,"U.S. EPA/ORD 1993"]
["Amount of food  consumed per day","Amnt",{"$f":"C10*((C8*1000)^C11)","v":3.571849220820428},"grams","Eq"]
["Proportion of diet as bait","PropC"]
[null,"Central ",{"$f":"'A01'!C36","v":0.3},"Unitless","Worksheet A01"]
[null,"Lower ",{"$f":"'A01'!C37","v":0.03},null,"Worksheet A01"]
[null,"Upper ",{"$f":"'A01'!C38","v":1},null,"Worksheet A01"]
["Consumption of Bait (unadjusted for a.i.)","Bait","(Amnt x  PropC )"]
[null,"Central ",{"$f":"C$12*C14","v":1.0715547662461284},"grams of bait"]
[null,"Lower ",{"$f":"C$12*C15","v":0.10715547662461283}]
[null,"Upper ",{"$f":"C$12*C16","v":3.571849220820428}]
["Amount of a.i. consumed","AmntAI","Bait x PerCentAI x 1000 mg/g)"]
[null,"Central ",{"$f":"C$7*C18*1000","v":5.3577738312306424E-2},"mg a.i.","Eq"]
[null,"Lower ",{"$f":"C$7*C19*1000","v":5.3577738312306422E-3},null,"Eq"]
[null,"Upper ",{"$f":"C$7*C20*1000","v":0.17859246104102139},null,"Eq"]
["Dose","Dose","AmntAI / BW"]
[null,"Central",{"$f":"C22/C$8","v":2.6788869156153212},"mg/kg bw","Eq"]
[null,"Lower",{"$f":"C23/C$8","v":0.26788869156153211},null,"Eq"]
[null,"Upper",{"$f":"C24/C$8","v":8.9296230520510687},null,"Eq"]

{"sheet":"F01b","index":40,"n_rows":28,"n_cols":5,"rows_kept":28,"cut":false,"hidden":false,"merged":[[24,0,27,0],[0,0,0,4],[2,1,2,3],[4,1,4,3],[8,0,10,0],[16,0,19,0],[20,0,23,0],[21,3,23,3]]}
["Consumption of Contaminated Bait, Squirrel, Accidental Spill "]
["Short Title","Squirrel",null,null,"BaitAlloBW_Ac"]
["Receptor","Squirrel",null,null,"Scenario parameter"]
["Duration","Acute"]
["Material consumed","Bait"]
["Parameter/Assumption","Code / Range","Equation/   Value","Units","Reference/Designation"]
["Percent a.i. in bait","PerCentAI",{"$f":"'A01'!PerCentAI","v":5.0000000000000002E-5},"percent","Worksheet A01"]
["Body weight","BW",0.15,"kg","Scenario parameter"]
["Allometric coefficients for food consumption per day in grams and BW in grams"]
[null,"alpha",{"$f":"A02b!$C$69","v":0.621},null,"U.S. EPA/ORD 1993"]
[null,"beta",{"$f":"A02b!$C$70","v":0.58399999999999996},null,"U.S. EPA/ORD 1993"]
["Amount of food  consumed per day","Amnt",{"$f":"C10*((C8*1000)^C11)","v":11.585876517407447},"grams","Eq"]
["Proportion of diet as bait","PropC"]
[null,"Central ",{"$f":"'A01'!C36","v":0.3},"Unitless","Worksheet A01"]
[null,"Lower ",{"$f":"'A01'!C37","v":0.03},null,"Worksheet A01"]
[null,"Upper ",{"$f":"'A01'!C38","v":1},null,"Worksheet A01"]
["Consumption of Bait (unadjusted for a.i.)","Bait","(Amnt x  PropC )"]
[null,"Central ",{"$f":"C$12*C14","v":3.4757629552222342},"grams of bait"]
[null,"Lower ",{"$f":"C$12*C15","v":0.34757629552222341}]
[null,"Upper ",{"$f":"C$12*C16","v":11.585876517407447}]
["Amount of a.i. consumed","AmntAI","Bait x PerCentAI x 1000 mg/g)"]
[null,"Central ",{"$f":"C$7*C18*1000","v":0.17378814776111173},"mg a.i.","Eq"]
[null,"Lower ",{"$f":"C$7*C19*1000","v":1.7378814776111171E-2},null,"Eq"]
[null,"Upper ",{"$f":"C$7*C20*1000","v":0.57929382587037237},null,"Eq"]
["Dose","Dose","AmntAI / BW"]
[null,"Central",{"$f":"C22/C$8","v":1.158587651740745},"mg/kg bw","Eq"]
[null,"Lower",{"$f":"C23/C$8","v":0.11585876517407448},null,"Eq"]
[null,"Upper",{"$f":"C24/C$8","v":3.8619588391358159},null,"Eq"]

{"sheet":"F01c","index":41,"n_rows":28,"n_cols":5,"rows_kept":28,"cut":false,"hidden":false,"merged":[[24,0,27,0],[0,0,0,4],[2,1,2,3],[4,1,4,3],[8,0,10,0],[16,0,19,0],[20,0,23,0],[21,3,23,3]]}
["Consumption of Contaminated Bait, Passerine, Accidental Spill "]
["Short Title","Passerine, Accidental Spill",null,null,"BaitAlloBW_Ac"]
["Receptor","Small Passerine",null,null,"Scenario parameter"]
["Duration","Acute"]
["Material consumed","Bait"]
["Parameter/Assumption","Code / Range","Equation/   Value","Units","Reference/Designation"]
["Percent a.i. in bait","PerCentAI",{"$f":"'A01'!PerCentAI","v":5.0000000000000002E-5},"percent","Worksheet A01"]
["Body weight","BW",0.02,"kg","Scenario parameter"]
["Allometric coefficients for food consumption per day in grams and BW in grams"]
[null,"alpha",{"$f":"A02b!$C$22","v":0.39800000000000002},null,"U.S. EPA/ORD 1993"]
[null,"beta",{"$f":"A02b!$C$23","v":0.85},null,"U.S. EPA/ORD 1993"]
["Amount of food  consumed per day","Amnt",{"$f":"C10*((C8*1000)^C11)","v":5.0787702668095474},"grams","Eq"]
["Proportion of diet as bait","PropC"]
[null,"Central ",{"$f":"'A01'!C36","v":0.3},"Unitless","Scenario parameter"]
[null,"Lower ",{"$f":"'A01'!C37","v":0.03},null,"Scenario parameter"]
[null,"Upper ",{"$f":"'A01'!C38","v":1},null,"Scenario parameter"]
["Consumption of Bait (unadjusted for a.i.)","Bait","(Amnt x  PropC )"]
[null,"Central ",{"$f":"C$12*C14","v":1.5236310800428641},"grams of bait"]
[null,"Lower ",{"$f":"C$12*C15","v":0.1523631080042864}]
[null,"Upper ",{"$f":"C$12*C16","v":5.0787702668095474}]
["Amount of a.i. consumed","AmntAI","Bait x PerCentAI x 1000 mg/g)"]
[null,"Central ",{"$f":"C$7*C18*1000","v":7.6181554002143215E-2},"mg a.i.","Eq"]
[null,"Lower ",{"$f":"C$7*C19*1000","v":7.6181554002143206E-3},null,"Eq"]
[null,"Upper ",{"$f":"C$7*C20*1000","v":0.2539385133404774},null,"Eq"]
["Dose","Dose","AmntAI / BW"]
[null,"Central",{"$f":"C22/C$8","v":3.8090777001071605},"mg/kg bw","Eq"]
[null,"Lower",{"$f":"C23/C$8","v":0.38090777001071602},null,"Eq"]
[null,"Upper",{"$f":"C24/C$8","v":12.696925667023869},null,"Eq"]

{"sheet":"F01d","index":42,"n_rows":28,"n_cols":5,"rows_kept":28,"cut":false,"hidden":false,"merged":[[24,0,27,0],[0,0,0,4],[2,1,2,3],[4,1,4,3],[8,0,10,0],[16,0,19,0],[20,0,23,0],[21,3,23,3]]}
["Consumption of Contaminated Bait, Mallard, Accidental Spill "]
["Short Title","Mallard, Accidental Spill",null,null,"BaitAlloBW_Ac"]
["Receptor","Mallard",null,null,"Scenario parameter"]
["Duration","Acute"]
["Material consumed","Bait"]
["Parameter/Assumption","Code / Range","Equation/   Value","Units","Reference/Designation"]
["Percent a.i. in bait","PerCentAI",{"$f":"'A01'!PerCentAI","v":5.0000000000000002E-5},"percent","Worksheet A01"]
["Body weight","BW",1,"kg","Scenario parameter"]
["Allometric coefficients for food consumption per day in grams and BW in grams"]
[null,"alpha",{"$f":"A02b!$C$20","v":0.30099999999999999},null,"U.S. EPA/ORD 1993"]
[null,"beta",{"$f":"A02b!$C$21","v":0.751},null,"U.S. EPA/ORD 1993"]
["Amount of food  consumed per day","Amnt",{"$f":"C10*((C8*1000)^C11)","v":53.89723620646236},"grams","Eq"]
["Proportion of diet as bait","PropC"]
[null,"Central ",{"$f":"'A01'!C36","v":0.3},"Unitless","Scenario parameter"]
[null,"Lower ",{"$f":"'A01'!C37","v":0.03},null,"Scenario parameter"]
[null,"Upper ",{"$f":"'A01'!C38","v":1},null,"Scenario parameter"]
["Consumption of Bait (unadjusted for a.i.)","Bait","(Amnt x  PropC )"]
[null,"Central ",{"$f":"C$12*C14","v":16.169170861938706},"grams of bait"]
[null,"Lower ",{"$f":"C$12*C15","v":1.6169170861938706}]
[null,"Upper ",{"$f":"C$12*C16","v":53.89723620646236}]
["Amount of a.i. consumed","AmntAI","Bait x PerCentAI x 1000 mg/g)"]
[null,"Central ",{"$f":"C$7*C18*1000","v":0.80845854309693532},"mg a.i.","Eq"]
[null,"Lower ",{"$f":"C$7*C19*1000","v":8.0845854309693529E-2},null,"Eq"]
[null,"Upper ",{"$f":"C$7*C20*1000","v":2.6948618103231183},null,"Eq"]
["Dose","Dose","AmntAI / BW"]
[null,"Central",{"$f":"C22/C$8","v":0.80845854309693532},"mg/kg bw","Eq"]
[null,"Lower",{"$f":"C23/C$8","v":8.0845854309693529E-2},null,"Eq"]
[null,"Upper",{"$f":"C24/C$8","v":2.6948618103231183},null,"Eq"]

{"sheet":"F01e","index":43,"n_rows":28,"n_cols":5,"rows_kept":28,"cut":false,"hidden":false,"merged":[[24,0,27,0],[0,0,0,4],[2,1,2,3],[4,1,4,3],[8,0,10,0],[16,0,19,0],[20,0,23,0],[21,3,23,3]]}
["Consumption of Contaminated Bait, Pigeon, Accidental Spill "]
["Short Title","Pigeon, Accidental Spill",null,null,"BaitAlloBW_Ac"]
["Receptor","Pigeon",null,null,"Scenario parameter"]
["Duration","Acute"]
["Material consumed","Bait"]
["Parameter/Assumption","Code / Range","Equation/   Value","Units","Reference/Designation"]
["Percent a.i. in bait","PerCentAI",{"$f":"'A01'!PerCentAI","v":5.0000000000000002E-5},"percent","Worksheet A01"]
["Body weight","BW",0.35,"kg","Scenario parameter"]
["Allometric coefficients for food consumption per day in grams and BW in grams"]
[null,"alpha",{"$f":"A02b!$C$20","v":0.30099999999999999},null,"U.S. EPA/ORD 1993"]
[null,"beta",{"$f":"A02b!$C$21","v":0.751},null,"U.S. EPA/ORD 1993"]
["Amount of food  consumed per day","Amnt",{"$f":"C10*((C8*1000)^C11)","v":24.499746848519688},"grams","Eq"]
["Proportion of diet as bait","PropC"]
[null,"Central ",{"$f":"'A01'!C36","v":0.3},"Unitless","Scenario parameter"]
[null,"Lower ",{"$f":"'A01'!C37","v":0.03},null,"Scenario parameter"]
[null,"Upper ",{"$f":"'A01'!C38","v":1},null,"Scenario parameter"]
["Consumption of Bait (unadjusted for a.i.)","Bait","(Amnt x  PropC )"]
[null,"Central ",{"$f":"C$12*C14","v":7.3499240545559061},"grams of bait"]
[null,"Lower ",{"$f":"C$12*C15","v":0.73499240545559064}]
[null,"Upper ",{"$f":"C$12*C16","v":24.499746848519688}]
["Amount of a.i. consumed","AmntAI","Bait x PerCentAI x 1000 mg/g)"]
[null,"Central ",{"$f":"C$7*C18*1000","v":0.36749620272779532},"mg a.i.","Eq"]
[null,"Lower ",{"$f":"C$7*C19*1000","v":3.6749620272779532E-2},null,"Eq"]
[null,"Upper ",{"$f":"C$7*C20*1000","v":1.2249873424259845},null,"Eq"]
["Dose","Dose","AmntAI / BW"]
[null,"Central",{"$f":"C22/C$8","v":1.0499891506508439},"mg/kg bw","Eq"]
[null,"Lower",{"$f":"C23/C$8","v":0.10499891506508438},null,"Eq"]
[null,"Upper",{"$f":"C24/C$8","v":3.4999638355028129},null,"Eq"]

{"sheet":"F01f","index":44,"n_rows":28,"n_cols":5,"rows_kept":28,"cut":false,"hidden":false,"merged":[[24,0,27,0],[0,0,0,4],[2,1,2,3],[4,1,4,3],[8,0,10,0],[16,0,19,0],[20,0,23,0],[21,3,23,3]]}
["Consumption of Contaminated Bait, Quail, Accidental Spill "]
["Short Title","Quail, Accidental Spill",null,null,"BaitAlloBW_Ac"]
["Receptor","Quail",null,null,"Scenario parameter"]
["Duration","Acute"]
["Material consumed","Bait"]
["Parameter/Assumption","Code / Range","Equation/   Value","Units","Reference/Designation"]
["Percent a.i. in bait","PerCentAI",{"$f":"'A01'!PerCentAI","v":5.0000000000000002E-5},"percent","Worksheet A01"]
["Body weight","BW",0.2,"kg","Scenario parameter"]
["Allometric coefficients for food consumption per day in grams and BW in grams"]
[null,"alpha",{"$f":"A02b!$C$20","v":0.30099999999999999},null,"U.S. EPA/ORD 1993"]
[null,"beta",{"$f":"A02b!$C$21","v":0.751},null,"U.S. EPA/ORD 1993"]
["Amount of food  consumed per day","Amnt",{"$f":"C10*((C8*1000)^C11)","v":16.09311157650243},"grams","Eq"]
["Proportion of diet as bait","PropC"]
[null,"Central ",0.02,"Unitless","Scenario parameter"]
[null,"Lower ",2E-3,null,"Scenario parameter"]
[null,"Upper ",0.2,null,"Scenario parameter"]
["Consumption of Bait (unadjusted for a.i.)","Bait","(Amnt x  PropC )"]
[null,"Central ",{"$f":"C$12*C14","v":0.32186223153004861},"grams of bait"]
[null,"Lower ",{"$f":"C$12*C15","v":3.2186223153004859E-2}]
[null,"Upper ",{"$f":"C$12*C16","v":3.218622315300486}]
["Amount of a.i. consumed","AmntAI","Bait x PerCentAI x 1000 mg/g)"]
[null,"Central ",{"$f":"C$7*C18*1000","v":1.6093111576502433E-2},"mg a.i.","Eq"]
[null,"Lower ",{"$f":"C$7*C19*1000","v":1.6093111576502429E-3},null,"Eq"]
[null,"Upper ",{"$f":"C$7*C20*1000","v":0.16093111576502431},null,"Eq"]
["Dose","Dose","AmntAI / BW"]
[null,"Central",{"$f":"C22/C$8","v":8.0465557882512154E-2},"mg/kg bw","Eq"]
[null,"Lower",{"$f":"C23/C$8","v":8.0465557882512147E-3},null,"Eq"]
[null,"Upper",{"$f":"C24/C$8","v":0.80465557882512151},null,"Eq"]

{"sheet":"F01g","index":45,"n_rows":28,"n_cols":5,"rows_kept":28,"cut":false,"hidden":false,"merged":[[24,0,27,0],[0,0,0,4],[2,1,2,3],[4,1,4,3],[8,0,10,0],[16,0,19,0],[20,0,23,0],[21,3,23,3]]}
["Consumption of Contaminated Bait, Deer, Accidental Spill "]
["Short Title","Deer, Accidental Spill",null,null,"BaitAlloBW_Ac"]
["Receptor","Deer",null,null,"Scenario parameter"]
["Duration","Acute"]
["Material consumed","Bait"]
["Parameter/Assumption","Code / Range","Equation/   Value","Units","Reference/Designation"]
["Percent a.i. in bait","PerCentAI",{"$f":"'A01'!PerCentAI","v":5.0000000000000002E-5},"percent","Worksheet A01"]
["Body weight","BW",70,"kg","Scenario parameter"]
["Allometric coefficients for food consumption per day in grams and BW in grams"]
[null,"alpha",{"$f":"A02b!$C$57","v":0.57699999999999996},null,"U.S. EPA/ORD 1993"]
[null,"beta",{"$f":"A02b!$C$58","v":0.72699999999999998},null,"U.S. EPA/ORD 1993"]
["Amount of food  consumed per day","Amnt",{"$f":"C10*((C8*1000)^C11)","v":1921.1535969045951},"grams","Eq"]
["Proportion of diet as bait","PropC"]
[null,"Central ",0.02,"Unitless","Scenario parameter"]
[null,"Lower ",2E-3,null,"Scenario parameter"]
[null,"Upper ",0.2,null,"Scenario parameter"]
["Consumption of Bait (unadjusted for a.i.)","Bait","(Amnt x  PropC )"]
[null,"Central ",{"$f":"C$12*C14","v":38.423071938091901},"grams of bait"]
[null,"Lower ",{"$f":"C$12*C15","v":3.8423071938091904}]
[null,"Upper ",{"$f":"C$12*C16","v":384.23071938091903}]
["Amount of a.i. consumed","AmntAI","Bait x PerCentAI x 1000 mg/g)"]
[null,"Central ",{"$f":"C$7*C18*1000","v":1.921153596904595},"mg a.i.","Eq"]
[null,"Lower ",{"$f":"C$7*C19*1000","v":0.19211535969045951},null,"Eq"]
[null,"Upper ",{"$f":"C$7*C20*1000","v":19.211535969045954},null,"Eq"]
["Dose","Dose","AmntAI / BW"]
[null,"Central",{"$f":"C22/C$8","v":2.7445051384351358E-2},"mg/kg bw","Eq"]
[null,"Lower",{"$f":"C23/C$8","v":2.7445051384351357E-3},null,"Eq"]
[null,"Upper",{"$f":"C24/C$8","v":0.27445051384351365},null,"Eq"]

{"sheet":"F02a","index":46,"n_rows":28,"n_cols":5,"rows_kept":28,"cut":false,"hidden":false,"merged":[[24,0,27,0],[0,0,0,4],[2,1,2,3],[4,1,4,3],[8,0,10,0],[16,0,19,0],[20,0,23,0],[21,3,23,3]]}
["Consumption of Contaminated Bait, Mouse, Misapplication "]
["Short Title","Mouse, Misapplication",null,null,"BaitAlloBW_Ac"]
["Receptor","Mouse",null,null,"Scenario parameter"]
["Duration","Acute"]
["Material consumed","Bait"]
["Parameter/Assumption","Code / Range","Equation/   Value","Units","Reference/Designation"]
["Percent a.i. in bait","PerCentAI",{"$f":"'A01'!PerCentAI","v":5.0000000000000002E-5},"percent","Worksheet A01"]
["Body weight","BW",0.02,"kg","Scenario parameter"]
["Allometric coefficients for food consumption per day in grams and BW in grams"]
[null,"alpha",{"$f":"A02b!$C$69","v":0.621},null,"U.S. EPA/ORD 1993"]
[null,"beta",{"$f":"A02b!$C$70","v":0.58399999999999996},null,"U.S. EPA/ORD 1993"]
["Amount of food  consumed per day","Amnt",{"$f":"C10*((C8*1000)^C11)","v":3.571849220820428},"grams","Eq"]
["Proportion of diet as bait","PropC"]
[null,"Central ",{"$f":"'A01'!C40","v":0.03},"Unitless","Worksheet A01"]
[null,"Lower ",{"$f":"'A01'!C41","v":3.0000000000000001E-3},null,"Worksheet A01"]
[null,"Upper ",{"$f":"'A01'!C42","v":0.1},null,"Worksheet A01"]
["Consumption of Bait (unadjusted for a.i.)","Bait","(Amnt x  PropC )"]
[null,"Central ",{"$f":"C$12*C14","v":0.10715547662461283},"grams of bait"]
[null,"Lower ",{"$f":"C$12*C15","v":1.0715547662461284E-2}]
[null,"Upper ",{"$f":"C$12*C16","v":0.35718492208204283}]
["Amount of a.i. consumed","AmntAI","Bait x PerCentAI x 1000 mg/g)"]
[null,"Central ",{"$f":"C$7*C18*1000","v":5.3577738312306422E-3},"mg a.i.","Eq"]
[null,"Lower ",{"$f":"C$7*C19*1000","v":5.3577738312306428E-4},null,"Eq"]
[null,"Upper ",{"$f":"C$7*C20*1000","v":1.7859246104102146E-2},null,"Eq"]
["Dose","Dose","AmntAI / BW"]
[null,"Central",{"$f":"C22/C$8","v":0.26788869156153211},"mg/kg bw","Eq"]
[null,"Lower",{"$f":"C23/C$8","v":2.6788869156153215E-2},null,"Eq"]
[null,"Upper",{"$f":"C24/C$8","v":0.89296230520510722},null,"Eq"]

{"sheet":"F02b","index":47,"n_rows":28,"n_cols":5,"rows_kept":28,"cut":false,"hidden":false,"merged":[[24,0,27,0],[0,0,0,4],[2,1,2,3],[4,1,4,3],[8,0,10,0],[16,0,19,0],[20,0,23,0],[21,3,23,3]]}
["Consumption of Contaminated Bait, Squirrel, Misapplication "]
["Short Title","Squirrel, Misapplication",null,null,"BaitAlloBW_Ac"]
["Receptor","Squirrel",null,null,"Scenario parameter"]
["Duration","Acute"]
["Material consumed","Bait"]
["Parameter/Assumption","Code / Range","Equation/   Value","Units","Reference/Designation"]
["Percent a.i. in bait","PerCentAI",{"$f":"'A01'!PerCentAI","v":5.0000000000000002E-5},"percent","Worksheet A01"]
["Body weight","BW",0.15,"kg","Scenario parameter"]
["Allometric coefficients for food consumption per day in grams and BW in grams"]
[null,"alpha",{"$f":"A02b!$C$69","v":0.621},null,"U.S. EPA/ORD 1993"]
[null,"beta",{"$f":"A02b!$C$70","v":0.58399999999999996},null,"U.S. EPA/ORD 1993"]
["Amount of food  consumed per day","Amnt",{"$f":"C10*((C8*1000)^C11)","v":11.585876517407447},"grams","Eq"]
["Proportion of diet as bait","PropC"]
[null,"Central ",{"$f":"'A01'!C40","v":0.03},"Unitless","Worksheet A01"]
[null,"Lower ",{"$f":"'A01'!C41","v":3.0000000000000001E-3},null,"Worksheet A01"]
[null,"Upper ",{"$f":"'A01'!C42","v":0.1},null,"Worksheet A01"]
["Consumption of Bait (unadjusted for a.i.)","Bait","(Amnt x  PropC )"]
[null,"Central ",{"$f":"C$12*C14","v":0.34757629552222341},"grams of bait"]
[null,"Lower ",{"$f":"C$12*C15","v":3.4757629552222342E-2}]
[null,"Upper ",{"$f":"C$12*C16","v":1.1585876517407447}]
["Amount of a.i. consumed","AmntAI","Bait x PerCentAI x 1000 mg/g)"]
[null,"Central ",{"$f":"C$7*C18*1000","v":1.7378814776111171E-2},"mg a.i.","Eq"]
[null,"Lower ",{"$f":"C$7*C19*1000","v":1.7378814776111173E-3},null,"Eq"]
[null,"Upper ",{"$f":"C$7*C20*1000","v":5.792938258703724E-2},null,"Eq"]
["Dose","Dose","AmntAI / BW"]
[null,"Central",{"$f":"C22/C$8","v":0.11585876517407448},"mg/kg bw","Eq"]
[null,"Lower",{"$f":"C23/C$8","v":1.1585876517407449E-2},null,"Eq"]
[null,"Upper",{"$f":"C24/C$8","v":0.38619588391358162},null,"Eq"]

{"sheet":"F02c","index":48,"n_rows":28,"n_cols":5,"rows_kept":28,"cut":false,"hidden":false,"merged":[[24,0,27,0],[0,0,0,4],[2,1,2,3],[4,1,4,3],[8,0,10,0],[16,0,19,0],[20,0,23,0],[21,3,23,3]]}
["Consumption of Contaminated Bait, Skunk, Misapplication "]
["Short Title","Skunk, Misapplication",null,null,"BaitAlloBW_Ac"]
["Receptor","Skunk",null,null,"Scenario parameter"]
["Duration","Acute"]
["Material consumed","Bait"]
["Parameter/Assumption","Code / Range","Equation/   Value","Units","Reference/Designation"]
["Percent a.i. in bait","PerCentAI",{"$f":"'A01'!PerCentAI","v":5.0000000000000002E-5},"percent","Worksheet A01"]
["Body weight","BW",2,"kg","Scenario parameter"]
["Allometric coefficients for food consumption per day in grams and BW in grams"]
[null,"alpha",{"$f":"A02b!$C$69","v":0.621},null,"U.S. EPA/ORD 1993"]
[null,"beta",{"$f":"A02b!$C$70","v":0.58399999999999996},null,"U.S. EPA/ORD 1993"]
["Amount of food  consumed per day","Amnt",{"$f":"C10*((C8*1000)^C11)","v":52.588782646184804},"grams","Eq"]
["Proportion of diet as bait","PropC"]
[null,"Central ",{"$f":"'A01'!C40","v":0.03},"Unitless","Worksheet A01"]
[null,"Lower ",{"$f":"'A01'!C41","v":3.0000000000000001E-3},null,"Worksheet A01"]
[null,"Upper ",{"$f":"'A01'!C42","v":0.1},null,"Worksheet A01"]
["Consumption of Bait (unadjusted for a.i.)","Bait","(Amnt x  PropC )"]
[null,"Central ",{"$f":"C$12*C14","v":1.577663479385544},"grams of bait"]
[null,"Lower ",{"$f":"C$12*C15","v":0.1577663479385544}]
[null,"Upper ",{"$f":"C$12*C16","v":5.2588782646184811}]
["Amount of a.i. consumed","AmntAI","Bait x PerCentAI x 1000 mg/g)"]
[null,"Central ",{"$f":"C$7*C18*1000","v":7.8883173969277201E-2},"mg a.i.","Eq"]
[null,"Lower ",{"$f":"C$7*C19*1000","v":7.8883173969277205E-3},null,"Eq"]
[null,"Upper ",{"$f":"C$7*C20*1000","v":0.26294391323092409},null,"Eq"]
["Dose","Dose","AmntAI / BW"]
[null,"Central",{"$f":"C22/C$8","v":3.9441586984638601E-2},"mg/kg bw","Eq"]
[null,"Lower",{"$f":"C23/C$8","v":3.9441586984638602E-3},null,"Eq"]
[null,"Upper",{"$f":"C24/C$8","v":0.13147195661546204},null,"Eq"]

{"sheet":"F02d","index":49,"n_rows":28,"n_cols":5,"rows_kept":28,"cut":false,"hidden":false,"merged":[[24,0,27,0],[0,0,0,4],[2,1,2,3],[4,1,4,3],[8,0,10,0],[16,0,19,0],[20,0,23,0],[21,3,23,3]]}
["Consumption of Contaminated Bait, Passerine, Misapplication "]
["Short Title","Passerine, Misapplication",null,null,"BaitAlloBW_Ac"]
["Receptor","Small Passerine",null,null,"Scenario parameter"]
["Duration","Acute"]
["Material consumed","Bait"]
["Parameter/Assumption","Code / Range","Equation/   Value","Units","Reference/Designation"]
["Percent a.i. in bait","PerCentAI",{"$f":"'A01'!PerCentAI","v":5.0000000000000002E-5},"percent","Worksheet A01"]
["Body weight","BW",0.02,"kg","Scenario parameter"]
["Allometric coefficients for food consumption per day in grams and BW in grams"]
[null,"alpha",{"$f":"A02b!$C$22","v":0.39800000000000002},null,"U.S. EPA/ORD 1993"]
[null,"beta",{"$f":"A02b!$C$23","v":0.85},null,"U.S. EPA/ORD 1993"]
["Amount of food  consumed per day","Amnt",{"$f":"C10*((C8*1000)^C11)","v":5.0787702668095474},"grams","Eq"]
["Proportion of diet as bait","PropC"]
[null,"Central ",{"$f":"'A01'!C40","v":0.03},"Unitless","Worksheet A01"]
[null,"Lower ",{"$f":"'A01'!C41","v":3.0000000000000001E-3},null,"Worksheet A01"]
[null,"Upper ",{"$f":"'A01'!C42","v":0.1},null,"Worksheet A01"]
["Consumption of Bait (unadjusted for a.i.)","Bait","(Amnt x  PropC )"]
[null,"Central ",{"$f":"C$12*C14","v":0.1523631080042864},"grams of bait"]
[null,"Lower ",{"$f":"C$12*C15","v":1.5236310800428643E-2}]
[null,"Upper ",{"$f":"C$12*C16","v":0.5078770266809548}]
["Amount of a.i. consumed","AmntAI","Bait x PerCentAI x 1000 mg/g)"]
[null,"Central ",{"$f":"C$7*C18*1000","v":7.6181554002143206E-3},"mg a.i.","Eq"]
[null,"Lower ",{"$f":"C$7*C19*1000","v":7.6181554002143219E-4},null,"Eq"]
[null,"Upper ",{"$f":"C$7*C20*1000","v":2.5393851334047743E-2},null,"Eq"]
["Dose","Dose","AmntAI / BW"]
[null,"Central",{"$f":"C22/C$8","v":0.38090777001071602},"mg/kg bw","Eq"]
[null,"Lower",{"$f":"C23/C$8","v":3.8090777001071607E-2},null,"Eq"]
[null,"Upper",{"$f":"C24/C$8","v":1.2696925667023871},null,"Eq"]

{"sheet":"F02e","index":50,"n_rows":28,"n_cols":5,"rows_kept":28,"cut":false,"hidden":false,"merged":[[24,0,27,0],[0,0,0,4],[2,1,2,3],[4,1,4,3],[8,0,10,0],[16,0,19,0],[20,0,23,0],[21,3,23,3]]}
["Consumption of Contaminated Bait, Mallard, Misapllication "]
["Short Title","Mallard, Misapllication",null,null,"BaitAlloBW_Ac"]
["Receptor","Mallard",null,null,"Scenario parameter"]
["Duration","Acute"]
["Material consumed","Bait"]
["Parameter/Assumption","Code / Range","Equation/   Value","Units","Reference/Designation"]
["Percent a.i. in bait","PerCentAI",{"$f":"'A01'!PerCentAI","v":5.0000000000000002E-5},"percent","Worksheet A01"]
["Body weight","BW",1,"kg","Scenario parameter"]
["Allometric coefficients for food consumption per day in grams and BW in grams"]
[null,"alpha",{"$f":"A02b!$C$20","v":0.30099999999999999},null,"U.S. EPA/ORD 1993"]
[null,"beta",{"$f":"A02b!$C$21","v":0.751},null,"U.S. EPA/ORD 1993"]
["Amount of food  consumed per day","Amnt",{"$f":"C10*((C8*1000)^C11)","v":53.89723620646236},"grams","Eq"]
["Proportion of diet as bait","PropC"]
[null,"Central ",{"$f":"'A01'!C40","v":0.03},"Unitless","Worksheet A01"]
[null,"Lower ",{"$f":"'A01'!C41","v":3.0000000000000001E-3},null,"Worksheet A01"]
[null,"Upper ",{"$f":"'A01'!C42","v":0.1},null,"Worksheet A01"]
["Consumption of Bait (unadjusted for a.i.)","Bait","(Amnt x  PropC )"]
[null,"Central ",{"$f":"C$12*C14","v":1.6169170861938706},"grams of bait"]
[null,"Lower ",{"$f":"C$12*C15","v":0.16169170861938709}]
[null,"Upper ",{"$f":"C$12*C16","v":5.3897236206462367}]
["Amount of a.i. consumed","AmntAI","Bait x PerCentAI x 1000 mg/g)"]
[null,"Central ",{"$f":"C$7*C18*1000","v":8.0845854309693529E-2},"mg a.i.","Eq"]
[null,"Lower ",{"$f":"C$7*C19*1000","v":8.0845854309693557E-3},null,"Eq"]
[null,"Upper ",{"$f":"C$7*C20*1000","v":0.26948618103231187},null,"Eq"]
["Dose","Dose","AmntAI / BW"]
[null,"Central",{"$f":"C22/C$8","v":8.0845854309693529E-2},"mg/kg bw","Eq"]
[null,"Lower",{"$f":"C23/C$8","v":8.0845854309693557E-3},null,"Eq"]
[null,"Upper",{"$f":"C24/C$8","v":0.26948618103231187},null,"Eq"]

{"sheet":"F02f","index":51,"n_rows":28,"n_cols":5,"rows_kept":28,"cut":false,"hidden":false,"merged":[[24,0,27,0],[0,0,0,4],[2,1,2,3],[4,1,4,3],[8,0,10,0],[16,0,19,0],[20,0,23,0],[21,3,23,3]]}
["Consumption of Contaminated Bait, Pigeon, Misapplication "]
["Short Title","Pigeon, Misapplication",null,null,"BaitAlloBW_Ac"]
["Receptor","Pigeon",null,null,"Scenario parameter"]
["Duration","Acute"]
["Material consumed","Bait"]
["Parameter/Assumption","Code / Range","Equation/   Value","Units","Reference/Designation"]
["Percent a.i. in bait","PerCentAI",{"$f":"'A01'!PerCentAI","v":5.0000000000000002E-5},"percent","Worksheet A01"]
["Body weight","BW",0.35,"kg","Scenario parameter"]
["Allometric coefficients for food consumption per day in grams and BW in grams"]
[null,"alpha",{"$f":"A02b!$C$20","v":0.30099999999999999},null,"U.S. EPA/ORD 1993"]
[null,"beta",{"$f":"A02b!$C$21","v":0.751},null,"U.S. EPA/ORD 1993"]
["Amount of food  consumed per day","Amnt",{"$f":"C10*((C8*1000)^C11)","v":24.499746848519688},"grams","Eq"]
["Proportion of diet as bait","PropC"]
[null,"Central ",{"$f":"'A01'!C40","v":0.03},"Unitless","Worksheet A01"]
[null,"Lower ",{"$f":"'A01'!C41","v":3.0000000000000001E-3},null,"Worksheet A01"]
[null,"Upper ",{"$f":"'A01'!C42","v":0.1},null,"Worksheet A01"]
["Consumption of Bait (unadjusted for a.i.)","Bait","(Amnt x  PropC )"]
[null,"Central ",{"$f":"C$12*C14","v":0.73499240545559064},"grams of bait"]
[null,"Lower ",{"$f":"C$12*C15","v":7.3499240545559064E-2}]
[null,"Upper ",{"$f":"C$12*C16","v":2.449974684851969}]
["Amount of a.i. consumed","AmntAI","Bait x PerCentAI x 1000 mg/g)"]
[null,"Central ",{"$f":"C$7*C18*1000","v":3.6749620272779532E-2},"mg a.i.","Eq"]
[null,"Lower ",{"$f":"C$7*C19*1000","v":3.6749620272779533E-3},null,"Eq"]
[null,"Upper ",{"$f":"C$7*C20*1000","v":0.12249873424259847},null,"Eq"]
["Dose","Dose","AmntAI / BW"]
[null,"Central",{"$f":"C22/C$8","v":0.10499891506508438},"mg/kg bw","Eq"]
[null,"Lower",{"$f":"C23/C$8","v":1.0499891506508438E-2},null,"Eq"]
[null,"Upper",{"$f":"C24/C$8","v":0.34999638355028134},null,"Eq"]

{"sheet":"F02g","index":52,"n_rows":28,"n_cols":5,"rows_kept":28,"cut":false,"hidden":false,"merged":[[24,0,27,0],[0,0,0,4],[2,1,2,3],[4,1,4,3],[8,0,10,0],[16,0,19,0],[20,0,23,0],[21,3,23,3]]}
["Consumption of Contaminated Bait, Quail, Misapplication "]
["Short Title","Quail, Misapplication",null,null,"BaitAlloBW_Ac"]
["Receptor","Quail",null,null,"Scenario parameter"]
["Duration","Acute"]
["Material consumed","Bait"]
["Parameter/Assumption","Code / Range","Equation/   Value","Units","Reference/Designation"]
["Percent a.i. in bait","PerCentAI",{"$f":"'A01'!PerCentAI","v":5.0000000000000002E-5},"percent","Worksheet A01"]
["Body weight","BW",0.2,"kg","Scenario parameter"]
["Allometric coefficients for food consumption per day in grams and BW in grams"]
[null,"alpha",{"$f":"A02b!$C$20","v":0.30099999999999999},null,"U.S. EPA/ORD 1993"]
[null,"beta",{"$f":"A02b!$C$21","v":0.751},null,"U.S. EPA/ORD 1993"]
["Amount of food  consumed per day","Amnt",{"$f":"C10*((C8*1000)^C11)","v":16.09311157650243},"grams","Eq"]
["Proportion of diet as bait","PropC"]
[null,"Central ",{"$f":"'A01'!C40","v":0.03},"Unitless","Worksheet A01"]
[null,"Lower ",{"$f":"'A01'!C41","v":3.0000000000000001E-3},null,"Worksheet A01"]
[null,"Upper ",{"$f":"'A01'!C42","v":0.1},null,"Worksheet A01"]
["Consumption of Bait (unadjusted for a.i.)","Bait","(Amnt x  PropC )"]
[null,"Central ",{"$f":"C$12*C14","v":0.48279334729507289},"grams of bait"]
[null,"Lower ",{"$f":"C$12*C15","v":4.8279334729507295E-2}]
[null,"Upper ",{"$f":"C$12*C16","v":1.609311157650243}]
["Amount of a.i. consumed","AmntAI","Bait x PerCentAI x 1000 mg/g)"]
[null,"Central ",{"$f":"C$7*C18*1000","v":2.4139667364753647E-2},"mg a.i.","Eq"]
[null,"Lower ",{"$f":"C$7*C19*1000","v":2.4139667364753647E-3},null,"Eq"]
[null,"Upper ",{"$f":"C$7*C20*1000","v":8.0465557882512154E-2},null,"Eq"]
["Dose","Dose","AmntAI / BW"]
[null,"Central",{"$f":"C22/C$8","v":0.12069833682376824},"mg/kg bw","Eq"]
[null,"Lower",{"$f":"C23/C$8","v":1.2069833682376822E-2},null,"Eq"]
[null,"Upper",{"$f":"C24/C$8","v":0.40232778941256075},null,"Eq"]

{"sheet":"F03a","index":53,"n_rows":32,"n_cols":5,"rows_kept":32,"cut":false,"hidden":false,"merged":[[15,0,18,0],[20,0,23,0],[24,0,27,0],[28,0,31,0],[0,0,0,4],[1,1,1,3],[2,1,2,3],[6,0,8,0],[9,0,10,0],[13,0,14,0]]}
["Acute exposure of Small Mammal after an accidental spill of the pesticide into a pond"]
["Short Title","Water consumption, accidental spill",null,null,"BaitWatDumpAllo"]
["Receptor","Small Mammal",null,null,"Scenario parameter"]
["Duration","Acute"]
["Parameter/Assumption","Code / Range","Equation/   Value","Units","Reference/Designation"]
["Body weight","BW",0.02,"kg","Scenario parameter"]
["Allometric coefficients forwater consumption per day in liters and BW in kilograms"]
[null,"alpha",{"$f":"A02b!$C$79","v":9.9000000000000005E-2},null,"U.S. EPA/ORD 1993"]
[null,"beta",{"$f":"A02b!$C$80","v":0.9},null,"U.S. EPA/ORD 1993"]
["Amount of water consumed per day",null,"Amnt = alpha BW beta"]
[null,"Amnt",{"$f":"C8*(C6^C9)","v":2.9279401205240612E-3},"liters","Eq"]
["Surface Area of Pond","SA",{"$f":"'A01'!C$16","v":1000},"m2","Worksheet A01"]
["Depth of Pond","Depth",{"$f":"'A01'!C$17","v":1},"meter","Worksheet A01"]
["Volume of Pond","VPM",{"$f":"C12*C13","v":1000},"m3","Eq"]
[null,"VPL",{"$f":"1000*C14","v":1000000},"liters","Eq"]
["Pounds of compound spilled into water","Lbs"]
[null,"Central ",{"$f":"'A01'!C$28","v":1.5E-3},"lbs","Worksheet A01"]
[null,"Lower ",{"$f":"'A01'!C$29","v":1E-3},null,"Worksheet A01"]
[null,"Upper ",{"$f":"'A01'!C$30","v":2E-3},null,"Worksheet A01"]
["mg per lb","MgLbs",453600,"mg/lbs"]
["Toxic Equivalency Factor for formulation:  (See risk assessment if this has a value other than 1.)","TEF"]
[null,"Central ",{"$f":"'A01'!C$24","v":1},"unitless","Worksheet A01"]
[null,"Lower ",{"$f":"'A01'!C$25","v":1},null,"Worksheet A01"]
[null,"Upper ",{"$f":"'A01'!C$26","v":1},null,"Worksheet A01"]
["Concentration in pond water","ConcWat","Lbs  x MgLbs x TEF ÷ VPL"]
[null,"Central ",{"$f":"C17*C$20*C22/C$15","v":6.8039999999999995E-4},"mg/L","Eq"]
[null,"Lower ",{"$f":"C18*C$20*C23/C$15","v":4.5360000000000002E-4},null,"Eq"]
[null,"Upper ",{"$f":"C19*C$20*C24/C$15","v":9.0720000000000004E-4},null,"Eq"]
["Absorbed Dose","Dose","ConcWat  × Amnt ÷ BW"]
[null,"Central ",{"$f":"C26*C$11/C$6","v":9.9608522900228541E-5},"mg/kg","Eq"]
[null,"Lower ",{"$f":"C27*C$11/C$6","v":6.6405681933485712E-5},"mg/kg","Eq"]
[null,"Upper ",{"$f":"C28*C$11/C$6","v":1.3281136386697142E-4},"mg/kg","Eq"]

{"sheet":"F03b","index":54,"n_rows":32,"n_cols":5,"rows_kept":32,"cut":false,"hidden":false,"merged":[[15,0,18,0],[20,0,23,0],[24,0,27,0],[28,0,31,0],[0,0,0,4],[1,1,1,3],[2,1,2,3],[6,0,8,0],[9,0,10,0],[13,0,14,0]]}
["Acute exposure of Canid after an accidental spill of the pesticide into a pond"]
["Short Title","Water consumption, accidental spill",null,null,"BaitWatDumpAllo"]
["Receptor","Canid",null,null,"Scenario parameter"]
["Duration","Acute"]
["Parameter/Assumption","Code / Range","Equation/   Value","Units","Reference/Designation"]
["Body weight","BW",5,"kg","Scenario parameter"]
["Allometric coefficients forwater consumption per day in liters and BW in kilograms"]
[null,"alpha",{"$f":"A02b!$C$50","v":9.9000000000000005E-2},null,"U.S. EPA/ORD 1993"]
[null,"beta",{"$f":"A02b!$C$51","v":0.9},null,"U.S. EPA/ORD 1993"]
["Amount of water consumed per day",null,"Amnt = alpha BW beta"]
[null,"Amnt",{"$f":"C8*(C6^C9)","v":0.42141326164778842},"liters","Eq"]
["Surface Area of Pond","SA",{"$f":"'A01'!C$16","v":1000},"m2","Worksheet A01"]
["Depth of Pond","Depth",{"$f":"'A01'!C$17","v":1},"meter","Worksheet A01"]
["Volume of Pond","VPM",{"$f":"C12*C13","v":1000},"m3","Eq"]
[null,"VPL",{"$f":"1000*C14","v":1000000},"liters","Eq"]
["Pounds of compound spilled into water","Lbs"]
[null,"Central ",{"$f":"'A01'!C$28","v":1.5E-3},"lbs","Worksheet A01"]
[null,"Lower ",{"$f":"'A01'!C$29","v":1E-3},null,"Worksheet A01"]
[null,"Upper ",{"$f":"'A01'!C$30","v":2E-3},null,"Worksheet A01"]
["mg per lb","MgLbs",453600,"mg/lbs"]
["Toxic Equivalency Factor for formulation:  (See risk assessment if this has a value other than 1.)","TEF"]
[null,"Central ",{"$f":"'A01'!C$24","v":1},"unitless","Worksheet A01"]
[null,"Lower ",{"$f":"'A01'!C$25","v":1},null,"Worksheet A01"]
[null,"Upper ",{"$f":"'A01'!C$26","v":1},null,"Worksheet A01"]
["Concentration in pond water","ConcWat","Lbs  x MgLbs x TEF ÷ VPL"]
[null,"Central ",{"$f":"C17*C$20*C22/C$15","v":6.8039999999999995E-4},"mg/L","Eq"]
[null,"Lower ",{"$f":"C18*C$20*C23/C$15","v":4.5360000000000002E-4},null,"Eq"]
[null,"Upper ",{"$f":"C19*C$20*C24/C$15","v":9.0720000000000004E-4},null,"Eq"]
["Absorbed Dose","Dose","ConcWat  × Amnt ÷ BW"]
[null,"Central ",{"$f":"C26*C$11/C$6","v":5.7345916645031046E-5},"mg/kg","Eq"]
[null,"Lower ",{"$f":"C27*C$11/C$6","v":3.8230611096687364E-5},"mg/kg","Eq"]
[null,"Upper ",{"$f":"C28*C$11/C$6","v":7.6461222193374728E-5},"mg/kg","Eq"]

{"sheet":"F03c","index":55,"n_rows":32,"n_cols":5,"rows_kept":32,"cut":false,"hidden":false,"merged":[[15,0,18,0],[20,0,23,0],[24,0,27,0],[28,0,31,0],[0,0,0,4],[1,1,1,3],[2,1,2,3],[6,0,8,0],[9,0,10,0],[13,0,14,0]]}
["Acute exposure of Large Mammal after an accidental spill of the pesticide into a pond"]
["Short Title","Water consumption, accidental spill",null,null,"BaitWatDumpAllo"]
["Receptor","Large Mammal",null,null,"Scenario parameter"]
["Duration","Acute"]
["Parameter/Assumption","Code / Range","Equation/   Value","Units","Reference/Designation"]
["Body weight","BW",70,"kg","Scenario parameter"]
["Allometric coefficients forwater consumption per day in liters and BW in kilograms"]
[null,"alpha",{"$f":"A02b!$C$64","v":9.9000000000000005E-2},null,"U.S. EPA/ORD 1993"]
[null,"beta",{"$f":"A02b!$C$65","v":0.9},null,"U.S. EPA/ORD 1993"]
["Amount of water consumed per day",null,"Amnt = alpha BW beta"]
[null,"Amnt",{"$f":"C8*(C6^C9)","v":4.5313064115862725},"liters","Eq"]
["Surface Area of Pond","SA",{"$f":"'A01'!C$16","v":1000},"m2","Worksheet A01"]
["Depth of Pond","Depth",{"$f":"'A01'!C$17","v":1},"meter","Worksheet A01"]
["Volume of Pond","VPM",{"$f":"C12*C13","v":1000},"m3","Eq"]
[null,"VPL",{"$f":"1000*C14","v":1000000},"liters","Eq"]
["Pounds of compound spilled into water","Lbs"]
[null,"Central ",{"$f":"'A01'!C$28","v":1.5E-3},"lbs","Worksheet A01"]
[null,"Lower ",{"$f":"'A01'!C$29","v":1E-3},null,"Worksheet A01"]
[null,"Upper ",{"$f":"'A01'!C$30","v":2E-3},null,"Worksheet A01"]
["mg per lb","MgLbs",453600,"mg/lbs"]
["Toxic Equivalency Factor for formulation:  (See risk assessment if this has a value other than 1.)","TEF"]
[null,"Central ",{"$f":"'A01'!C$24","v":1},"unitless","Worksheet A01"]
[null,"Lower ",{"$f":"'A01'!C$25","v":1},null,"Worksheet A01"]
[null,"Upper ",{"$f":"'A01'!C$26","v":1},null,"Worksheet A01"]
["Concentration in pond water","ConcWat","Lbs  x MgLbs x TEF ÷ VPL"]
[null,"Central ",{"$f":"C17*C$20*C22/C$15","v":6.8039999999999995E-4},"mg/L","Eq"]
[null,"Lower ",{"$f":"C18*C$20*C23/C$15","v":4.5360000000000002E-4},null,"Eq"]
[null,"Upper ",{"$f":"C19*C$20*C24/C$15","v":9.0720000000000004E-4},null,"Eq"]
["Absorbed Dose","Dose","ConcWat  × Amnt ÷ BW"]
[null,"Central ",{"$f":"C26*C$11/C$6","v":4.4044298320618561E-5},"mg/kg","Eq"]
[null,"Lower ",{"$f":"C27*C$11/C$6","v":2.9362865547079045E-5},"mg/kg","Eq"]
[null,"Upper ",{"$f":"C28*C$11/C$6","v":5.8725731094158091E-5},"mg/kg","Eq"]

{"sheet":"F03d","index":56,"n_rows":32,"n_cols":5,"rows_kept":32,"cut":false,"hidden":false,"merged":[[15,0,18,0],[20,0,23,0],[24,0,27,0],[28,0,31,0],[0,0,0,4],[1,1,1,3],[2,1,2,3],[6,0,8,0],[9,0,10,0],[13,0,14,0]]}
["Acute exposure of Small Passerine after an accidental spill of the pesticide into a pond"]
["Short Title","Water consumption, accidental spill",null,null,"BaitWatDumpAllo"]
["Receptor","Small Passerine",null,null,"Scenario parameter"]
["Duration","Acute"]
["Parameter/Assumption","Code / Range","Equation/   Value","Units","Reference/Designation"]
["Body weight","BW",0.02,"kg","Scenario parameter"]
["Allometric coefficients forwater consumption per day in liters and BW in kilograms"]
[null,"alpha",{"$f":"A02b!$C$34","v":5.8999999999999997E-2},null,"U.S. EPA/ORD 1993"]
[null,"beta",{"$f":"A02b!$C$35","v":0.67},null,"U.S. EPA/ORD 1993"]
["Amount of water consumed per day",null,"Amnt = alpha BW beta"]
[null,"Amnt",{"$f":"C8*(C6^C9)","v":4.290837907359007E-3},"liters","Eq"]
["Surface Area of Pond","SA",{"$f":"'A01'!C$16","v":1000},"m2","Worksheet A01"]
["Depth of Pond","Depth",{"$f":"'A01'!C$17","v":1},"meter","Worksheet A01"]
["Volume of Pond","VPM",{"$f":"C12*C13","v":1000},"m3","Eq"]
[null,"VPL",{"$f":"1000*C14","v":1000000},"liters","Eq"]
["Pounds of compound spilled into water","Lbs"]
[null,"Central ",{"$f":"'A01'!C$28","v":1.5E-3},"lbs","Worksheet A01"]
[null,"Lower ",{"$f":"'A01'!C$29","v":1E-3},null,"Worksheet A01"]
[null,"Upper ",{"$f":"'A01'!C$30","v":2E-3},null,"Worksheet A01"]
["mg per lb","MgLbs",453600,"mg/lbs"]
["Toxic Equivalency Factor for formulation:  (See risk assessment if this has a value other than 1.)","TEF"]
[null,"Central ",{"$f":"'A01'!C$24","v":1},"unitless","Worksheet A01"]
[null,"Lower ",{"$f":"'A01'!C$25","v":1},null,"Worksheet A01"]
[null,"Upper ",{"$f":"'A01'!C$26","v":1},null,"Worksheet A01"]
["Concentration in pond water","ConcWat","Lbs  x MgLbs x TEF ÷ VPL"]
[null,"Central ",{"$f":"C17*C$20*C22/C$15","v":6.8039999999999995E-4},"mg/L","Eq"]
[null,"Lower ",{"$f":"C18*C$20*C23/C$15","v":4.5360000000000002E-4},null,"Eq"]
[null,"Upper ",{"$f":"C19*C$20*C24/C$15","v":9.0720000000000004E-4},null,"Eq"]
["Absorbed Dose","Dose","ConcWat  × Amnt ÷ BW"]
[null,"Central ",{"$f":"C26*C$11/C$6","v":1.459743056083534E-4},"mg/kg","Eq"]
[null,"Lower ",{"$f":"C27*C$11/C$6","v":9.7316203738902283E-5},"mg/kg","Eq"]
[null,"Upper ",{"$f":"C28*C$11/C$6","v":1.9463240747780457E-4},"mg/kg","Eq"]

{"sheet":"F03e","index":57,"n_rows":32,"n_cols":5,"rows_kept":32,"cut":false,"hidden":false,"merged":[[15,0,18,0],[20,0,23,0],[24,0,27,0],[28,0,31,0],[0,0,0,4],[1,1,1,3],[2,1,2,3],[6,0,8,0],[9,0,10,0],[13,0,14,0]]}
["Acute exposure of Canada Goose after an accidental spill of the pesticide into a pond"]
["Short Title","Water consumption, accidental spill",null,null,"BaitWatDumpAllo"]
["Receptor","Canada Goose",null,null,"Scenario parameter"]
["Duration","Acute"]
["Parameter/Assumption","Code / Range","Equation/   Value","Units","Reference/Designation"]
["Body weight","BW",4,"kg","Scenario parameter"]
["Allometric coefficients forwater consumption per day in liters and BW in kilograms"]
[null,"alpha",{"$f":"A02b!$C$18","v":5.8999999999999997E-2},null,"U.S. EPA/ORD 1993"]
[null,"beta",{"$f":"A02b!$C$19","v":0.67},null,"U.S. EPA/ORD 1993"]
["Amount of water consumed per day",null,"Amnt = alpha BW beta"]
[null,"Amnt",{"$f":"C8*(C6^C9)","v":0.14935927808849303},"liters","Eq"]
["Surface Area of Pond","SA",{"$f":"'A01'!C$16","v":1000},"m2","Worksheet A01"]
["Depth of Pond","Depth",{"$f":"'A01'!C$17","v":1},"meter","Worksheet A01"]
["Volume of Pond","VPM",{"$f":"C12*C13","v":1000},"m3","Eq"]
[null,"VPL",{"$f":"1000*C14","v":1000000},"liters","Eq"]
["Pounds of compound spilled into water","Lbs"]
[null,"Central ",{"$f":"'A01'!C$28","v":1.5E-3},"lbs","Worksheet A01"]
[null,"Lower ",{"$f":"'A01'!C$29","v":1E-3},null,"Worksheet A01"]
[null,"Upper ",{"$f":"'A01'!C$30","v":2E-3},null,"Worksheet A01"]
["mg per lb","MgLbs",453600,"mg/lbs"]
["Toxic Equivalency Factor for formulation:  (See risk assessment if this has a value other than 1.)","TEF"]
[null,"Central ",{"$f":"'A01'!C$24","v":1},"unitless","Worksheet A01"]
[null,"Lower ",{"$f":"'A01'!C$25","v":1},null,"Worksheet A01"]
[null,"Upper ",{"$f":"'A01'!C$26","v":1},null,"Worksheet A01"]
["Concentration in pond water","ConcWat","Lbs  x MgLbs x TEF ÷ VPL"]
[null,"Central ",{"$f":"C17*C$20*C22/C$15","v":6.8039999999999995E-4},"mg/L","Eq"]
[null,"Lower ",{"$f":"C18*C$20*C23/C$15","v":4.5360000000000002E-4},null,"Eq"]
[null,"Upper ",{"$f":"C19*C$20*C24/C$15","v":9.0720000000000004E-4},null,"Eq"]
["Absorbed Dose","Dose","ConcWat  × Amnt ÷ BW"]
[null,"Central ",{"$f":"C26*C$11/C$6","v":2.5406013202852664E-5},"mg/kg","Eq"]
[null,"Lower ",{"$f":"C27*C$11/C$6","v":1.6937342135235111E-5},"mg/kg","Eq"]
[null,"Upper ",{"$f":"C28*C$11/C$6","v":3.3874684270470223E-5},"mg/kg","Eq"]

{"sheet":"F04a","index":58,"n_rows":50,"n_cols":5,"rows_kept":50,"cut":false,"hidden":false,"merged":[[36,0,39,0],[41,0,44,0],[45,0,48,0],[12,0,15,0],[16,0,19,0],[22,0,24,0],[27,0,28,0],[30,0,31,0],[32,0,33,0],[7,0,10,0],[0,0,0,4],[1,1,1,3],[2,1,2,3],[3,1,3,3],[4,1,4,3]]}
["Acute scenario for the consumption of Contaminated Fish ( Accidental Spill) by Bird, piscivorous "]
["Short Title","Fish consumption, accidental spill",null,null,"FishKcalV6"]
["Predator","Bird, piscivorous"]
["Food Item (Prey)","Fish"]
["Duration","Acute",null,null,"Scenario parameter"]
["Parameter/Assumption","Code / Range","Equation/   Value","Units","Reference/Designation"]
["Water"]
["Concentration in water","ConcWat"]
[null,"Central ",{"$f":"B04b!Acute_C","v":6.8039999999999995E-4},"mg/L","='B04b'!Acute_C"]
[null,"Lower ",{"$f":"B04b!Acute_L","v":4.5360000000000002E-4},null,"='B04b'!Acute_L"]
[null,"Upper ",{"$f":"B04b!Acute_U","v":9.0720000000000004E-4},null,"='B04b'!Acute_U"]
["Fish"]
["Bioconcentration factor","BCF"]
[null,"Central ",{"$f":"'B01'!$C$6","v":2.4079999999999999},"L/kg"]
[null,"Lower ",{"$f":"'B01'!$C$6","v":2.4079999999999999}]
[null,"Upper ",{"$f":"'B01'!$C$6","v":2.4079999999999999}]
["Concentration in fish","ConcFish","ConcWat × BCF"]
[null,"Central ",{"$f":"C9*C14","v":1.6384031999999997E-3},"mg/kg","Eq"]
[null,"Lower ",{"$f":"C10*C15","v":1.0922688E-3},null,"Eq"]
[null,"Upper ",{"$f":"C11*C16","v":2.1845376000000001E-3},null,"Eq"]
["Receptor"]
["Body weight","BW",{"$f":"A02b!$C$24","v":2.4},"kg","Sibley 2000"]
["Allometric coefficients for caloric requirement per day in kilocalories and BW in grams"]
[null,"alpha",{"$f":"A02b!$C$27","v":1.9159999999999999},null,"U.S. EPA/ORD 1993"]
[null,"beta",{"$f":"A02b!$C$28","v":0.70399999999999996},null,"U.S. EPA/ORD 1993"]
["Caloric requirement per day","KR",{"$f":"C24*(C22*1000)^C25","v":459.26591923752829},"kcal/day","Eq"]
["Caloric content of commodity (dry weight)","KCD",{"$f":"'A03'!$E$36","v":3.87},"kcal/gdw [Note 1]","U.S. EPA/ORD 1993"]
["Food consumed per day (dry weight)","AmntDry"," = KR ÷ KCD"]
[null,null,{"$f":"C26/C27","v":118.67336414406415},"gdry/day","Eq"]
["Water content of vegetation as a proportion","PropWater",{"$f":"'A03'!$E$37","v":0.7},"gwater/gfood","Ali et al. 2005"]
["Dry weight content of vegetation as a proportion","PropDry"," = 1-PropWater"]
[null,null,{"$f":"1-C30","v":0.30000000000000004},"gdry/gfood","Eq"]
["Amount of fish consumed per day,  wet weight","AmntFish"," = (AmntDry ÷ PropDry) ÷ (1000g/kg)"]
[null,"Central ",{"$f":"(C29/C32)/1000","v":0.39557788048021375},"kgfood/day","Eq"]
[null,"Lower ",{"$f":"C34*0.3","v":0.11867336414406413},"Note 1","Eq"]
[null,"Upper ",{"$f":"C34*1.7","v":0.67248239681636335},"Note 1","Eq"]
["Proportion of diet that is contaminated","Prop"]
[null,"Central ",0.3,"Unitless","Scenario parameter"]
[null,"Lower ",0.1,null,"Scenario parameter"]
[null,"Upper ",1,null,"Scenario parameter"]
["Dose"]
["Toxic Equivalency Factor for formulation:  (See risk assessment if this has a value other than 1.)","TEF"]
[null,"Central ",{"$f":"'A01'!C$24","v":1},"Unitless","Worksheet A01"]
[null,"Lower ",{"$f":"'A01'!C$25","v":1},"Note 2","Worksheet A01"]
[null,"Upper ",{"$f":"'A01'!C$26","v":1},"Note 2","Worksheet A01"]
["Dose","Dose","= ConcFish × AmntFish × Prop ÷ BW"]
[null,"Central ",{"$f":"C18*C34*C38/C$22","v":8.1014508153499958E-5},"mg/kg","Eq"]
[null,"Lower ",{"$f":"C19*C35*C39/C$22","v":5.4009672102333312E-6},"mg/kg","Eq"]
[null,"Upper ",6.121096171597775E-4,"mg/kg","Eq"]
[null,null,null,null,"FishKcalV6"]

{"sheet":"F04b","index":59,"n_rows":50,"n_cols":5,"rows_kept":50,"cut":false,"hidden":false,"merged":[[36,0,39,0],[41,0,44,0],[45,0,48,0],[12,0,15,0],[16,0,19,0],[22,0,24,0],[27,0,28,0],[30,0,31,0],[32,0,33,0],[7,0,10,0],[0,0,0,4],[1,1,1,3],[2,1,2,3],[3,1,3,3],[4,1,4,3]]}
["Acute scenario for the consumption of Contaminated Fish (Peak) by Bird, piscivorous "]
["Short Title","Fish consumption, accidental spill",null,null,"FishKcalV6"]
["Predator","Bird, piscivorous"]
["Food Item (Prey)","Fish"]
["Duration","Acute",null,null,"Scenario parameter"]
["Parameter/Assumption","Code / Range","Equation/   Value","Units","Reference/Designation"]
["Water"]
["Concentration in water","ConcWat"]
[null,"Central ",{"$f":"B04a!Acute_C","v":1.2500000000000001E-6},"mg/L","='B04a'!Acute_C"]
[null,"Lower ",{"$f":"B04a!Acute_L","v":1.2500000000000002E-7},null,"='B04a'!Acute_L"]
[null,"Upper ",{"$f":"B04a!Acute_U","v":6.2500000000000003E-6},null,"='B04a'!Acute_U"]
["Fish"]
["Bioconcentration factor","BCF"]
[null,"Central ",{"$f":"'B01'!$C$6","v":2.4079999999999999},"L/kg"]
[null,"Lower ",{"$f":"'B01'!$C$6","v":2.4079999999999999}]
[null,"Upper ",{"$f":"'B01'!$C$6","v":2.4079999999999999}]
["Concentration in fish","ConcFish","ConcWat × BCF"]
[null,"Central ",{"$f":"C9*C14","v":3.01E-6},"mg/kg","Eq"]
[null,"Lower ",{"$f":"C10*C15","v":3.0100000000000006E-7},null,"Eq"]
[null,"Upper ",{"$f":"C11*C16","v":1.505E-5},null,"Eq"]
["Receptor"]
["Body weight","BW",{"$f":"A02b!$C$24","v":2.4},"kg","Sibley 2000"]
["Allometric coefficients for caloric requirement per day in kilocalories and BW in grams"]
[null,"alpha",{"$f":"A02b!$C$27","v":1.9159999999999999},null,"U.S. EPA/ORD 1993"]
[null,"beta",{"$f":"A02b!$C$28","v":0.70399999999999996},null,"U.S. EPA/ORD 1993"]
["Caloric requirement per day","KR",{"$f":"C24*(C22*1000)^C25","v":459.26591923752829},"kcal/day","Eq"]
["Caloric content of commodity (dry weight)","KCD",{"$f":"'A03'!$E$36","v":3.87},"kcal/gdw [Note 1]","U.S. EPA/ORD 1993"]
["Food consumed per day (dry weight)","AmntDry"," = KR ÷ KCD"]
[null,null,{"$f":"C26/C27","v":118.67336414406415},"gdry/day","Eq"]
["Water content of vegetation as a proportion","PropWater",{"$f":"'A03'!$E$37","v":0.7},"gwater/gfood","Ali et al. 2005"]
["Dry weight content of vegetation as a proportion","PropDry"," = 1-PropWater"]
[null,null,{"$f":"1-C30","v":0.30000000000000004},"gdry/gfood","Eq"]
["Amount of fish consumed per day,  wet weight","AmntFish"," = (AmntDry ÷ PropDry) ÷ (1000g/kg)"]
[null,"Central ",{"$f":"(C29/C32)/1000","v":0.39557788048021375},"kgfood/day","Eq"]
[null,"Lower ",{"$f":"C34*0.3","v":0.11867336414406413},"Note 1","Eq"]
[null,"Upper ",{"$f":"C34*1.7","v":0.67248239681636335},"Note 1","Eq"]
["Proportion of diet that is contaminated","Prop"]
[null,"Central ",0.3,"Unitless","Scenario parameter"]
[null,"Lower ",0.1,null,"Scenario parameter"]
[null,"Upper ",1,null,"Scenario parameter"]
["Dose"]
["Toxic Equivalency Factor for formulation:  (See risk assessment if this has a value other than 1.)","TEF"]
[null,"Central ",{"$f":"'A01'!C$24","v":1},"Unitless","Worksheet A01"]
[null,"Lower ",{"$f":"'A01'!C$25","v":1},"Note 2","Worksheet A01"]
[null,"Upper ",{"$f":"'A01'!C$26","v":1},"Note 2","Worksheet A01"]
["Dose","Dose","= ConcFish × AmntFish × Prop ÷ BW"]
[null,"Central ",{"$f":"C18*C34*C38/C$22","v":1.4883617753068041E-7},"mg/kg","Eq"]
[null,"Lower ",{"$f":"C19*C35*C39/C$22","v":1.4883617753068048E-9},"mg/kg","Eq"]
[null,"Upper ",4.2170250300359455E-6,"mg/kg","Eq"]
[null,null,null,null,"FishKcalV6"]

{"sheet":"F04c","index":60,"n_rows":50,"n_cols":5,"rows_kept":50,"cut":false,"hidden":false,"merged":[[36,0,39,0],[41,0,44,0],[45,0,48,0],[12,0,15,0],[16,0,19,0],[22,0,24,0],[27,0,28,0],[30,0,31,0],[32,0,33,0],[7,0,10,0],[0,0,0,4],[1,1,1,3],[2,1,2,3],[3,1,3,3],[4,1,4,3]]}
["Chronic scenario for the consumption of Contaminated Fish (Longer-term) by Bird, piscivorous "]
["Short Title","Fish consumption, accidental spill",null,null,"FishKcalV6"]
["Predator","Bird, piscivorous"]
["Food Item (Prey)","Fish"]
["Duration","Chronic",null,null,"Scenario parameter"]
["Parameter/Assumption","Code / Range","Equation/   Value","Units","Reference/Designation"]
["Water"]
["Concentration in water","ConcWat"]
[null,"Central ",{"$f":"B04a!Chronic_C","v":3.1250000000000005E-8},"mg/L","='B04a'!Chronic_C"]
[null,"Lower ",{"$f":"B04a!Chronic_L","v":1.25E-9},null,"='B04a'!Chronic_L"]
[null,"Upper ",{"$f":"B04a!Chronic_U","v":1.8749999999999998E-7},null,"='B04a'!Chronic_U"]
["Fish"]
["Bioconcentration factor","BCF"]
[null,"Central ",{"$f":"'B01'!$C$6","v":2.4079999999999999},"L/kg"]
[null,"Lower ",{"$f":"'B01'!$C$6","v":2.4079999999999999}]
[null,"Upper ",{"$f":"'B01'!$C$6","v":2.4079999999999999}]
["Concentration in fish","ConcFish","ConcWat × BCF"]
[null,"Central ",{"$f":"C9*C14","v":7.5250000000000015E-8},"mg/kg","Eq"]
[null,"Lower ",{"$f":"C10*C15","v":3.0100000000000002E-9},null,"Eq"]
[null,"Upper ",{"$f":"C11*C16","v":4.5149999999999993E-7},null,"Eq"]
["Receptor"]
["Body weight","BW",{"$f":"A02b!$C$24","v":2.4},"kg","Sibley 2000"]
["Allometric coefficients for caloric requirement per day in kilocalories and BW in grams"]
[null,"alpha",{"$f":"A02b!$C$27","v":1.9159999999999999},null,"U.S. EPA/ORD 1993"]
[null,"beta",{"$f":"A02b!$C$28","v":0.70399999999999996},null,"U.S. EPA/ORD 1993"]
["Caloric requirement per day","KR",{"$f":"C24*(C22*1000)^C25","v":459.26591923752829},"kcal/day","Eq"]
["Caloric content of commodity (dry weight)","KCD",{"$f":"'A03'!$E$36","v":3.87},"kcal/gdw [Note 1]","U.S. EPA/ORD 1993"]
["Food consumed per day (dry weight)","AmntDry"," = KR ÷ KCD"]
[null,null,{"$f":"C26/C27","v":118.67336414406415},"gdry/day","Eq"]
["Water content of vegetation as a proportion","PropWater",{"$f":"'A03'!$E$37","v":0.7},"gwater/gfood","Ali et al. 2005"]
["Dry weight content of vegetation as a proportion","PropDry"," = 1-PropWater"]
[null,null,{"$f":"1-C30","v":0.30000000000000004},"gdry/gfood","Eq"]
["Amount of fish consumed per day,  wet weight","AmntFish"," = (AmntDry ÷ PropDry) ÷ (1000g/kg)"]
[null,"Central ",{"$f":"(C29/C32)/1000","v":0.39557788048021375},"kgfood/day","Eq"]
[null,"Lower ",{"$f":"C34*0.3","v":0.11867336414406413},"Note 1","Eq"]
[null,"Upper ",{"$f":"C34*1.7","v":0.67248239681636335},"Note 1","Eq"]
["Proportion of diet that is contaminated","Prop"]
[null,"Central ",0.3,"Unitless","Scenario parameter"]
[null,"Lower ",0.1,null,"Scenario parameter"]
[null,"Upper ",1,null,"Scenario parameter"]
["Dose"]
["Toxic Equivalency Factor for formulation:  (See risk assessment if this has a value other than 1.)","TEF"]
[null,"Central ",{"$f":"'A01'!C$24","v":1},"Unitless","Worksheet A01"]
[null,"Lower ",{"$f":"'A01'!C$25","v":1},"Note 2","Worksheet A01"]
[null,"Upper ",{"$f":"'A01'!C$26","v":1},"Note 2","Worksheet A01"]
["Dose","Dose","= ConcFish × AmntFish × Prop ÷ BW"]
[null,"Central ",{"$f":"C18*C34*C38/C$22","v":3.7209044382670109E-9},"mg/kg","Eq"]
[null,"Lower ",{"$f":"C19*C35*C39/C$22","v":1.4883617753068046E-11},"mg/kg","Eq"]
[null,"Upper ",1.2651075090107834E-7,"mg/kg","Eq"]
[null,null,null,null,"FishKcalV6"]

{"sheet":"F05a","index":61,"n_rows":28,"n_cols":5,"rows_kept":28,"cut":false,"hidden":false,"merged":[[24,0,27,0],[0,0,0,4],[2,1,2,3],[4,1,4,3],[8,0,10,0],[16,0,19,0],[20,0,23,0],[21,3,23,3]]}
["Consumption of Contaminated Bait, Mouse, Standard Application "]
["Short Title","Mouse, Standard Application",null,null,"BaitAlloBW_Ac"]
["Receptor","Mouse",null,null,"Scenario parameter"]
["Duration","Acute"]
["Material consumed","Bait"]
["Parameter/Assumption","Code / Range","Equation/   Value","Units","Reference/Designation"]
["Percent a.i. in bait","PerCentAI",{"$f":"'A01'!PerCentAI","v":5.0000000000000002E-5},"percent","Worksheet A01"]
["Body weight","BW",0.02,"kg","Scenario parameter"]
["Allometric coefficients for food consumption per day in grams and BW in grams"]
[null,"alpha",{"$f":"A02b!$C$69","v":0.621},null,"U.S. EPA/ORD 1993"]
[null,"beta",{"$f":"A02b!$C$70","v":0.58399999999999996},null,"U.S. EPA/ORD 1993"]
["Amount of food  consumed per day","Amnt",{"$f":"C10*((C8*1000)^C11)","v":3.571849220820428},"grams","Eq"]
["Proportion of diet as bait","PropC"]
[null,"Central ",2E-3,"Unitless","Scenario parameter"]
[null,"Lower ",2.0000000000000001E-4,null,"Scenario parameter"]
[null,"Upper ",0.02,null,"Scenario parameter"]
["Consumption of Bait (unadjusted for a.i.)","Bait","(Amnt x  PropC )"]
[null,"Central ",{"$f":"C$12*C14","v":7.1436984416408562E-3},"grams of bait"]
[null,"Lower ",{"$f":"C$12*C15","v":7.143698441640856E-4}]
[null,"Upper ",{"$f":"C$12*C16","v":7.1436984416408555E-2}]
["Amount of a.i. consumed","AmntAI","Bait x PerCentAI x 1000 mg/g)"]
[null,"Central ",{"$f":"C$7*C18*1000","v":3.571849220820428E-4},"mg a.i.","Eq"]
[null,"Lower ",{"$f":"C$7*C19*1000","v":3.5718492208204281E-5},null,"Eq"]
[null,"Upper ",{"$f":"C$7*C20*1000","v":3.5718492208204281E-3},null,"Eq"]
["Dose","Dose","AmntAI / BW"]
[null,"Central",{"$f":"C22/C$8","v":1.7859246104102139E-2},"mg/kg bw","Eq"]
[null,"Lower",{"$f":"C23/C$8","v":1.7859246104102141E-3},null,"Eq"]
[null,"Upper",{"$f":"C24/C$8","v":0.17859246104102139},null,"Eq"]

{"sheet":"F05b","index":62,"n_rows":28,"n_cols":5,"rows_kept":28,"cut":false,"hidden":false,"merged":[[24,0,27,0],[0,0,0,4],[2,1,2,3],[4,1,4,3],[8,0,10,0],[16,0,19,0],[20,0,23,0],[21,3,23,3]]}
["Consumption of Contaminated Bait, Squirrel, Standard Application "]
["Short Title","Squirrel, Standard Application",null,null,"BaitAlloBW_Ac"]
["Receptor","Squirrel",null,null,"Scenario parameter"]
["Duration","Acute"]
["Material consumed","Bait"]
["Parameter/Assumption","Code / Range","Equation/   Value","Units","Reference/Designation"]
["Percent a.i. in bait","PerCentAI",{"$f":"'A01'!PerCentAI","v":5.0000000000000002E-5},"percent","Worksheet A01"]
["Body weight","BW",0.15,"kg","Scenario parameter"]
["Allometric coefficients for food consumption per day in grams and BW in grams"]
[null,"alpha",{"$f":"A02b!$C$69","v":0.621},null,"U.S. EPA/ORD 1993"]
[null,"beta",{"$f":"A02b!$C$70","v":0.58399999999999996},null,"U.S. EPA/ORD 1993"]
["Amount of food  consumed per day","Amnt",{"$f":"C10*((C8*1000)^C11)","v":11.585876517407447},"grams","Eq"]
["Proportion of diet as bait","PropC"]
[null,"Central ",2E-3,"Unitless","Scenario parameter"]
[null,"Lower ",2.0000000000000001E-4,null,"Scenario parameter"]
[null,"Upper ",0.02,null,"Scenario parameter"]
["Consumption of Bait (unadjusted for a.i.)","Bait","(Amnt x  PropC )"]
[null,"Central ",{"$f":"C$12*C14","v":2.3171753034814894E-2},"grams of bait"]
[null,"Lower ",{"$f":"C$12*C15","v":2.3171753034814894E-3}]
[null,"Upper ",{"$f":"C$12*C16","v":0.23171753034814896}]
["Amount of a.i. consumed","AmntAI","Bait x PerCentAI x 1000 mg/g)"]
[null,"Central ",{"$f":"C$7*C18*1000","v":1.1585876517407447E-3},"mg a.i.","Eq"]
[null,"Lower ",{"$f":"C$7*C19*1000","v":1.1585876517407447E-4},null,"Eq"]
[null,"Upper ",{"$f":"C$7*C20*1000","v":1.1585876517407449E-2},null,"Eq"]
["Dose","Dose","AmntAI / BW"]
[null,"Central",{"$f":"C22/C$8","v":7.7239176782716319E-3},"mg/kg bw","Eq"]
[null,"Lower",{"$f":"C23/C$8","v":7.7239176782716316E-4},null,"Eq"]
[null,"Upper",{"$f":"C24/C$8","v":7.7239176782716329E-2},null,"Eq"]

{"sheet":"F05c","index":63,"n_rows":28,"n_cols":5,"rows_kept":28,"cut":false,"hidden":false,"merged":[[24,0,27,0],[0,0,0,4],[2,1,2,3],[4,1,4,3],[8,0,10,0],[16,0,19,0],[20,0,23,0],[21,3,23,3]]}
["Consumption of Contaminated Bait, Skunk, Standard Application "]
["Short Title","Skunk, Standard Application",null,null,"BaitAlloBW_Ac"]
["Receptor","Skunk",null,null,"Scenario parameter"]
["Duration","Acute"]
["Material consumed","Bait"]
["Parameter/Assumption","Code / Range","Equation/   Value","Units","Reference/Designation"]
["Percent a.i. in bait","PerCentAI",{"$f":"'A01'!PerCentAI","v":5.0000000000000002E-5},"percent","Worksheet A01"]
["Body weight","BW",2,"kg","Scenario parameter"]
["Allometric coefficients for food consumption per day in grams and BW in grams"]
[null,"alpha",{"$f":"A02b!$C$69","v":0.621},null,"U.S. EPA/ORD 1993"]
[null,"beta",{"$f":"A02b!$C$70","v":0.58399999999999996},null,"U.S. EPA/ORD 1993"]
["Amount of food  consumed per day","Amnt",{"$f":"C10*((C8*1000)^C11)","v":52.588782646184804},"grams","Eq"]
["Proportion of diet as bait","PropC"]
[null,"Central ",2E-3,"Unitless","Scenario parameter"]
[null,"Lower ",2.0000000000000001E-4,null,"Scenario parameter"]
[null,"Upper ",0.02,null,"Scenario parameter"]
["Consumption of Bait (unadjusted for a.i.)","Bait","(Amnt x  PropC )"]
[null,"Central ",{"$f":"C$12*C14","v":0.10517756529236962},"grams of bait"]
[null,"Lower ",{"$f":"C$12*C15","v":1.0517756529236961E-2}]
[null,"Upper ",{"$f":"C$12*C16","v":1.0517756529236961}]
["Amount of a.i. consumed","AmntAI","Bait x PerCentAI x 1000 mg/g)"]
[null,"Central ",{"$f":"C$7*C18*1000","v":5.2588782646184815E-3},"mg a.i.","Eq"]
[null,"Lower ",{"$f":"C$7*C19*1000","v":5.2588782646184812E-4},null,"Eq"]
[null,"Upper ",{"$f":"C$7*C20*1000","v":5.2588782646184808E-2},null,"Eq"]
["Dose","Dose","AmntAI / BW"]
[null,"Central",{"$f":"C22/C$8","v":2.6294391323092407E-3},"mg/kg bw","Eq"]
[null,"Lower",{"$f":"C23/C$8","v":2.6294391323092406E-4},null,"Eq"]
[null,"Upper",{"$f":"C24/C$8","v":2.6294391323092404E-2},null,"Eq"]

{"sheet":"F05d","index":64,"n_rows":28,"n_cols":5,"rows_kept":28,"cut":false,"hidden":false,"merged":[[24,0,27,0],[0,0,0,4],[2,1,2,3],[4,1,4,3],[8,0,10,0],[16,0,19,0],[20,0,23,0],[21,3,23,3]]}
["Consumption of Contaminated Bait, Passerine, Standard Application "]
["Short Title","Passerine, Standard Application",null,null,"BaitAlloBW_Ac"]
["Receptor","Small Passerine",null,null,"Scenario parameter"]
["Duration","Acute"]
["Material consumed","Bait"]
["Parameter/Assumption","Code / Range","Equation/   Value","Units","Reference/Designation"]
["Percent a.i. in bait","PerCentAI",{"$f":"'A01'!PerCentAI","v":5.0000000000000002E-5},"percent","Worksheet A01"]
["Body weight","BW",0.02,"kg","Scenario parameter"]
["Allometric coefficients for food consumption per day in grams and BW in grams"]
[null,"alpha",{"$f":"A02b!$C$22","v":0.39800000000000002},null,"U.S. EPA/ORD 1993"]
[null,"beta",{"$f":"A02b!$C$23","v":0.85},null,"U.S. EPA/ORD 1993"]
["Amount of food  consumed per day","Amnt",{"$f":"C10*((C8*1000)^C11)","v":5.0787702668095474},"grams","Eq"]
["Proportion of diet as bait","PropC"]
[null,"Central ",2.0000000000000002E-5,"Unitless","Worksheet A01"]
[null,"Lower ",1.9999999999999999E-6,null,"Worksheet A01"]
[null,"Upper ",2.0000000000000001E-4,null,"Worksheet A01"]
["Consumption of Bait (unadjusted for a.i.)","Bait","(Amnt x  PropC )"]
[null,"Central ",{"$f":"C$12*C14","v":1.0157540533619095E-4},"grams of bait"]
[null,"Lower ",{"$f":"C$12*C15","v":1.0157540533619095E-5}]
[null,"Upper ",{"$f":"C$12*C16","v":1.0157540533619095E-3}]
["Amount of a.i. consumed","AmntAI","Bait x PerCentAI x 1000 mg/g)"]
[null,"Central ",{"$f":"C$7*C18*1000","v":5.0787702668095474E-6},"mg a.i.","Eq"]
[null,"Lower ",{"$f":"C$7*C19*1000","v":5.078770266809548E-7},null,"Eq"]
[null,"Upper ",{"$f":"C$7*C20*1000","v":5.0787702668095476E-5},null,"Eq"]
["Dose","Dose","AmntAI / BW"]
[null,"Central",{"$f":"C22/C$8","v":2.5393851334047738E-4},"mg/kg bw","Eq"]
[null,"Lower",{"$f":"C23/C$8","v":2.5393851334047741E-5},null,"Eq"]
[null,"Upper",{"$f":"C24/C$8","v":2.5393851334047737E-3},null,"Eq"]

{"sheet":"F05e","index":65,"n_rows":28,"n_cols":5,"rows_kept":28,"cut":false,"hidden":false,"merged":[[24,0,27,0],[0,0,0,4],[2,1,2,3],[4,1,4,3],[8,0,10,0],[16,0,19,0],[20,0,23,0],[21,3,23,3]]}
["Consumption of Contaminated Bait, Mallard, Standard Application "]
["Short Title","Mallard, Standard Application",null,null,"BaitAlloBW_Ac"]
["Receptor","Mallard",null,null,"Scenario parameter"]
["Duration","Acute"]
["Material consumed","Bait"]
["Parameter/Assumption","Code / Range","Equation/   Value","Units","Reference/Designation"]
["Percent a.i. in bait","PerCentAI",{"$f":"'A01'!PerCentAI","v":5.0000000000000002E-5},"percent","Worksheet A01"]
["Body weight","BW",1,"kg","Scenario parameter"]
["Allometric coefficients for food consumption per day in grams and BW in grams"]
[null,"alpha",{"$f":"A02b!$C$20","v":0.30099999999999999},null,"U.S. EPA/ORD 1993"]
[null,"beta",{"$f":"A02b!$C$21","v":0.751},null,"U.S. EPA/ORD 1993"]
["Amount of food  consumed per day","Amnt",{"$f":"C10*((C8*1000)^C11)","v":53.89723620646236},"grams","Eq"]
["Proportion of diet as bait","PropC"]
[null,"Central ",{"$f":"F05d!C$14","v":2.0000000000000002E-5},"Unitless","Worksheet A01"]
[null,"Lower ",{"$f":"F05d!C$15","v":1.9999999999999999E-6},null,"Worksheet A01"]
[null,"Upper ",{"$f":"F05d!C$16","v":2.0000000000000001E-4},null,"Worksheet A01"]
["Consumption of Bait (unadjusted for a.i.)","Bait","(Amnt x  PropC )"]
[null,"Central ",{"$f":"C$12*C14","v":1.0779447241292472E-3},"grams of bait"]
[null,"Lower ",{"$f":"C$12*C15","v":1.0779447241292472E-4}]
[null,"Upper ",{"$f":"C$12*C16","v":1.0779447241292473E-2}]
["Amount of a.i. consumed","AmntAI","Bait x PerCentAI x 1000 mg/g)"]
[null,"Central ",{"$f":"C$7*C18*1000","v":5.3897236206462358E-5},"mg a.i.","Eq"]
[null,"Lower ",{"$f":"C$7*C19*1000","v":5.3897236206462361E-6},null,"Eq"]
[null,"Upper ",{"$f":"C$7*C20*1000","v":5.389723620646237E-4},null,"Eq"]
["Dose","Dose","AmntAI / BW"]
[null,"Central",{"$f":"C22/C$8","v":5.3897236206462358E-5},"mg/kg bw","Eq"]
[null,"Lower",{"$f":"C23/C$8","v":5.3897236206462361E-6},null,"Eq"]
[null,"Upper",{"$f":"C24/C$8","v":5.389723620646237E-4},null,"Eq"]

{"sheet":"F05f","index":66,"n_rows":28,"n_cols":5,"rows_kept":28,"cut":false,"hidden":false,"merged":[[24,0,27,0],[0,0,0,4],[2,1,2,3],[4,1,4,3],[8,0,10,0],[16,0,19,0],[20,0,23,0],[21,3,23,3]]}
["Consumption of Contaminated Bait, Pigeon, Standard Application "]
["Short Title","Pigeon, Standard Application",null,null,"BaitAlloBW_Ac"]
["Receptor","Pigeon",null,null,"Scenario parameter"]
["Duration","Acute"]
["Material consumed","Bait"]
["Parameter/Assumption","Code / Range","Equation/   Value","Units","Reference/Designation"]
["Percent a.i. in bait","PerCentAI",{"$f":"'A01'!PerCentAI","v":5.0000000000000002E-5},"percent","Worksheet A01"]
["Body weight","BW",0.35,"kg","Scenario parameter"]
["Allometric coefficients for food consumption per day in grams and BW in grams"]
[null,"alpha",{"$f":"A02b!$C$20","v":0.30099999999999999},null,"U.S. EPA/ORD 1993"]
[null,"beta",{"$f":"A02b!$C$21","v":0.751},null,"U.S. EPA/ORD 1993"]
["Amount of food  consumed per day","Amnt",{"$f":"C10*((C8*1000)^C11)","v":24.499746848519688},"grams","Eq"]
["Proportion of diet as bait","PropC"]
[null,"Central ",{"$f":"F05d!C$14","v":2.0000000000000002E-5},"Unitless","Worksheet A01"]
[null,"Lower ",{"$f":"F05d!C$15","v":1.9999999999999999E-6},null,"Worksheet A01"]
[null,"Upper ",{"$f":"F05d!C$16","v":2.0000000000000001E-4},null,"Worksheet A01"]
["Consumption of Bait (unadjusted for a.i.)","Bait","(Amnt x  PropC )"]
[null,"Central ",{"$f":"C$12*C14","v":4.8999493697039385E-4},"grams of bait"]
[null,"Lower ",{"$f":"C$12*C15","v":4.8999493697039375E-5}]
[null,"Upper ",{"$f":"C$12*C16","v":4.8999493697039383E-3}]
["Amount of a.i. consumed","AmntAI","Bait x PerCentAI x 1000 mg/g)"]
[null,"Central ",{"$f":"C$7*C18*1000","v":2.4499746848519694E-5},"mg a.i.","Eq"]
[null,"Lower ",{"$f":"C$7*C19*1000","v":2.4499746848519689E-6},null,"Eq"]
[null,"Upper ",{"$f":"C$7*C20*1000","v":2.4499746848519692E-4},null,"Eq"]
["Dose","Dose","AmntAI / BW"]
[null,"Central",{"$f":"C22/C$8","v":6.9999276710056268E-5},"mg/kg bw","Eq"]
[null,"Lower",{"$f":"C23/C$8","v":6.9999276710056258E-6},null,"Eq"]
[null,"Upper",{"$f":"C24/C$8","v":6.9999276710056273E-4},null,"Eq"]

{"sheet":"F05g","index":67,"n_rows":28,"n_cols":5,"rows_kept":28,"cut":false,"hidden":false,"merged":[[24,0,27,0],[0,0,0,4],[2,1,2,3],[4,1,4,3],[8,0,10,0],[16,0,19,0],[20,0,23,0],[21,3,23,3]]}
["Consumption of Contaminated Bait, Quail, Standard Application "]
["Short Title","Quail, Standard Application",null,null,"BaitAlloBW_Ac"]
["Receptor","Quail",null,null,"Scenario parameter"]
["Duration","Acute"]
["Material consumed","Bait"]
["Parameter/Assumption","Code / Range","Equation/   Value","Units","Reference/Designation"]
["Percent a.i. in bait","PerCentAI",{"$f":"'A01'!PerCentAI","v":5.0000000000000002E-5},"percent","Worksheet A01"]
["Body weight","BW",0.2,"kg","Scenario parameter"]
["Allometric coefficients for food consumption per day in grams and BW in grams"]
[null,"alpha",{"$f":"A02b!$C$20","v":0.30099999999999999},null,"U.S. EPA/ORD 1993"]
[null,"beta",{"$f":"A02b!$C$21","v":0.751},null,"U.S. EPA/ORD 1993"]
["Amount of food  consumed per day","Amnt",{"$f":"C10*((C8*1000)^C11)","v":16.09311157650243},"grams","Eq"]
["Proportion of diet as bait","PropC"]
[null,"Central ",{"$f":"F05d!C$14","v":2.0000000000000002E-5},"Unitless","Worksheet A01"]
[null,"Lower ",{"$f":"F05d!C$15","v":1.9999999999999999E-6},null,"Worksheet A01"]
[null,"Upper ",{"$f":"F05d!C$16","v":2.0000000000000001E-4},null,"Worksheet A01"]
["Consumption of Bait (unadjusted for a.i.)","Bait","(Amnt x  PropC )"]
[null,"Central ",{"$f":"C$12*C14","v":3.2186223153004862E-4},"grams of bait"]
[null,"Lower ",{"$f":"C$12*C15","v":3.2186223153004857E-5}]
[null,"Upper ",{"$f":"C$12*C16","v":3.2186223153004862E-3}]
["Amount of a.i. consumed","AmntAI","Bait x PerCentAI x 1000 mg/g)"]
[null,"Central ",{"$f":"C$7*C18*1000","v":1.6093111576502432E-5},"mg a.i.","Eq"]
[null,"Lower ",{"$f":"C$7*C19*1000","v":1.6093111576502428E-6},null,"Eq"]
[null,"Upper ",{"$f":"C$7*C20*1000","v":1.6093111576502431E-4},null,"Eq"]
["Dose","Dose","AmntAI / BW"]
[null,"Central",{"$f":"C22/C$8","v":8.0465557882512155E-5},"mg/kg bw","Eq"]
[null,"Lower",{"$f":"C23/C$8","v":8.0465557882512125E-6},null,"Eq"]
[null,"Upper",{"$f":"C24/C$8","v":8.0465557882512155E-4},null,"Eq"]

{"sheet":"F06a","index":68,"n_rows":20,"n_cols":5,"rows_kept":20,"cut":false,"hidden":false,"merged":[[16,0,19,0],[0,0,0,4],[1,1,1,3],[2,1,2,3],[5,0,8,0],[11,0,13,0],[14,0,15,0]]}
["Consumption of contaminated water by Mammal, small, Peak Concentrations "]
["Short Title","Peak Concentrations",null,null,"WatAlloV6"]
["Receptor","Mammal, small"]
["Duration","Acute",null,null,"Scenario parameter"]
["Parameter/Assumption","Code / Range","Equation/   Value","Units","Reference/Designation"]
["Concentration in water","ConcWat"]
[null,"Central ",{"$f":"B04a!Acute_C","v":1.2500000000000001E-6},"mg/L","='B04a'!Acute_C"]
[null,"Lower ",{"$f":"B04a!Acute_L","v":1.2500000000000002E-7},null,"='B04a'!Acute_L"]
[null,"Upper ",{"$f":"B04a!Acute_U","v":6.2500000000000003E-6},null,"='B04a'!Acute_U"]
["Receptor"]
["Body weight","BW",{"$f":"A02b!$C$71","v":0.02},"kg","Default"]
["Allometric coefficients forwater consumption per day in liters and BW in kilograms"]
[null,"alpha",{"$f":"A02b!$C$79","v":9.9000000000000005E-2},null,"U.S. EPA/ORD 1993"]
[null,"beta",{"$f":"A02b!$C$80","v":0.9},null,"U.S. EPA/ORD 1993"]
["Amount of water consumed per day",null,"Amnt = alpha BW beta"]
[null,"Amnt",{"$f":"C13*(C11^C14)","v":2.9279401205240612E-3},"liters","Eq"]
["Absorbed Dose","Dose","ConcWat  × Amnt ÷ BW"]
[null,"Central ",{"$f":"C7*C$16/C$11","v":1.8299625753275385E-7},"mg/kg","Eq"]
[null,"Lower ",{"$f":"C8*C$16/C$11","v":1.8299625753275384E-8},"mg/kg","Eq"]
[null,"Upper ",{"$f":"C9*C$16/C$11","v":9.1498128766376923E-7},"mg/kg","Eq"]

{"sheet":"F06b","index":69,"n_rows":20,"n_cols":5,"rows_kept":20,"cut":false,"hidden":false,"merged":[[16,0,19,0],[0,0,0,4],[1,1,1,3],[2,1,2,3],[5,0,8,0],[11,0,13,0],[14,0,15,0]]}
["Consumption of contaminated water by Mammal, carnivorous, Peak Concentrations "]
["Short Title","Peak Concentrations",null,null,"WatAlloV6"]
["Receptor","Mammal, carnivorous"]
["Duration","Acute",null,null,"Scenario parameter"]
["Parameter/Assumption","Code / Range","Equation/   Value","Units","Reference/Designation"]
["Concentration in water","ConcWat"]
[null,"Central ",{"$f":"B04a!Acute_C","v":1.2500000000000001E-6},"mg/L","='B04a'!Acute_C"]
[null,"Lower ",{"$f":"B04a!Acute_L","v":1.2500000000000002E-7},null,"='B04a'!Acute_L"]
[null,"Upper ",{"$f":"B04a!Acute_U","v":6.2500000000000003E-6},null,"='B04a'!Acute_U"]
["Receptor"]
["Body weight","BW",{"$f":"A02b!$C$47","v":5},"kg","U.S. EPA/ORD 1993"]
["Allometric coefficients forwater consumption per day in liters and BW in kilograms"]
[null,"alpha",{"$f":"A02b!$C$50","v":9.9000000000000005E-2},null,"U.S. EPA/ORD 1993"]
[null,"beta",{"$f":"A02b!$C$51","v":0.9},null,"U.S. EPA/ORD 1993"]
["Amount of water consumed per day",null,"Amnt = alpha BW beta"]
[null,"Amnt",{"$f":"C13*(C11^C14)","v":0.42141326164778842},"liters","Eq"]
["Absorbed Dose","Dose","ConcWat  × Amnt ÷ BW"]
[null,"Central ",{"$f":"C7*C$16/C$11","v":1.0535331541194712E-7},"mg/kg","Eq"]
[null,"Lower ",{"$f":"C8*C$16/C$11","v":1.0535331541194712E-8},"mg/kg","Eq"]
[null,"Upper ",{"$f":"C9*C$16/C$11","v":5.2676657705973549E-7},"mg/kg","Eq"]

{"sheet":"F06c","index":70,"n_rows":20,"n_cols":5,"rows_kept":20,"cut":false,"hidden":false,"merged":[[16,0,19,0],[0,0,0,4],[1,1,1,3],[2,1,2,3],[5,0,8,0],[11,0,13,0],[14,0,15,0]]}
["Consumption of contaminated water by Mammal, large, Peak Concentrations "]
["Short Title","Peak Concentrations",null,null,"WatAlloV6"]
["Receptor","Mammal, large"]
["Duration","Acute",null,null,"Scenario parameter"]
["Parameter/Assumption","Code / Range","Equation/   Value","Units","Reference/Designation"]
["Concentration in water","ConcWat"]
[null,"Central ",{"$f":"B04a!Acute_C","v":1.2500000000000001E-6},"mg/L","='B04a'!Acute_C"]
[null,"Lower ",{"$f":"B04a!Acute_L","v":1.2500000000000002E-7},null,"='B04a'!Acute_L"]
[null,"Upper ",{"$f":"B04a!Acute_U","v":6.2500000000000003E-6},null,"='B04a'!Acute_U"]
["Receptor"]
["Body weight","BW",{"$f":"A02b!$C$61","v":70},"kg","Default"]
["Allometric coefficients forwater consumption per day in liters and BW in kilograms"]
[null,"alpha",{"$f":"A02b!$C$64","v":9.9000000000000005E-2},null,"U.S. EPA/ORD 1993"]
[null,"beta",{"$f":"A02b!$C$65","v":0.9},null,"U.S. EPA/ORD 1993"]
["Amount of water consumed per day",null,"Amnt = alpha BW beta"]
[null,"Amnt",{"$f":"C13*(C11^C14)","v":4.5313064115862725},"liters","Eq"]
["Absorbed Dose","Dose","ConcWat  × Amnt ÷ BW"]
[null,"Central ",{"$f":"C7*C$16/C$11","v":8.0916185921183446E-8},"mg/kg","Eq"]
[null,"Lower ",{"$f":"C8*C$16/C$11","v":8.091618592118345E-9},"mg/kg","Eq"]
[null,"Upper ",{"$f":"C9*C$16/C$11","v":4.0458092960591721E-7},"mg/kg","Eq"]

{"sheet":"F06d","index":71,"n_rows":20,"n_cols":5,"rows_kept":20,"cut":false,"hidden":false,"merged":[[16,0,19,0],[0,0,0,4],[1,1,1,3],[2,1,2,3],[5,0,8,0],[11,0,13,0],[14,0,15,0]]}
["Consumption of contaminated water by Bird, small, Peak ConcentrationsT "]
["Short Title","Peak ConcentrationsT",null,null,"WatAlloV6"]
["Receptor","Bird, small"]
["Duration","Acute",null,null,"Scenario parameter"]
["Parameter/Assumption","Code / Range","Equation/   Value","Units","Reference/Designation"]
["Concentration in water","ConcWat"]
[null,"Central ",{"$f":"B04a!Acute_C","v":1.2500000000000001E-6},"mg/L","='B04a'!Acute_C"]
[null,"Lower ",{"$f":"B04a!Acute_L","v":1.2500000000000002E-7},null,"='B04a'!Acute_L"]
[null,"Upper ",{"$f":"B04a!Acute_U","v":6.2500000000000003E-6},null,"='B04a'!Acute_U"]
["Receptor"]
["Body weight","BW",{"$f":"A02b!$C$31","v":0.01},"kg","Default"]
["Allometric coefficients forwater consumption per day in liters and BW in kilograms"]
[null,"alpha",{"$f":"A02b!$C$34","v":5.8999999999999997E-2},null,"U.S. EPA/ORD 1993"]
[null,"beta",{"$f":"A02b!$C$35","v":0.67},null,"U.S. EPA/ORD 1993"]
["Amount of water consumed per day",null,"Amnt = alpha BW beta"]
[null,"Amnt",{"$f":"C13*(C11^C14)","v":2.6968203187277624E-3},"liters","Eq"]
["Absorbed Dose","Dose","ConcWat  × Amnt ÷ BW"]
[null,"Central ",{"$f":"C7*C$16/C$11","v":3.3710253984097033E-7},"mg/kg","Eq"]
[null,"Lower ",{"$f":"C8*C$16/C$11","v":3.3710253984097033E-8},"mg/kg","Eq"]
[null,"Upper ",{"$f":"C9*C$16/C$11","v":1.6855126992048515E-6},"mg/kg","Eq"]

{"sheet":"F06e","index":72,"n_rows":20,"n_cols":5,"rows_kept":20,"cut":false,"hidden":false,"merged":[[16,0,19,0],[0,0,0,4],[1,1,1,3],[2,1,2,3],[5,0,8,0],[11,0,13,0],[14,0,15,0]]}
["Consumption of contaminated water by Bird, large, Peak Concentrations "]
["Short Title","Peak Concentrations",null,null,"WatAlloV6"]
["Receptor","Bird, large"]
["Duration","Acute",null,null,"Scenario parameter"]
["Parameter/Assumption","Code / Range","Equation/   Value","Units","Reference/Designation"]
["Concentration in water","ConcWat"]
[null,"Central ",{"$f":"B04a!Acute_C","v":1.2500000000000001E-6},"mg/L","='B04a'!Acute_C"]
[null,"Lower ",{"$f":"B04a!Acute_L","v":1.2500000000000002E-7},null,"='B04a'!Acute_L"]
[null,"Upper ",{"$f":"B04a!Acute_U","v":6.2500000000000003E-6},null,"='B04a'!Acute_U"]
["Receptor"]
["Body weight","BW",{"$f":"A02b!$C$15","v":4},"kg","Default"]
["Allometric coefficients forwater consumption per day in liters and BW in kilograms"]
[null,"alpha",{"$f":"A02b!$C$18","v":5.8999999999999997E-2},null,"U.S. EPA/ORD 1993"]
[null,"beta",{"$f":"A02b!$C$19","v":0.67},null,"U.S. EPA/ORD 1993"]
["Amount of water consumed per day",null,"Amnt = alpha BW beta"]
[null,"Amnt",{"$f":"C13*(C11^C14)","v":0.14935927808849303},"liters","Eq"]
["Absorbed Dose","Dose","ConcWat  × Amnt ÷ BW"]
[null,"Central ",{"$f":"C7*C$16/C$11","v":4.6674774402654079E-8},"mg/kg","Eq"]
[null,"Lower ",{"$f":"C8*C$16/C$11","v":4.6674774402654082E-9},"mg/kg","Eq"]
[null,"Upper ",{"$f":"C9*C$16/C$11","v":2.3337387201327038E-7},"mg/kg","Eq"]

{"sheet":"F07a","index":73,"n_rows":20,"n_cols":5,"rows_kept":20,"cut":false,"hidden":false,"merged":[[16,0,19,0],[0,0,0,4],[1,1,1,3],[2,1,2,3],[5,0,8,0],[11,0,13,0],[14,0,15,0]]}
["Consumption of contaminated water by Mammal, small, Longer-term Concentrations "]
["Short Title","Longer-term Concentrations",null,null,"WatAlloV6"]
["Receptor","Mammal, small"]
["Duration","Chronic",null,null,"Scenario parameter"]
["Parameter/Assumption","Code / Range","Equation/   Value","Units","Reference/Designation"]
["Concentration in water","ConcWat"]
[null,"Central ",{"$f":"B04a!Chronic_C","v":3.1250000000000005E-8},"mg/L","='B04a'!Chronic_C"]
[null,"Lower ",{"$f":"B04a!Chronic_L","v":1.25E-9},null,"='B04a'!Chronic_L"]
[null,"Upper ",{"$f":"B04a!Chronic_U","v":1.8749999999999998E-7},null,"='B04a'!Chronic_U"]
["Receptor"]
["Body weight","BW",{"$f":"A02b!$C$71","v":0.02},"kg","Default"]
["Allometric coefficients forwater consumption per day in liters and BW in kilograms"]
[null,"alpha",{"$f":"A02b!$C$79","v":9.9000000000000005E-2},null,"U.S. EPA/ORD 1993"]
[null,"beta",{"$f":"A02b!$C$80","v":0.9},null,"U.S. EPA/ORD 1993"]
["Amount of water consumed per day",null,"Amnt = alpha BW beta"]
[null,"Amnt",{"$f":"C13*(C11^C14)","v":2.9279401205240612E-3},"liters","Eq"]
["Absorbed Dose","Dose","ConcWat  × Amnt ÷ BW"]
[null,"Central ",{"$f":"C7*C$16/C$11","v":4.5749064383188461E-9},"mg/kg","Eq"]
[null,"Lower ",{"$f":"C8*C$16/C$11","v":1.8299625753275383E-10},"mg/kg","Eq"]
[null,"Upper ",{"$f":"C9*C$16/C$11","v":2.7449438629913072E-8},"mg/kg","Eq"]

{"sheet":"F07b","index":74,"n_rows":20,"n_cols":5,"rows_kept":20,"cut":false,"hidden":false,"merged":[[16,0,19,0],[0,0,0,4],[1,1,1,3],[2,1,2,3],[5,0,8,0],[11,0,13,0],[14,0,15,0]]}
["Consumption of contaminated water by Mammal, carnivorous, Longer-term Concentrations "]
["Short Title","Longer-term Concentrations",null,null,"WatAlloV6"]
["Receptor","Mammal, carnivorous"]
["Duration","Chronic",null,null,"Scenario parameter"]
["Parameter/Assumption","Code / Range","Equation/   Value","Units","Reference/Designation"]
["Concentration in water","ConcWat"]
[null,"Central ",{"$f":"B04a!Chronic_C","v":3.1250000000000005E-8},"mg/L","='B04a'!Chronic_C"]
[null,"Lower ",{"$f":"B04a!Chronic_L","v":1.25E-9},null,"='B04a'!Chronic_L"]
[null,"Upper ",{"$f":"B04a!Chronic_U","v":1.8749999999999998E-7},null,"='B04a'!Chronic_U"]
["Receptor"]
["Body weight","BW",{"$f":"A02b!$C$47","v":5},"kg","U.S. EPA/ORD 1993"]
["Allometric coefficients forwater consumption per day in liters and BW in kilograms"]
[null,"alpha",{"$f":"A02b!$C$50","v":9.9000000000000005E-2},null,"U.S. EPA/ORD 1993"]
[null,"beta",{"$f":"A02b!$C$51","v":0.9},null,"U.S. EPA/ORD 1993"]
["Amount of water consumed per day",null,"Amnt = alpha BW beta"]
[null,"Amnt",{"$f":"C13*(C11^C14)","v":0.42141326164778842},"liters","Eq"]
["Absorbed Dose","Dose","ConcWat  × Amnt ÷ BW"]
[null,"Central ",{"$f":"C7*C$16/C$11","v":2.6338328852986781E-9},"mg/kg","Eq"]
[null,"Lower ",{"$f":"C8*C$16/C$11","v":1.0535331541194711E-10},"mg/kg","Eq"]
[null,"Upper ",{"$f":"C9*C$16/C$11","v":1.5802997311792065E-8},"mg/kg","Eq"]

{"sheet":"F07c","index":75,"n_rows":20,"n_cols":5,"rows_kept":20,"cut":false,"hidden":false,"merged":[[16,0,19,0],[0,0,0,4],[1,1,1,3],[2,1,2,3],[5,0,8,0],[11,0,13,0],[14,0,15,0]]}
["Consumption of contaminated water by Mammal, large, Longer-term Concentrations "]
["Short Title","Longer-term Concentrations",null,null,"WatAlloV6"]
["Receptor","Mammal, large"]
["Duration","Chronic",null,null,"Scenario parameter"]
["Parameter/Assumption","Code / Range","Equation/   Value","Units","Reference/Designation"]
["Concentration in water","ConcWat"]
[null,"Central ",{"$f":"B04a!Chronic_C","v":3.1250000000000005E-8},"mg/L","='B04a'!Chronic_C"]
[null,"Lower ",{"$f":"B04a!Chronic_L","v":1.25E-9},null,"='B04a'!Chronic_L"]
[null,"Upper ",{"$f":"B04a!Chronic_U","v":1.8749999999999998E-7},null,"='B04a'!Chronic_U"]
["Receptor"]
["Body weight","BW",{"$f":"A02b!$C$61","v":70},"kg","Default"]
["Allometric coefficients forwater consumption per day in liters and BW in kilograms"]
[null,"alpha",{"$f":"A02b!$C$64","v":9.9000000000000005E-2},null,"U.S. EPA/ORD 1993"]
[null,"beta",{"$f":"A02b!$C$65","v":0.9},null,"U.S. EPA/ORD 1993"]
["Amount of water consumed per day",null,"Amnt = alpha BW beta"]
[null,"Amnt",{"$f":"C13*(C11^C14)","v":4.5313064115862725},"liters","Eq"]
["Absorbed Dose","Dose","ConcWat  × Amnt ÷ BW"]
[null,"Central ",{"$f":"C7*C$16/C$11","v":2.0229046480295862E-9},"mg/kg","Eq"]
[null,"Lower ",{"$f":"C8*C$16/C$11","v":8.0916185921183438E-11},"mg/kg","Eq"]
[null,"Upper ",{"$f":"C9*C$16/C$11","v":1.2137427888177513E-8},"mg/kg","Eq"]

{"sheet":"F07d","index":76,"n_rows":20,"n_cols":5,"rows_kept":20,"cut":false,"hidden":false,"merged":[[16,0,19,0],[0,0,0,4],[1,1,1,3],[2,1,2,3],[5,0,8,0],[11,0,13,0],[14,0,15,0]]}
["Consumption of contaminated water by Bird, small, Longer-term Concentrations "]
["Short Title","Longer-term Concentrations",null,null,"WatAlloV6"]
["Receptor","Bird, small"]
["Duration","Chronic",null,null,"Scenario parameter"]
["Parameter/Assumption","Code / Range","Equation/   Value","Units","Reference/Designation"]
["Concentration in water","ConcWat"]
[null,"Central ",{"$f":"B04a!Chronic_C","v":3.1250000000000005E-8},"mg/L","='B04a'!Chronic_C"]
[null,"Lower ",{"$f":"B04a!Chronic_L","v":1.25E-9},null,"='B04a'!Chronic_L"]
[null,"Upper ",{"$f":"B04a!Chronic_U","v":1.8749999999999998E-7},null,"='B04a'!Chronic_U"]
["Receptor"]
["Body weight","BW",{"$f":"A02b!$C$31","v":0.01},"kg","Default"]
["Allometric coefficients forwater consumption per day in liters and BW in kilograms"]
[null,"alpha",{"$f":"A02b!$C$34","v":5.8999999999999997E-2},null,"U.S. EPA/ORD 1993"]
[null,"beta",{"$f":"A02b!$C$35","v":0.67},null,"U.S. EPA/ORD 1993"]
["Amount of water consumed per day",null,"Amnt = alpha BW beta"]
[null,"Amnt",{"$f":"C13*(C11^C14)","v":2.6968203187277624E-3},"liters","Eq"]
["Absorbed Dose","Dose","ConcWat  × Amnt ÷ BW"]
[null,"Central ",{"$f":"C7*C$16/C$11","v":8.4275634960242582E-9},"mg/kg","Eq"]
[null,"Lower ",{"$f":"C8*C$16/C$11","v":3.3710253984097029E-10},"mg/kg","Eq"]
[null,"Upper ",{"$f":"C9*C$16/C$11","v":5.0565380976145536E-8},"mg/kg","Eq"]

{"sheet":"F07e","index":77,"n_rows":20,"n_cols":5,"rows_kept":20,"cut":false,"hidden":false,"merged":[[16,0,19,0],[0,0,0,4],[1,1,1,3],[2,1,2,3],[5,0,8,0],[11,0,13,0],[14,0,15,0]]}
["Consumption of contaminated water by Bird, large, Longer-term Concentrations "]
["Short Title","Longer-term Concentrations",null,null,"WatAlloV6"]
["Receptor","Bird, large"]
["Duration","Chronic",null,null,"Scenario parameter"]
["Parameter/Assumption","Code / Range","Equation/   Value","Units","Reference/Designation"]
["Concentration in water","ConcWat"]
[null,"Central ",{"$f":"B04a!Chronic_C","v":3.1250000000000005E-8},"mg/L","='B04a'!Chronic_C"]
[null,"Lower ",{"$f":"B04a!Chronic_L","v":1.25E-9},null,"='B04a'!Chronic_L"]
[null,"Upper ",{"$f":"B04a!Chronic_U","v":1.8749999999999998E-7},null,"='B04a'!Chronic_U"]
["Receptor"]
["Body weight","BW",{"$f":"A02b!$C$15","v":4},"kg","Default"]
["Allometric coefficients forwater consumption per day in liters and BW in kilograms"]
[null,"alpha",{"$f":"A02b!$C$18","v":5.8999999999999997E-2},null,"U.S. EPA/ORD 1993"]
[null,"beta",{"$f":"A02b!$C$19","v":0.67},null,"U.S. EPA/ORD 1993"]
["Amount of water consumed per day",null,"Amnt = alpha BW beta"]
[null,"Amnt",{"$f":"C13*(C11^C14)","v":0.14935927808849303},"liters","Eq"]
["Absorbed Dose","Dose","ConcWat  × Amnt ÷ BW"]
[null,"Central ",{"$f":"C7*C$16/C$11","v":1.1668693600663521E-9},"mg/kg","Eq"]
[null,"Lower ",{"$f":"C8*C$16/C$11","v":4.6674774402654076E-11},"mg/kg","Eq"]
[null,"Upper ",{"$f":"C9*C$16/C$11","v":7.0012161603981098E-9},"mg/kg","Eq"]

{"sheet":"F08","index":78,"n_rows":24,"n_cols":5,"rows_kept":24,"cut":false,"hidden":false,"merged":[[16,0,19,0],[20,0,23,0],[0,0,0,4],[2,1,2,3],[4,1,4,3],[7,0,10,0],[8,3,10,3],[12,0,15,0]]}
["Consumption of bait by a bear "]
["Short Title","Consumption of food cache by bear",null,null,"BaitAmnt_Ac"]
["Receptor","Bear",null,null,"Scenario parameter"]
["Duration","Acute"]
["Material consumed","Bait"]
["Parameter/Assumption","Code / Range","Equation/   Value","Units","Reference/Designation"]
["Body weight","BW",100,"kg","Scenario parameter"]
["Amount of a.i. available in a single incident.","Cache_AI"]
[null,"Central ",12.5,"mg a.i.","Scenario parameter"]
[null,"Lower ",1.25,null,"Scenario parameter"]
[null,"Upper ",125,null,"Scenario parameter"]
["Number of incidents","NCache",1,null,"Scenario parameter"]
["Total amount of a.i. available","AmntAI"]
[null,"Central ",{"$f":"C9*C$12","v":12.5},null,"Eq"]
[null,"Lower ",{"$f":"C10*C$12","v":1.25},null,"Eq"]
[null,"Upper ",{"$f":"C11*C$12","v":125},null,"Eq"]
["Proportion of the rodenticide that is consumed","Prop"]
[null,"Central ",0.3,null,"Scenario parameter"]
[null,"Lower ",0.1,null,"Scenario parameter"]
[null,"Upper ",1,null,"Scenario parameter"]
["Dose","Dose","AmntAI x Prop / BW"]
[null,"Central",{"$f":"C9*C18/C$7","v":3.7499999999999999E-2},"mg/kg bw","Eq"]
[null,"Lower",{"$f":"C10*C19/C$7","v":1.25E-3},null,"Eq"]
[null,"Upper",{"$f":"C11*C20/C$7","v":1.25},null,"Eq"]

{"sheet":"F09a","index":79,"n_rows":32,"n_cols":5,"rows_kept":32,"cut":false,"hidden":false,"merged":[[16,0,19,0],[20,0,23,0],[24,0,27,0],[28,0,31,0],[0,0,0,4],[2,1,2,3],[4,1,4,3],[8,0,11,0],[12,0,15,0],[13,3,15,3]]}
["Consumption of Poisoned Gopher by a Coyete "]
["Short Title","Consumption of prairie dog",null,null,"BaitPrey_Ac"]
["Receptor","Coyete",null,null,"Scenario parameter"]
["Duration","Acute"]
["Material consumed","Prairie dog"]
["Parameter/Assumption","Code / Range","Equation/   Value","Units","Reference/Designation"]
["Body weight of Predator","BWPred",13,"kg","Scenario parameter"]
["Body weight of Prey","BWPrey",1,"kg","Scenario parameter"]
["Concentration of a.i. in prey","Prey_Conc"]
[null,"Central ",1.8,"mg a.i./kg bw","Scenario parameter"]
[null,"Lower ",1.35,null,"Scenario parameter"]
[null,"Upper ",5.29,null,"Scenario parameter"]
["Amount of a.i. in prey","Prey_AI"]
[null,"Central ",{"$f":"C$8*C10","v":1.8},"mg a.i.","Eq"]
[null,"Lower ",{"$f":"C$8*C11","v":1.35},null,"Eq"]
[null,"Upper ",{"$f":"C$8*C12","v":5.29},null,"Eq"]
["Number of prey organisms consumed","Nprey"]
[null,"Central ",1,null,"Scenario parameter"]
[null,"Lower ",1,null,"Scenario parameter"]
[null,"Upper ",1,null,"Scenario parameter"]
["Total amount of a.i. available","AmntAI"]
[null,"Central ",{"$f":"C14*C18","v":1.8},"mg a.i.","Eq"]
[null,"Lower ",{"$f":"C15*C19","v":1.35},null,"Eq"]
[null,"Upper ",{"$f":"C16*C20","v":5.29},null,"Eq"]
["Proportion of the prey that is consumed.","Prop"]
[null,"Central ",0.3,null,"Scenario parameter"]
[null,"Lower ",0.01,null,"Scenario parameter"]
[null,"Upper ",0.8,null,"Scenario parameter"]
["Dose","Dose","AmntAI x Prop / BW"]
[null,"Central",{"$f":"C14*C26/C$7","v":4.1538461538461538E-2},"mg/kg bw","Eq"]
[null,"Lower",{"$f":"C15*C27/C$7","v":1.0384615384615387E-3},null,"Eq"]
[null,"Upper",{"$f":"C16*C28/C$7","v":0.32553846153846155},null,"Eq"]

{"sheet":"F09b","index":80,"n_rows":32,"n_cols":5,"rows_kept":32,"cut":false,"hidden":false,"merged":[[16,0,19,0],[20,0,23,0],[24,0,27,0],[28,0,31,0],[0,0,0,4],[2,1,2,3],[4,1,4,3],[8,0,11,0],[12,0,15,0],[13,3,15,3]]}
["Consumption of Poisoned Prairie Dog by a Badger "]
["Short Title","Consumption of prairie dog",null,null,"BaitPrey_Ac"]
["Receptor","Badger",null,null,"Scenario parameter"]
["Duration","Acute"]
["Material consumed","Prairie dog"]
["Parameter/Assumption","Code / Range","Equation/   Value","Units","Reference/Designation"]
["Body weight of Predator","BWPred",7,"kg","Scenario parameter"]
["Body weight of Prey","BWPrey",1,"kg","Scenario parameter"]
["Concentration of a.i. in prey","Prey_Conc"]
[null,"Central ",1.8,"mg a.i./kg bw","Scenario parameter"]
[null,"Lower ",1.35,null,"Scenario parameter"]
[null,"Upper ",5.29,null,"Scenario parameter"]
["Amount of a.i. in prey","Prey_AI"]
[null,"Central ",{"$f":"C$8*C10","v":1.8},"mg a.i.","Eq"]
[null,"Lower ",{"$f":"C$8*C11","v":1.35},null,"Eq"]
[null,"Upper ",{"$f":"C$8*C12","v":5.29},null,"Eq"]
["Number of prey organisms consumed","Nprey"]
[null,"Central ",1,null,"Scenario parameter"]
[null,"Lower ",1,null,"Scenario parameter"]
[null,"Upper ",1,null,"Scenario parameter"]
["Total amount of a.i. available","AmntAI"]
[null,"Central ",{"$f":"C14*C18","v":1.8},"mg a.i.","Eq"]
[null,"Lower ",{"$f":"C15*C19","v":1.35},null,"Eq"]
[null,"Upper ",{"$f":"C16*C20","v":5.29},null,"Eq"]
["Proportion of the prey that is consumed.","Prop"]
[null,"Central ",0.3,null,"Scenario parameter"]
[null,"Lower ",0.01,null,"Scenario parameter"]
[null,"Upper ",0.8,null,"Scenario parameter"]
["Dose","Dose","AmntAI x Prop / BW"]
[null,"Central",{"$f":"C14*C26/C$7","v":7.7142857142857152E-2},"mg/kg bw","Eq"]
[null,"Lower",{"$f":"C15*C27/C$7","v":1.9285714285714288E-3},null,"Eq"]
[null,"Upper",{"$f":"C16*C28/C$7","v":0.60457142857142865},null,"Eq"]

{"sheet":"F09c","index":81,"n_rows":32,"n_cols":5,"rows_kept":32,"cut":false,"hidden":false,"merged":[[16,0,19,0],[20,0,23,0],[24,0,27,0],[28,0,31,0],[0,0,0,4],[2,1,2,3],[4,1,4,3],[8,0,11,0],[12,0,15,0],[13,3,15,3]]}
["Consumption of Poisoned Prairie Dog by a Mink "]
["Short Title","Consumption of prairie dog",null,null,"BaitPrey_Ac"]
["Receptor","Mink",null,null,"Scenario parameter"]
["Duration","Acute"]
["Material consumed","Prairie dog"]
["Parameter/Assumption","Code / Range","Equation/   Value","Units","Reference/Designation"]
["Body weight of Predator","BWPred",1,"kg","Scenario parameter"]
["Body weight of Prey","BWPrey",1,"kg","Scenario parameter"]
["Concentration of a.i. in prey","Prey_Conc"]
[null,"Central ",1.8,"mg a.i./kg bw","Scenario parameter"]
[null,"Lower ",1.35,null,"Scenario parameter"]
[null,"Upper ",5.29,null,"Scenario parameter"]
["Amount of a.i. in prey","Prey_AI"]
[null,"Central ",{"$f":"C$8*C10","v":1.8},"mg a.i.","Eq"]
[null,"Lower ",{"$f":"C$8*C11","v":1.35},null,"Eq"]
[null,"Upper ",{"$f":"C$8*C12","v":5.29},null,"Eq"]
["Number of prey organisms consumed","Nprey"]
[null,"Central ",1,null,"Scenario parameter"]
[null,"Lower ",1,null,"Scenario parameter"]
[null,"Upper ",1,null,"Scenario parameter"]
["Total amount of a.i. available","AmntAI"]
[null,"Central ",{"$f":"C14*C18","v":1.8},"mg a.i.","Eq"]
[null,"Lower ",{"$f":"C15*C19","v":1.35},null,"Eq"]
[null,"Upper ",{"$f":"C16*C20","v":5.29},null,"Eq"]
["Proportion of the prey that is consumed.","Prop"]
[null,"Central ",0.03,null,"Scenario parameter"]
[null,"Lower ",0.01,null,"Scenario parameter"]
[null,"Upper ",0.08,null,"Scenario parameter"]
["Dose","Dose","AmntAI x Prop / BW"]
[null,"Central",{"$f":"C14*C26/C$7","v":5.3999999999999999E-2},"mg/kg bw","Eq"]
[null,"Lower",{"$f":"C15*C27/C$7","v":1.3500000000000002E-2},null,"Eq"]
[null,"Upper",{"$f":"C16*C28/C$7","v":0.42320000000000002},null,"Eq"]

{"sheet":"F09d","index":82,"n_rows":32,"n_cols":5,"rows_kept":32,"cut":false,"hidden":false,"merged":[[16,0,19,0],[20,0,23,0],[24,0,27,0],[28,0,31,0],[0,0,0,4],[2,1,2,3],[4,1,4,3],[8,0,11,0],[12,0,15,0],[13,3,15,3]]}
["Consumption of Poisoned Prairie Dog by a Owl "]
["Short Title","Consumption of prairie dog",null,null,"BaitPrey_Ac"]
["Receptor","Owl",null,null,"Scenario parameter"]
["Duration","Acute"]
["Material consumed","Prairie dog"]
["Parameter/Assumption","Code / Range","Equation/   Value","Units","Reference/Designation"]
["Body weight of Predator","BWPred",1.5,"kg","Scenario parameter"]
["Body weight of Prey","BWPrey",1,"kg","Scenario parameter"]
["Concentration of a.i. in prey","Prey_Conc"]
[null,"Central ",1.8,"mg a.i./kg bw","Scenario parameter"]
[null,"Lower ",1.35,null,"Scenario parameter"]
[null,"Upper ",5.29,null,"Scenario parameter"]
["Amount of a.i. in prey","Prey_AI"]
[null,"Central ",{"$f":"C$8*C10","v":1.8},"mg a.i.","Eq"]
[null,"Lower ",{"$f":"C$8*C11","v":1.35},null,"Eq"]
[null,"Upper ",{"$f":"C$8*C12","v":5.29},null,"Eq"]
["Number of prey organisms consumed","Nprey"]
[null,"Central ",1,null,"Scenario parameter"]
[null,"Lower ",1,null,"Scenario parameter"]
[null,"Upper ",1,null,"Scenario parameter"]
["Total amount of a.i. available","AmntAI"]
[null,"Central ",{"$f":"C14*C18","v":1.8},"mg a.i.","Eq"]
[null,"Lower ",{"$f":"C15*C19","v":1.35},null,"Eq"]
[null,"Upper ",{"$f":"C16*C20","v":5.29},null,"Eq"]
["Proportion of the prey that is consumed.","Prop"]
[null,"Central ",0.03,null,"Scenario parameter"]
[null,"Lower ",0.01,null,"Scenario parameter"]
[null,"Upper ",0.08,null,"Scenario parameter"]
["Dose","Dose","AmntAI x Prop / BW"]
[null,"Central",{"$f":"C14*C26/C$7","v":3.5999999999999997E-2},"mg/kg bw","Eq"]
[null,"Lower",{"$f":"C15*C27/C$7","v":9.0000000000000011E-3},null,"Eq"]
[null,"Upper",{"$f":"C16*C28/C$7","v":0.28213333333333335},null,"Eq"]

{"sheet":"F09e","index":83,"n_rows":32,"n_cols":5,"rows_kept":32,"cut":false,"hidden":false,"merged":[[16,0,19,0],[20,0,23,0],[24,0,27,0],[28,0,31,0],[0,0,0,4],[2,1,2,3],[4,1,4,3],[8,0,11,0],[12,0,15,0],[13,3,15,3]]}
["Consumption of Poisoned Prairie Dog by a Snake "]
["Short Title","Consumption of prairie dog",null,null,"BaitPrey_Ac"]
["Receptor","Snake",null,null,"Scenario parameter"]
["Duration","Acute"]
["Material consumed","Prairie dog"]
["Parameter/Assumption","Code / Range","Equation/   Value","Units","Reference/Designation"]
["Body weight of Predator","BWPred",0.5,"kg","Scenario parameter"]
["Body weight of Prey","BWPrey",1,"kg","Scenario parameter"]
["Concentration of a.i. in prey","Prey_Conc"]
[null,"Central ",1.8,"mg a.i./kg bw","Scenario parameter"]
[null,"Lower ",1.35,null,"Scenario parameter"]
[null,"Upper ",5.29,null,"Scenario parameter"]
["Amount of a.i. in prey","Prey_AI"]
[null,"Central ",{"$f":"C$8*C10","v":1.8},"mg a.i.","Eq"]
[null,"Lower ",{"$f":"C$8*C11","v":1.35},null,"Eq"]
[null,"Upper ",{"$f":"C$8*C12","v":5.29},null,"Eq"]
["Number of prey organisms consumed","Nprey"]
[null,"Central ",1,null,"Scenario parameter"]
[null,"Lower ",1,null,"Scenario parameter"]
[null,"Upper ",1,null,"Scenario parameter"]
["Total amount of a.i. available","AmntAI"]
[null,"Central ",{"$f":"C14*C18","v":1.8},"mg a.i.","Eq"]
[null,"Lower ",{"$f":"C15*C19","v":1.35},null,"Eq"]
[null,"Upper ",{"$f":"C16*C20","v":5.29},null,"Eq"]
["Proportion of the prey that is consumed.","Prop"]
[null,"Central ",0.03,null,"Scenario parameter"]
[null,"Lower ",0.01,null,"Scenario parameter"]
[null,"Upper ",0.08,null,"Scenario parameter"]
["Dose","Dose","AmntAI x Prop / BW"]
[null,"Central",{"$f":"C14*C26/C$7","v":0.108},"mg/kg bw","Eq"]
[null,"Lower",{"$f":"C15*C27/C$7","v":2.7000000000000003E-2},null,"Eq"]
[null,"Upper",{"$f":"C16*C28/C$7","v":0.84640000000000004},null,"Eq"]

{"sheet":"F10a","index":84,"n_rows":31,"n_cols":5,"rows_kept":31,"cut":false,"hidden":false,"merged":[[23,0,26,0],[24,3,26,3],[27,0,30,0],[0,0,0,4],[2,1,2,3],[4,1,4,3],[7,0,9,0],[15,0,18,0],[19,0,22,0]]}
["Consumption of Contaminated Contaminated Insects by Mouse "]
["Short Title","Mouse, Insect consumption",null,null,"BaitInsAlloBW_Ac"]
["Receptor","Mouse",null,null,"Scenario parameter"]
["Duration","Acute"]
["Material consumed","Insects"]
["Parameter/Assumption","Code / Range","Equation/   Value","Units","Reference/Designation"]
["Body weight","BW",0.02,"kg","Scenario parameter"]
["Allometric coefficients for food consumption per day in grams and BW in grams"]
[null,"alpha",{"$f":"A02b!$C$69","v":0.621},null,"U.S. EPA/ORD 1993"]
[null,"beta",{"$f":"A02b!$C$70","v":0.58399999999999996},null,"U.S. EPA/ORD 1993"]
["Amount of food  consumed per day","Amnt",{"$f":"C9*((C7*1000)^C10)","v":3.571849220820428},"grams","Eq"]
["Proportion of diet as bait","PropC"]
[null,"Central ",0.3,"Unitless","Scenario parameter"]
[null,"Lower ",0.1,null,"Scenario parameter"]
[null,"Upper ",1,null,"Scenario parameter"]
["Consumption of Insects (unadjusted for a.i.)","Bait","(Amnt x  PropC )"]
[null,"Central ",{"$f":"C$11*C13","v":1.0715547662461284},"grams "]
[null,"Lower ",{"$f":"C$11*C14","v":0.35718492208204283}]
[null,"Upper ",{"$f":"C$11*C15","v":3.571849220820428}]
["Residues in insects","Bait","(Amnt x  PropC )"]
[null,"Central ",{"$f":"'A01'!C$32","v":0.2},"µg/g","Worksheet A01"]
[null,"Lower ",{"$f":"'A01'!C$33","v":7.0000000000000007E-2},null,"Worksheet A01"]
[null,"Upper ",{"$f":"'A01'!C$34","v":0.6},null,"Worksheet A01"]
["Amount of a.i. consumed","AmntAI","Bait x PerCentAI / 1000 µg/g)"]
[null,"Central ",{"$f":"C21*C17/1000","v":2.143109532492257E-4},"mg a.i.","Eq"]
[null,"Lower ",{"$f":"C22*C18/1000","v":2.5002944545743E-5},null,"Eq"]
[null,"Upper ",{"$f":"C23*C19/1000","v":2.1431095324922567E-3},null,"Eq"]
["Dose","Dose","AmntAI / BW"]
[null,"Central",{"$f":"C25/C$7","v":1.0715547662461284E-2},"mg/kg bw","Eq"]
[null,"Lower",{"$f":"C26/C$7","v":1.2501472272871501E-3},null,"Eq"]
[null,"Upper",{"$f":"C27/C$7","v":0.10715547662461283},null,"Eq"]

{"sheet":"F10b","index":85,"n_rows":31,"n_cols":5,"rows_kept":31,"cut":false,"hidden":false,"merged":[[23,0,26,0],[24,3,26,3],[27,0,30,0],[0,0,0,4],[2,1,2,3],[4,1,4,3],[7,0,9,0],[15,0,18,0],[19,0,22,0]]}
["Consumption of Contaminated Contaminated Insects by Small bird "]
["Short Title","Bird, Insect consumption",null,null,"BaitInsAlloBW_Ac"]
["Receptor","Small bird",null,null,"Scenario parameter"]
["Duration","Acute"]
["Material consumed","Insects"]
["Parameter/Assumption","Code / Range","Equation/   Value","Units","Reference/Designation"]
["Body weight","BW",0.01,"kg","Scenario parameter"]
["Allometric coefficients for food consumption per day in grams and BW in grams"]
[null,"alpha",{"$f":"A02b!$C$22","v":0.39800000000000002},null,"U.S. EPA/ORD 1993"]
[null,"beta",{"$f":"A02b!$C$23","v":0.85},null,"U.S. EPA/ORD 1993"]
["Amount of food  consumed per day","Amnt",{"$f":"C9*((C7*1000)^C10)","v":2.8176242218488694},"grams","Eq"]
["Proportion of diet as bait","PropC"]
[null,"Central ",0.3,"Unitless","Scenario parameter"]
[null,"Lower ",0.1,null,"Scenario parameter"]
[null,"Upper ",1,null,"Scenario parameter"]
["Consumption of Insects (unadjusted for a.i.)","Bait","(Amnt x  PropC )"]
[null,"Central ",{"$f":"C$11*C13","v":0.8452872665546608},"grams "]
[null,"Lower ",{"$f":"C$11*C14","v":0.28176242218488695}]
[null,"Upper ",{"$f":"C$11*C15","v":2.8176242218488694}]
["Residues in insects","Bait","(Amnt x  PropC )"]
[null,"Central ",{"$f":"'A01'!C$32","v":0.2},"µg/g","Worksheet A01"]
[null,"Lower ",{"$f":"'A01'!C$33","v":7.0000000000000007E-2},null,"Worksheet A01"]
[null,"Upper ",{"$f":"'A01'!C$34","v":0.6},null,"Worksheet A01"]
["Amount of a.i. consumed","AmntAI","Bait x PerCentAI / 1000 µg/g)"]
[null,"Central ",{"$f":"C21*C17/1000","v":1.6905745331093216E-4},"mg a.i.","Eq"]
[null,"Lower ",{"$f":"C22*C18/1000","v":1.9723369552942088E-5},null,"Eq"]
[null,"Upper ",{"$f":"C23*C19/1000","v":1.6905745331093217E-3},null,"Eq"]
["Dose","Dose","AmntAI / BW"]
[null,"Central",{"$f":"C25/C$7","v":1.6905745331093215E-2},"mg/kg bw","Eq"]
[null,"Lower",{"$f":"C26/C$7","v":1.9723369552942086E-3},null,"Eq"]
[null,"Upper",{"$f":"C27/C$7","v":0.16905745331093217},null,"Eq"]

{"sheet":"F10c","index":86,"n_rows":31,"n_cols":5,"rows_kept":31,"cut":false,"hidden":false,"merged":[[23,0,26,0],[24,3,26,3],[27,0,30,0],[0,0,0,4],[2,1,2,3],[4,1,4,3],[7,0,9,0],[15,0,18,0],[19,0,22,0]]}
["Consumption of Contaminated Contaminated Insects by Bullfrog "]
["Short Title","Bullfrog, Insect consumption",null,null,"BaitInsAlloBW_Ac"]
["Receptor","Bullfrog",null,null,"Scenario parameter"]
["Duration","Acute"]
["Material consumed","Insects"]
["Parameter/Assumption","Code / Range","Equation/   Value","Units","Reference/Designation"]
["Body weight","BW",0.01,"kg","Scenario parameter"]
["Allometric coefficients for food consumption per day in grams and BW in grams"]
[null,"alpha",{"$f":"A02b!$C$6","v":1.0900000000000001},null,"SERA 2010"]
[null,"beta",{"$f":"A02b!$C$7","v":0.17230000000000001},null,"SERA 2010"]
["Amount of food  consumed per day","Amnt",{"$f":"C9*((C7*1000)^C10)","v":1.6207890649071539},"grams","Eq"]
["Proportion of diet as bait","PropC"]
[null,"Central ",0.3,"Unitless","Scenario parameter"]
[null,"Lower ",0.1,null,"Scenario parameter"]
[null,"Upper ",1,null,"Scenario parameter"]
["Consumption of Insects (unadjusted for a.i.)","Bait","(Amnt x  PropC )"]
[null,"Central ",{"$f":"C$11*C13","v":0.48623671947214614},"grams "]
[null,"Lower ",{"$f":"C$11*C14","v":0.16207890649071541}]
[null,"Upper ",{"$f":"C$11*C15","v":1.6207890649071539}]
["Residues in insects","Bait","(Amnt x  PropC )"]
[null,"Central ",{"$f":"'A01'!C$32","v":0.2},"µg/g","Worksheet A01"]
[null,"Lower ",{"$f":"'A01'!C$33","v":7.0000000000000007E-2},null,"Worksheet A01"]
[null,"Upper ",{"$f":"'A01'!C$34","v":0.6},null,"Worksheet A01"]
["Amount of a.i. consumed","AmntAI","Bait x PerCentAI / 1000 µg/g)"]
[null,"Central ",{"$f":"C21*C17/1000","v":9.7247343894429236E-5},"mg a.i.","Eq"]
[null,"Lower ",{"$f":"C22*C18/1000","v":1.134552345435008E-5},null,"Eq"]
[null,"Upper ",{"$f":"C23*C19/1000","v":9.7247343894429233E-4},null,"Eq"]
["Dose","Dose","AmntAI / BW"]
[null,"Central",{"$f":"C25/C$7","v":9.7247343894429229E-3},"mg/kg bw","Eq"]
[null,"Lower",{"$f":"C26/C$7","v":1.1345523454350079E-3},null,"Eq"]
[null,"Upper",{"$f":"C27/C$7","v":9.7247343894429225E-2},null,"Eq"]

{"sheet":"G01","index":87,"n_rows":66,"n_cols":6,"rows_kept":66,"cut":false,"hidden":false,"merged":[[0,0,0,5],[1,2,1,4],[2,0,3,0],[2,1,3,1],[2,2,2,4],[2,5,3,5]]}
["Summary of Rodenticide Exposure Assessments for the Terrestrial Animals"]
[null,{"$f":"'A01'!ApRt_C","v":6.2500000000000001E-4}," lb a.i./acre",null,null,"G01V5Rod"]
["Scenario","Receptor","mg/kg/day or mg/kg/event",null,null,"Detail Worksheet"]
[null,null,"Central","Lower","Upper"]
["Accidental Acute Exposures"]
["Accidental Spill (Primary Consumption)"]
["Bait","Mouse",{"$f":"F01a!Dose_C","v":2.6788869156153212},{"$f":"F01a!Dose_L","v":0.26788869156153211},{"$f":"F01a!Dose_U","v":8.9296230520510687},"F01a"]
["Bait","Squirrel",{"$f":"F01b!Dose_C","v":1.158587651740745},{"$f":"F01b!Dose_L","v":0.11585876517407448},{"$f":"F01b!Dose_U","v":3.8619588391358159},"F01b"]
["Bait","Small Passeriine",{"$f":"F01c!Dose_C","v":3.8090777001071605},{"$f":"F01c!Dose_L","v":0.38090777001071602},{"$f":"F01c!Dose_U","v":12.696925667023869},"F01c"]
["Bait","Mallard",{"$f":"F01d!Dose_C","v":0.80845854309693532},{"$f":"F01d!Dose_L","v":8.0845854309693529E-2},{"$f":"F01d!Dose_U","v":2.6948618103231183},"F01d"]
["Bait","Pigeon",{"$f":"F01e!Dose_C","v":1.0499891506508439},{"$f":"F01e!Dose_L","v":0.10499891506508438},{"$f":"F01e!Dose_U","v":3.4999638355028129},"F01e"]
["Bait","Quail",{"$f":"F01f!Dose_C","v":8.0465557882512154E-2},{"$f":"F01f!Dose_L","v":8.0465557882512147E-3},{"$f":"F01f!Dose_U","v":0.80465557882512151},"F01f"]
["Bait","Deer",{"$f":"F01g!Dose_C","v":2.7445051384351358E-2},{"$f":"F01g!Dose_L","v":2.7445051384351357E-3},{"$f":"F01g!Dose_U","v":0.27445051384351365},"F01g"]
["Misapplication (Primary Consumption)"]
["Bait","Mouse",{"$f":"F02a!Dose_C","v":0.26788869156153211},{"$f":"F02a!Dose_L","v":2.6788869156153215E-2},{"$f":"F02a!Dose_U","v":0.89296230520510722},"F02a"]
["Bait","Squirrel",{"$f":"F02b!Dose_C","v":0.11585876517407448},{"$f":"F02b!Dose_L","v":1.1585876517407449E-2},{"$f":"F02b!Dose_U","v":0.38619588391358162},"F02b"]
["Bait","Skunk",{"$f":"F02c!Dose_C","v":3.9441586984638601E-2},{"$f":"F02c!Dose_L","v":3.9441586984638602E-3},{"$f":"F02c!Dose_U","v":0.13147195661546204},"F02c"]
["Bait","Small Passeriine",{"$f":"F02d!Dose_C","v":0.38090777001071602},{"$f":"F02d!Dose_L","v":3.8090777001071607E-2},{"$f":"F02d!Dose_U","v":1.2696925667023871},"F02d"]
["Bait","Mallard",{"$f":"F02e!Dose_C","v":8.0845854309693529E-2},{"$f":"F02e!Dose_L","v":8.0845854309693557E-3},{"$f":"F02e!Dose_U","v":0.26948618103231187},"F02e"]
["Bait","Pigeon",{"$f":"F02f!Dose_C","v":0.10499891506508438},{"$f":"F02f!Dose_L","v":1.0499891506508438E-2},{"$f":"F02f!Dose_U","v":0.34999638355028134},"F02f"]
["Bait","Quail",{"$f":"F02g!Dose_C","v":0.12069833682376824},{"$f":"F02g!Dose_L","v":1.2069833682376822E-2},{"$f":"F02g!Dose_U","v":0.40232778941256075},"F02g"]
["   Contaminated Water"]
["Spill","Small Mammal",{"$f":"F03a!Dose_C","v":9.9608522900228541E-5},{"$f":"F03a!Dose_L","v":6.6405681933485712E-5},{"$f":"F03a!Dose_U","v":1.3281136386697142E-4},"F03a"]
["Spill","Canid",{"$f":"F03b!Dose_C","v":5.7345916645031046E-5},{"$f":"F03b!Dose_L","v":3.8230611096687364E-5},{"$f":"F03b!Dose_U","v":7.6461222193374728E-5},"F03b"]
["Spill","Large Mammal",{"$f":"F03c!Dose_C","v":4.4044298320618561E-5},{"$f":"F03c!Dose_L","v":2.9362865547079045E-5},{"$f":"F03c!Dose_U","v":5.8725731094158091E-5},"F03c"]
["Spill","Small Bird (Passerine)",{"$f":"F03d!Dose_C","v":1.459743056083534E-4},{"$f":"F03d!Dose_L","v":9.7316203738902283E-5},{"$f":"F03d!Dose_U","v":1.9463240747780457E-4},"F03d"]
["Spill","Large Bird (Goose)",{"$f":"F03e!Dose_C","v":2.5406013202852664E-5},{"$f":"F03e!Dose_L","v":1.6937342135235111E-5},{"$f":"F03e!Dose_U","v":3.3874684270470223E-5},"F03e"]
["   Consumption of contaminated Fish"]
["Spill","Fish-eating bird",{"$f":"F04a!Dose_C","v":8.1014508153499958E-5},{"$f":"F04a!Dose_L","v":5.4009672102333312E-6},{"$f":"F04a!Dose_U","v":6.121096171597775E-4},"F04a"]
["Non-Accidental Acute Exposures"]
["Primary Consumption"]
["Bait","Mouse",{"$f":"F05a!Dose_C","v":1.7859246104102139E-2},{"$f":"F05a!Dose_L","v":1.7859246104102141E-3},{"$f":"F05a!Dose_U","v":0.17859246104102139},"F05a"]
["Bait","Squirrel",{"$f":"F05b!Dose_C","v":7.7239176782716319E-3},{"$f":"F05b!Dose_L","v":7.7239176782716316E-4},{"$f":"F05b!Dose_U","v":7.7239176782716329E-2},"F05b"]
["Bait","Skunk",{"$f":"F05c!Dose_C","v":2.6294391323092407E-3},{"$f":"F05c!Dose_L","v":2.6294391323092406E-4},{"$f":"F05c!Dose_U","v":2.6294391323092404E-2},"F05c"]
["Bait","Small Passeriine",{"$f":"F05d!Dose_C","v":2.5393851334047738E-4},{"$f":"F05d!Dose_L","v":2.5393851334047741E-5},{"$f":"F05d!Dose_U","v":2.5393851334047737E-3},"F05d"]
["Bait","Mallard",{"$f":"F05e!Dose_C","v":5.3897236206462358E-5},{"$f":"F05e!Dose_L","v":5.3897236206462361E-6},{"$f":"F05e!Dose_U","v":5.389723620646237E-4},"F05e"]
["Bait","Pigeon",{"$f":"F05f!Dose_C","v":6.9999276710056268E-5},{"$f":"F05f!Dose_L","v":6.9999276710056258E-6},{"$f":"F05f!Dose_U","v":6.9999276710056273E-4},"F05f"]
["Bait","Quail",{"$f":"F05g!Dose_C","v":8.0465557882512155E-5},{"$f":"F05g!Dose_L","v":8.0465557882512125E-6},{"$f":"F05g!Dose_U","v":8.0465557882512155E-4},"F05g"]
["Food cache","Grizzly bear",{"$f":"'F08'!Dose_C","v":3.7499999999999999E-2},{"$f":"'F08'!Dose_L","v":1.25E-3},{"$f":"'F08'!Dose_U","v":1.25},"F08"]
["Secondary Consumption"]
["Prairie Dog","Coyete",{"$f":"F09a!Dose_C","v":4.1538461538461538E-2},{"$f":"F09a!Dose_L","v":1.0384615384615387E-3},{"$f":"F09a!Dose_U","v":0.32553846153846155},"F09a"]
["Prairie Dog","Badger",{"$f":"F09b!Dose_C","v":7.7142857142857152E-2},{"$f":"F09b!Dose_L","v":1.9285714285714288E-3},{"$f":"F09b!Dose_U","v":0.60457142857142865},"F09b"]
["Prairie Dog","Mink",{"$f":"F09c!Dose_C","v":5.3999999999999999E-2},{"$f":"F09c!Dose_L","v":1.3500000000000002E-2},{"$f":"F09c!Dose_U","v":0.42320000000000002},"F09c"]
["Prairie Dog","Owl",{"$f":"F09d!Dose_C","v":3.5999999999999997E-2},{"$f":"F09d!Dose_L","v":9.0000000000000011E-3},{"$f":"F09d!Dose_U","v":0.28213333333333335},"F09d"]
["Prairie Dog","Snake",{"$f":"F09e!Dose_C","v":0.108},{"$f":"F09e!Dose_L","v":2.7000000000000003E-2},{"$f":"F09e!Dose_U","v":0.84640000000000004},"F09e"]
["Tertiary Consumption"]
["Insects","Small mammal",{"$f":"F10a!Dose_C","v":1.0715547662461284E-2},{"$f":"F10a!Dose_L","v":1.2501472272871501E-3},{"$f":"F10a!Dose_U","v":0.10715547662461283},"F10a"]
["Insects","Small bird (Passerine)",{"$f":"F10b!Dose_C","v":1.6905745331093215E-2},{"$f":"F10b!Dose_L","v":1.9723369552942086E-3},{"$f":"F10b!Dose_U","v":0.16905745331093217},"F10b"]
["Insects","Bullfrog",{"$f":"F10c!Dose_C","v":9.7247343894429229E-3},{"$f":"F10c!Dose_L","v":1.1345523454350079E-3},{"$f":"F10c!Dose_U","v":9.7247343894429225E-2},"F10c"]
["   Contaminated Water"]
[null,"Small Mammal",{"$f":"F06a!Dose_C","v":1.8299625753275385E-7},{"$f":"F06a!Dose_L","v":1.8299625753275384E-8},{"$f":"F06a!Dose_U","v":9.1498128766376923E-7},"F06a"]
[null,"Canid",{"$f":"F06b!Dose_C","v":1.0535331541194712E-7},{"$f":"F06b!Dose_L","v":1.0535331541194712E-8},{"$f":"F06b!Dose_U","v":5.2676657705973549E-7},"F06b"]
[null,"Large Mammal",{"$f":"F06c!Dose_C","v":8.0916185921183446E-8},{"$f":"F06c!Dose_L","v":8.091618592118345E-9},{"$f":"F06c!Dose_U","v":4.0458092960591721E-7},"F06c"]
[null,"Small Bird (Passerine)",{"$f":"F06d!Dose_C","v":3.3710253984097033E-7},{"$f":"F06d!Dose_L","v":3.3710253984097033E-8},{"$f":"F06d!Dose_U","v":1.6855126992048515E-6},"F06d"]
[null,"Large Bird (Goose)",{"$f":"F06e!Dose_C","v":4.6674774402654079E-8},{"$f":"F06e!Dose_L","v":4.6674774402654082E-9},{"$f":"F06e!Dose_U","v":2.3337387201327038E-7},"F06e"]
["   Consumption of contaminated Fish"]
[null,"Fish-eating bird",{"$f":"F04b!Dose_C","v":1.4883617753068041E-7},{"$f":"F04b!Dose_L","v":1.4883617753068048E-9},{"$f":"F04b!Dose_U","v":4.2170250300359455E-6},"F04b"]
["Chronic/Longer Term Exposures"]
["   Contaminated Water"]
[null,"Small Mammal",{"$f":"F07a!Dose_C","v":4.5749064383188461E-9},{"$f":"F07a!Dose_L","v":1.8299625753275383E-10},{"$f":"F07a!Dose_U","v":2.7449438629913072E-8},"F07a"]
[null,"Canid",{"$f":"F07c!Dose_C","v":2.0229046480295862E-9},{"$f":"F07c!Dose_L","v":8.0916185921183438E-11},{"$f":"F07c!Dose_U","v":1.2137427888177513E-8},"F07c"]
[null,"Large Mammal",{"$f":"F07d!Dose_C","v":8.4275634960242582E-9},{"$f":"F07d!Dose_L","v":3.3710253984097029E-10},{"$f":"F07d!Dose_U","v":5.0565380976145536E-8},"F07d"]
[null,"Small Bird (Passerine)",{"$f":"F07b!Dose_C","v":2.6338328852986781E-9},{"$f":"F07b!Dose_L","v":1.0535331541194711E-10},{"$f":"F07b!Dose_U","v":1.5802997311792065E-8},"F07b"]
[null,"Large Bird (Goose)",{"$f":"F07e!Dose_C","v":1.1668693600663521E-9},{"$f":"F07e!Dose_L","v":4.6674774402654076E-11},{"$f":"F07e!Dose_U","v":7.0012161603981098E-9},"F07e"]
["   Consumption of contaminated Fish"]
[null,"Fish-eating bird",{"$f":"F04c!Dose_C","v":3.7209044382670109E-9},{"$f":"F04c!Dose_L","v":1.4883617753068046E-11},{"$f":"F04c!Dose_U","v":1.2651075090107834E-7},"F04c"]

{"sheet":"G02","index":88,"n_rows":66,"n_cols":7,"rows_kept":66,"cut":false,"hidden":false,"merged":[[0,0,0,5],[1,2,1,4],[2,0,3,0],[2,1,3,1],[2,2,2,4],[2,5,3,5]]}
["Summary of Rodenticide Hazard Quotients (Toxicity) for the Terrestrial Animals"]
[null,{"$f":"'A01'!ApRt_C","v":6.2500000000000001E-4}," lb a.i./acre",null,null,"G01V5Rod"]
["Scenario","Receptor","Hazard Quotients",null,null,"Toxicity Value"]
[null,null,"Central","Lower","Upper"]
["Accidental Acute Exposures"]
["Accidental Spill (Primary Consumption)"]
["Bait","Mouse",{"$f":"F01a!$C$26/$F$7","v":89.296230520510704},{"$f":"F01a!$C$27/$F$7","v":8.9296230520510704},{"$f":"F01a!$C$28/$F$7","v":297.65410173503562},{"$f":"'B02'!$E$6","v":0.03},"NOAEL"]
["Bait","Squirrel",{"$f":"F01b!$C$26/$F$8","v":38.619588391358164},{"$f":"F01b!$C$27/$F$8","v":3.8619588391358159},{"$f":"F01b!$C$28/$F$8","v":128.7319613045272},{"$f":"'B02'!$E$6","v":0.03},"NOAEL"]
["Bait","Small Passeriine",{"$f":"F01c!$C$26/$F$9","v":6.3484628335119346},{"$f":"F01c!$C$27/$F$9","v":0.63484628335119342},{"$f":"F01c!$C$28/$F$9","v":21.161542778373118},{"$f":"'B02'!$E$8","v":0.6},"NOAEL"]
["Bait","Mallard",{"$f":"F01d!$C$26/$F$10","v":1.3474309051615589},{"$f":"F01d!$C$27/$F$10","v":0.13474309051615588},{"$f":"F01d!$C$28/$F$10","v":4.4914363505385309},{"$f":"'B02'!$E$8","v":0.6},"NOAEL"]
["Bait","Pigeon",{"$f":"F01e!$C$26/$F$11","v":1.7499819177514064},{"$f":"F01e!$C$27/$F$11","v":0.17499819177514064},{"$f":"F01e!$C$28/$F$11","v":5.8332730591713551},{"$f":"'B02'!$E$8","v":0.6},"NOAEL"]
["Bait","Quail",{"$f":"F01f!$C$26/$F$12","v":0.13410926313752025},{"$f":"F01f!$C$27/$F$12","v":1.3410926313752024E-2},{"$f":"F01f!$C$28/$F$12","v":1.3410926313752025},{"$f":"'B02'!$E$8","v":0.6},"NOAEL"]
["Bait","Deer",{"$f":"F01g!$C$26/$F$13","v":0.91483504614504529},{"$f":"F01g!$C$27/$F$13","v":9.1483504614504524E-2},{"$f":"F01g!$C$28/$F$13","v":9.1483504614504554},{"$f":"'B02'!$E$6","v":0.03},"NOAEL"]
["Misapplication (Primary Consumption)"]
["Bait","Mouse",{"$f":"F02a!$C$26/$F$15","v":8.9296230520510704},{"$f":"F02a!$C$27/$F$15","v":0.89296230520510722},{"$f":"F02a!$C$28/$F$15","v":29.765410173503575},{"$f":"'B02'!$E$6","v":0.03},"NOAEL"]
["Bait","Squirrel",{"$f":"F02b!$C$26/$F$16","v":3.8619588391358159},{"$f":"F02b!$C$27/$F$16","v":0.38619588391358162},{"$f":"F02b!$C$28/$F$16","v":12.873196130452721},{"$f":"'B02'!$E$6","v":0.03},"NOAEL"]
["Bait","Skunk",{"$f":"F02c!$C$26/$F$17","v":1.31471956615462},{"$f":"F02c!$C$27/$F$17","v":0.13147195661546202},{"$f":"F02c!$C$28/$F$17","v":4.3823985538487351},{"$f":"'B02'!$E$6","v":0.03},"NOAEL"]
["Bait","Small Passeriine",{"$f":"F02d!$C$26/$F$18","v":0.63484628335119342},{"$f":"F02d!$C$27/$F$18","v":6.348462833511935E-2},{"$f":"F02d!$C$28/$F$18","v":2.1161542778373117},{"$f":"'B02'!$E$8","v":0.6},"NOAEL"]
["Bait","Mallard",{"$f":"F02e!$C$26/$F$19","v":0.13474309051615588},{"$f":"F02e!$C$27/$F$19","v":1.3474309051615594E-2},{"$f":"F02e!$C$28/$F$19","v":0.44914363505385313},{"$f":"'B02'!$E$8","v":0.6},"NOAEL"]
["Bait","Pigeon",{"$f":"F02f!$C$26/$F$20","v":0.17499819177514064},{"$f":"F02f!$C$27/$F$20","v":1.7499819177514066E-2},{"$f":"F02f!$C$28/$F$20","v":0.58332730591713555},{"$f":"'B02'!$E$8","v":0.6},"NOAEL"]
["Bait","Quail",{"$f":"F02g!$C$26/$F$21","v":0.20116389470628041},{"$f":"F02g!$C$27/$F$21","v":2.0116389470628038E-2},{"$f":"F02g!$C$28/$F$21","v":0.67054631568760126},{"$f":"'B02'!$E$8","v":0.6},"NOAEL"]
["   Contaminated Water"]
["Spill","Small Mammal",{"$f":"F03a!$C$30/$F$23","v":3.3202840966742846E-3},{"$f":"F03a!$C$31/$F$23","v":2.2135227311161905E-3},{"$f":"F03a!$C$32/$F$23","v":4.427045462232381E-3},{"$f":"'B02'!$E$6","v":0.03},"NOAEL"]
["Spill","Canid",{"$f":"F03b!$C$30/$F$24","v":1.9115305548343682E-3},{"$f":"F03b!$C$31/$F$24","v":1.2743537032229122E-3},{"$f":"F03b!$C$32/$F$24","v":2.5487074064458244E-3},{"$f":"'B02'!$E$6","v":0.03},"NOAEL"]
["Spill","Large Mammal",{"$f":"F03c!$C$30/$F$25","v":1.4681432773539522E-3},{"$f":"F03c!$C$31/$F$25","v":9.7876218490263486E-4},{"$f":"F03c!$C$32/$F$25","v":1.9575243698052697E-3},{"$f":"'B02'!$E$6","v":0.03},"NOAEL"]
["Spill","Small Bird (Passerine)",{"$f":"F03d!$C$30/$F$26","v":2.4329050934725568E-4},{"$f":"F03d!$C$31/$F$26","v":1.6219367289817049E-4},{"$f":"F03d!$C$32/$F$26","v":3.2438734579634098E-4},{"$f":"'B02'!$E$8","v":0.6},"NOAEL"]
["Spill","Large Bird (Goose)",{"$f":"F03e!$C$30/$F$27","v":4.2343355338087775E-5},{"$f":"F03e!$C$31/$F$27","v":2.8228903558725187E-5},{"$f":"F03e!$C$32/$F$27","v":5.6457807117450374E-5},{"$f":"'B02'!$E$8","v":0.6},"NOAEL"]
["   Consumption of contaminated Fish"]
["Spill","Fish-eating bird",{"$f":"F04a!$C$47/$F$29","v":1.3502418025583326E-4},{"$f":"F04a!$C$48/$F$29","v":9.001612017055552E-6},{"$f":"F04a!$C$49/$F$29","v":1.0201826952662958E-3},{"$f":"'B02'!$E$8","v":0.6},"NOAEL"]
["Non-Accidental Acute Exposures"]
["Primary Consumption"]
["Bait","Mouse",{"$f":"F05a!$C$26/$F$32","v":0.5953082034700713},{"$f":"F05a!$C$27/$F$32","v":5.9530820347007136E-2},{"$f":"F05a!$C$28/$F$32","v":5.9530820347007127},{"$f":"'B02'!$E$6","v":0.03},"NOAEL"]
["Bait","Squirrel",{"$f":"F05b!$C$26/$F$33","v":0.25746392260905443},{"$f":"F05b!$C$27/$F$33","v":2.574639226090544E-2},{"$f":"F05b!$C$28/$F$33","v":2.5746392260905444},{"$f":"'B02'!$E$6","v":0.03},"NOAEL"]
["Bait","Skunk",{"$f":"F05c!$C$26/$F$34","v":8.7647971076974696E-2},{"$f":"F05c!$C$27/$F$34","v":8.7647971076974685E-3},{"$f":"F05c!$C$28/$F$34","v":0.87647971076974684},{"$f":"'B02'!$E$6","v":0.03},"NOAEL"]
["Bait","Small Passeriine",{"$f":"F05d!$C$26/$F$35","v":4.2323085556746233E-4},{"$f":"F05d!$C$27/$F$35","v":4.2323085556746239E-5},{"$f":"F05d!$C$28/$F$35","v":4.2323085556746232E-3},{"$f":"'B02'!$E$8","v":0.6},"NOAEL"]
["Bait","Mallard",{"$f":"F05e!$C$26/$F$36","v":8.9828727010770603E-5},{"$f":"F05e!$C$27/$F$36","v":8.9828727010770613E-6},{"$f":"F05e!$C$28/$F$36","v":8.9828727010770617E-4},{"$f":"'B02'!$E$8","v":0.6},"NOAEL"]
["Bait","Pigeon",{"$f":"F05f!$C$26/$F$37","v":1.1666546118342712E-4},{"$f":"F05f!$C$27/$F$37","v":1.166654611834271E-5},{"$f":"F05f!$C$28/$F$37","v":1.1666546118342712E-3},{"$f":"'B02'!$E$8","v":0.6},"NOAEL"]
["Bait","Quail",{"$f":"F05g!$C$26/$F$38","v":1.3410926313752028E-4},{"$f":"F05g!$C$27/$F$38","v":1.3410926313752022E-5},{"$f":"F05g!$C$28/$F$38","v":1.3410926313752027E-3},{"$f":"'B02'!$E$8","v":0.6},"NOAEL"]
["Bait","Grizzly bear",{"$f":"'F08'!$C$22/$F$39","v":1.25},{"$f":"'F08'!$C$23/$F$39","v":4.1666666666666671E-2},{"$f":"'F08'!$C$24/$F$39","v":41.666666666666671},{"$f":"'B02'!$E$6","v":0.03},"NOAEL"]
["Secondary Consumption"]
["Prairie Dog","Coyete",{"$f":"F09a!$C$30/$F$41","v":1.3846153846153846},{"$f":"F09a!$C$31/$F$41","v":3.4615384615384624E-2},{"$f":"F09a!$C$32/$F$41","v":10.851282051282052},{"$f":"'B02'!$E$6","v":0.03},"NOAEL"]
["Prairie Dog","Badger",{"$f":"F09b!$C$30/$F$42","v":2.5714285714285716},{"$f":"F09b!$C$31/$F$42","v":6.4285714285714293E-2},{"$f":"F09b!$C$32/$F$42","v":20.152380952380955},{"$f":"'B02'!$E$6","v":0.03},"NOAEL"]
["Prairie Dog","Mink",{"$f":"F09c!$C$30/$F$43","v":1.8},{"$f":"F09c!$C$31/$F$43","v":0.45000000000000007},{"$f":"F09c!$C$32/$F$43","v":14.106666666666667},{"$f":"'B02'!$E$6","v":0.03},"NOAEL"]
["Prairie Dog","Owl",{"$f":"F09d!$C$30/$F$44","v":0.06},{"$f":"F09d!$C$31/$F$44","v":1.5000000000000003E-2},{"$f":"F09d!$C$32/$F$44","v":0.47022222222222226},{"$f":"'B02'!$E$8","v":0.6},"NOAEL"]
["Prairie Dog","Snake","Toxicity data not available.",null,null,"N/A"]
["Tertiary Consumption"]
["Insects","Small mammal",{"$f":"F10a!$C$29/$F$47","v":0.35718492208204283},{"$f":"F10a!$C$30/$F$47","v":4.1671574242905005E-2},{"$f":"F10a!$C$31/$F$47","v":3.571849220820428},{"$f":"'B02'!$E$6","v":0.03},"NOAEL"]
["Insects","Small bird (Passerine)",{"$f":"F10b!$C$29/$F$48","v":2.8176242218488693E-2},{"$f":"F10b!$C$30/$F$48","v":3.2872282588236813E-3},{"$f":"F10b!$C$31/$F$48","v":0.28176242218488695},{"$f":"'B02'!$E$8","v":0.6},"NOAEL"]
["Insects","Bullfrog","Toxicity data not available.",null,null,"N/A"]
["   Contaminated Water"]
[null,"Small Mammal",{"$f":"F06a!$C$18/$F$51","v":6.0998752510917954E-6},{"$f":"F06a!$C$19/$F$51","v":6.0998752510917952E-7},{"$f":"F06a!$C$20/$F$51","v":3.0499376255458976E-5},{"$f":"'B02'!$E$6","v":0.03},"NOAEL"]
[null,"Canid",{"$f":"F06b!$C$18/$F$52","v":3.5117771803982374E-6},{"$f":"F06b!$C$19/$F$52","v":3.5117771803982376E-7},{"$f":"F06b!$C$20/$F$52","v":1.7558885901991184E-5},{"$f":"'B02'!$E$6","v":0.03},"NOAEL"]
[null,"Large Mammal",{"$f":"F06c!$C$18/$F$53","v":2.6972061973727814E-6},{"$f":"F06c!$C$19/$F$53","v":2.6972061973727815E-7},{"$f":"F06c!$C$20/$F$53","v":1.3486030986863907E-5},{"$f":"'B02'!$E$6","v":0.03},"NOAEL"]
[null,"Small Bird (Passerine)",{"$f":"F06d!$C$18/$F$54","v":5.6183756640161725E-7},{"$f":"F06d!$C$19/$F$54","v":5.6183756640161724E-8},{"$f":"F06d!$C$20/$F$54","v":2.8091878320080858E-6},{"$f":"'B02'!$E$8","v":0.6},"NOAEL"]
[null,"Large Bird (Goose)",{"$f":"F06e!$C$18/$F$55","v":7.779129067109014E-8},{"$f":"F06e!$C$19/$F$55","v":7.7791290671090137E-9},{"$f":"F06e!$C$20/$F$55","v":3.8895645335545066E-7},{"$f":"'B02'!$E$8","v":0.6},"NOAEL"]
["   Consumption of contaminated Fish"]
[null,"Fish-eating bird",{"$f":"F04b!$C$47/$F$57","v":2.4806029588446738E-7},{"$f":"F04b!$C$48/$F$57","v":2.4806029588446746E-9},{"$f":"F04b!$C$49/$F$57","v":7.0283750500599092E-6},{"$f":"'B02'!$E$8","v":0.6},"NOAEL"]
["Chronic/Longer Term Exposures"]
["   Contaminated Water"]
[null,"Small Mammal",{"$f":"F07a!$C$18/$F$60","v":9.1498128766376923E-7},{"$f":"F07a!$C$19/$F$60","v":3.6599251506550769E-8},{"$f":"F07a!$C$20/$F$60","v":5.4898877259826141E-6},{"$f":"'B02'!$E$7","v":5.0000000000000001E-3},"NOAEL"]
[null,"Canid",{"$f":"F07c!$C$18/$F$61","v":4.0458092960591726E-7},{"$f":"F07c!$C$19/$F$61","v":1.6183237184236687E-8},{"$f":"F07c!$C$20/$F$61","v":2.4274855776355027E-6},{"$f":"'B02'!$E$7","v":5.0000000000000001E-3},"NOAEL"]
[null,"Large Mammal",{"$f":"F07d!$C$18/$F$62","v":1.2039376422891796E-7},{"$f":"F07d!$C$19/$F$62","v":4.8157505691567178E-9},{"$f":"F07d!$C$20/$F$62","v":7.2236258537350762E-7},{"$f":"'B02'!$E$9","v":7.0000000000000007E-2},"NOAEL"]
[null,"Small Bird (Passerine)",{"$f":"F07b!$C$18/$F$63","v":5.2676657705973559E-7},{"$f":"F07b!$C$19/$F$63","v":2.1070663082389421E-8},{"$f":"F07b!$C$20/$F$63","v":3.1605994623584129E-6},{"$f":"'B02'!$E$7","v":5.0000000000000001E-3},"NOAEL"]
[null,"Large Bird (Goose)",{"$f":"F07e!$C$18/$F$64","v":1.666956228666217E-8},{"$f":"F07e!$C$19/$F$64","v":6.6678249146648677E-10},{"$f":"F07e!$C$20/$F$64","v":1.0001737371997299E-7},{"$f":"'B02'!$E$9","v":7.0000000000000007E-2},"NOAEL"]
["   Consumption of contaminated Fish"]
[null,"Fish-eating bird",{"$f":"F04c!$C$47/$F$66","v":5.3155777689528721E-8},{"$f":"F04c!$C$48/$F$66","v":2.1262311075811492E-10},{"$f":"F04c!$C$49/$F$66","v":1.8072964414439761E-6},{"$f":"'B02'!$E$9","v":7.0000000000000007E-2},"NOAEL"]

{"sheet":"G03","index":89,"n_rows":42,"n_cols":14,"rows_kept":42,"cut":false,"hidden":false,"merged":[[7,6,8,6],[0,0,0,5],[2,2,2,4],[7,0,8,0],[7,1,8,1],[7,2,7,4],[7,5,8,5]]}
["Worksheet G03: Summary of Hazard Quotients for Aquatic Species"]
["Application Rate:",6.2500000000000001E-4," lb a.i./acre",null,null,"AqToxSumV6"]
["Exposures",null,"Concentrations (mg/L)"]
[null,"Scenario","Central","Lower","Upper","Worksheet"]
[null,"Accidental Spill",{"$f":"B04b!Acute_C","v":6.8039999999999995E-4},{"$f":"B04b!Acute_L","v":4.5360000000000002E-4},{"$f":"B04b!Acute_U","v":9.0720000000000004E-4},"B04b"]
[null,"Peak EEC",{"$f":"B04a!Acute_C","v":1.2500000000000001E-6},{"$f":"B04a!Acute_L","v":1.2500000000000002E-7},{"$f":"B04a!Acute_U","v":6.2500000000000003E-6},"B04a"]
[null,"Chronic",{"$f":"B04a!Chronic_C","v":3.1250000000000005E-8},{"$f":"B04a!Chronic_L","v":1.25E-9},{"$f":"B04a!Chronic_U","v":1.8749999999999998E-7},"B04a"]
["Receptor","Type","Hazard Quotients",null,null,"Toxicity Value","Toxicity Endpoint"]
[null,null,"Central","Lower","Upper"]
["Accidental Acute Exposures",null,null,null,null,null,null,null,null,null,"Lower","Central","Upper","Check"]
["Fish","Sensitive",{"$f":"C$5/$F11","v":5.6699999999999997E-3},{"$f":"D$5/$F11","v":3.7800000000000004E-3},{"$f":"E$5/$F11","v":7.5600000000000007E-3},{"$f":"'B02'!$E$11","v":0.12},"NOAEC",null,null,"Fish Sn",{"$f":"IF(D11>0,  D11, \"\")","v":3.7800000000000004E-3},{"$f":"IF(ISERROR(C11-K11), \"\", C11-K11)","v":1.8899999999999993E-3},{"$f":"IF(ISERROR(E11-C11), \"\", E11-C11)","v":1.8900000000000011E-3},{"$f":"E11-SUM(K11:M11)","v":0}]
[null,"Tolerant",{"$f":"C$5/$F12","v":1.89E-3},1.2600000000000001E-3,2.5200000000000001E-3,{"$f":"'B02'!$E$12","v":0.36},"NOAEC",null,null,"Fish Tl",1.2600000000000001E-3,6.2999999999999992E-4,6.3000000000000013E-4,{"$f":"E12-SUM(K12:M12)","v":0}]
["Amphibian","Sensitive","No toxicity data.",null,null,"N/A",null,null,null,"Amph Sn","","","",{"$f":"E13-SUM(K13:M13)","v":0}]
[null,"Tolerant","No toxicity data.",null,null,"N/A",null,null,null,"Amph To","","","",0]
["Invertebrate","Sensitive","No toxicity data.",null,null,"N/A",null,null,null,"Invt Sn","","","",0]
[null,"Tolerant",2.4299999999999994E-3,1.6199999999999999E-3,3.2399999999999998E-3,{"$f":"'B02'!$E$10","v":0.28000000000000003},"NOAEC",null,null,"Invt Tl",1.6199999999999999E-3,8.0999999999999952E-4,8.1000000000000039E-4,0]
["Macrophyte","Sensitive","No toxicity data.",null,null,"N/A",null,null,null,"Plant Sn","","","",0]
[null,"Tolerant","No toxicity data.",null,null,"N/A",null,null,null,"Plant Tl","","","",0]
["Algae","Sensitive","No toxicity data.",null,null,"N/A",null,null,null,"Algae Sn","","","",0]
[null,"Tolerant","No toxicity data.",null,null,"N/A",null,null,null,"Algae Tl","","","",0]
["Non-Accidental Acute Exposures"]
["Fish","Sensitive",{"$f":"C$6/$F22","v":1.0416666666666668E-5},{"$f":"D$6/$F22","v":1.0416666666666669E-6},5.2083333333333337E-5,{"$f":"'B02'!$E$11","v":0.12},"NOAEC",null,null,"Fish Sn",{"$f":"IF(D22>0,  D22, \"\")","v":1.0416666666666669E-6},{"$f":"IF(ISERROR(C22-K22), \"\", C22-K22)","v":9.3750000000000009E-6},{"$f":"IF(ISERROR(E22-C22), \"\", E22-C22)","v":4.1666666666666672E-5},0]
[null,"Tolerant",{"$f":"C$6/$F23","v":3.4722222222222228E-6},3.4722222222222229E-7,1.7361111111111111E-5,{"$f":"'B02'!$E$12","v":0.36},"NOAEC",null,null,"Fish Tl",3.4722222222222229E-7,3.1250000000000006E-6,1.3888888888888888E-5,0]
["Amphibian","Sensitive","No toxicity data.",null,null,"N/A",null,null,null,"Amph Sn","","","",0]
[null,"Tolerant","No toxicity data.",null,null,"N/A",null,null,null,"Amph To","","","",0]
["Invertebrate","Sensitive","No toxicity data.",null,null,"N/A",null,null,null,"Invt Sn","","","",0]
[null,"Tolerant",4.4642857142857146E-6,4.4642857142857147E-7,2.2321428571428571E-5,{"$f":"'B02'!$E$10","v":0.28000000000000003},"NOAEC",null,null,"Invt Tl",4.4642857142857147E-7,4.017857142857143E-6,1.7857142857142858E-5,0]
["Macrophyte","Sensitive","No toxicity data.",null,null,"N/A",null,null,null,"Plant Sn","","","",0]
[null,"Tolerant","No toxicity data.",null,null,"N/A",null,null,null,"Plant Tl","","","",0]
["Algae","Sensitive","No toxicity data.",null,null,"N/A",null,null,null,"Algae Sn","","","",0]
[null,"Tolerant","No toxicity data.",null,null,"N/A",null,null,null,"Algae Tl","","","",0]
["Chronic/Longer Term Exposures"]
["Fish","Sensitive","No toxicity data.",null,null,"N/A",null,null,null,"Fish Sn",{"$f":"IF(D33>0,  D33, \"\")","v":""},{"$f":"IF(ISERROR(C33-K33), \"\", C33-K33)","v":""},{"$f":"IF(ISERROR(E33-C33), \"\", E33-C33)","v":""},0]
[null,"Tolerant","No toxicity data.",null,null,"N/A",null,null,null,"Fish Tl","","","",0]
["Amphibian","Sensitive","No toxicity data.",null,null,"N/A",null,null,null,"Amph Sn","","","",0]
[null,"Tolerant","No toxicity data.",null,null,"N/A",null,null,null,"Amph To","","","",0]
["Invertebrate","Sensitive","No toxicity data.",null,null,"N/A",null,null,null,"Invt Sn","","","",0]
[null,"Tolerant","No toxicity data.",null,null,"N/A",null,null,null,"Invt Tl","","","",0]
["Macrophyte","Sensitive","No toxicity data.",null,null,"N/A",null,null,null,"Plant Sn","","","",0]
[null,"Tolerant","No toxicity data.",null,null,"N/A",null,null,null,"Plant Tl","","","",0]
["Algae","Sensitive","No toxicity data.",null,null,"N/A",null,null,null,"Algae Sn","","","",0]
[null,"Tolerant","No toxicity data.",null,null,"N/A",null,null,null,"Algae Tl",{"$f":"IF(D42>0,  D42, \"\")","v":""},{"$f":"IF(ISERROR(C42-K42), \"\", C42-K42)","v":""},{"$f":"IF(ISERROR(E42-C42), \"\", E42-C42)","v":""},0]

{"sheet":"References","index":90,"n_rows":43,"n_cols":2,"rows_kept":43,"cut":false,"hidden":false,"merged":[[0,0,0,1]]}
["References cited in workbook"]
["Citation","Full Reference"]
["Ali et al. 2005","Ali M; Iqbat F; Salam A; Iram S; Athar M.  2005.  Comparative study of body composition of different fish species from brackish water pond.  Int J Environ Sci Tech.  2(3): 229-232."]
["Boxenbaum and D’Souza 1990","Boxenbaum J; D'Souza R.  1990.  Interspecies pharmacokinetic scaling, biological design and neoteny.  Adv. Drug Res.  19: 139-195."]
["Budavari  1989","Budavari S. (Ed).  1989.  The Merck Index: An Encyclopedia of Chemicals, Drugs,and Biologicals, 11th ed.  Merck & Co., Inc., Rahway, New Jersey."]
["Burnmaster 1998","Burnmaster DE.  1998.  Lognormal distribution for total water intake and tap water intake by pregnant and lactating women in the United States.  Risk Analysis.  18(5): 215-219"]
["Chapman 1998","Chapman P.  1998.  The Insects: Structure and Function.  4th Edition.  Cambridge University Press, Cambridge, UK.  788 pp."]
["Default","These are plausible default values that are typically used in SERA risk assessments."]
["Dunning 1993","Dunning JB.  1993.  CRC Handbook of Avian Body Masses.  CRC Press, Boca Raton FL, 371 pp."]
["Durkin et al. 1995","Durkin PR; Rubin L; Withey J; Meylan W.  1995.  Methods of assessing dermal absorption with emphasis on uptake from contaminated vegetation.  Toxicol. Indust. Health.  11(1): 63-79."]
["Fletcher et al. 1994","Fletcher JS; Nellessen JE; Pfleeger TG. 1994. Literature review and evaluation of the EPA food-chain (Kenega) nomogram, an instrument for estimating pesticide residues on plants. Environ.  Toxicol. Chem. 13(9):1383-1391."]
["Harris and Solomon 1992","Harris SA; Solomon KR.  1992.  Human exposure to 2,4-D following controlled activities on recently sprayed turf.  J. Environ. Sci. Health.  B27(1): 9-22."]
["Hoerger and Kenaga 1972","Hoerger F; Kenaga EE.  1972.  Pesticide residues on plants: Correlation of representative data as a basis for estimation of their magnitude in the environment.  In: Environmental Quality and Safety, Volume I:  Global Aspects of Toxicology and Technology as Applied to the Environment.  F. Coulston and F. Kerte (eds.).  Academic Press, New York, NY.  pp. 9-28."]
["Humphery and Dykes 2008","Humphrey JAC; Dykes ES.  2008.  Thermal energy conduction in a honey bee comb due to cell-heating bees.  J Theoretical Biology.  250 (1): 194-208."]
["ICRP 1975","ICRP (International Commission on Radiologic Protection).  1975. Report of the Task Group on Reference Man.  Recommendations of the International Commission on Radiological Protection (ICRP) Publ. No. 23.   Pergamon Press, New York, NY."]
["Knisel et al. 1992","Knisel WG; Davis FM; Leonard RA.  1992.  GLEAMS Version 2.0 User Manual. U.S. Department of Agriculture, Agricultural Research Service, Southeast Watershed Research Laboratory, Tifton, GA.  202pp"]
["Manugistics 1995","Manugistics.  1995.  Statgraphics Plus for Windows. Version 3.  Available from Manugistics, Inc.  Rockville, Maryland."]
["Mason and Johnson 1987","Mason RW; Johnson BL.  1987.  Ergonomic factors in chemical hazard control.  In: Handbook of Human Factors.  Salveny, G; ed.  John Wiley and Sons, New York, NY.  pp. 772-741."]
["Mendenhall and Scheaffer 1973","Mendenhall W; Scheaffer RF.  1973.  Mathematical Statistics with Applications.  Duxbury Press, North Scituate, Massachusetts. 461 pp. plus appendices."]
["N/A","Not applicable"]
["Nagy 2005","Nagy KA.  2005.  Field metabolic rate and body size.  Journal of Experimental Biology.  208: 1621-1625."]
["Ratnapalan et al. 2003","Ratnapalan S; Potylitsina Y; Tan LH; Roifman M; Koren G.  2003.  Measuring a toddler's mouthful: toxicologic considerations.  J Pediatr.  142(6):729-30."]
["Reichle et al. 1973","Reichle DE, Goldstein RA; Van Hook RI; Dodson DJ.  1973.  Analysis of Insect Consumption in a Forest Canopy.  Ecology.  54: 1076-1084."]
["Reid 2006"," Reid FA. 2006.  A Field Guide to Mammals of North America North of Mexico.  Fourth Edition.  The Peterson Field Guide Series.  Houghton Mifflin Company, Boston MA.  570 pp."]
["Ruffle et al. 1994","Ruffle B; Burmaster DE; Anderson PD; Gordon HD.  1994.  Lognormal distributions for fish consumption by the general U.S. population.  Risk Analy.  14(4): 395-404."]
["SERA 1997","SERA (Syracuse Environmental Research Associates, Inc.).  1997. Reevaluation of Methods for Assessing Worker Exposure to Pesticides, SERA TR 96-21-08-01, draft dated December 31, 1997.  Prepared under USDA/FS Contract 53-3187-5-12.  Syracuse Environmental Research Associates, Inc., Fayetteville, NY."]
["SERA 2005","SERA (Syracuse Environmental Research Associates, Inc.).  2005. Hexazinone - Human Health and Ecological Risk Assessment– Final Report, SERA SERA TR 05-43-20-03d, Final Report dated October 25, 2005.  Available at: http://www.fs.fed.us/foresthealth/pesticide/risk.shtml."]
["SERA 2007","SERA (Syracuse Environmental Research Associates, Inc.).  2007. Preparation of Environmental Documentation and Risk Assessments, SERA MD 2007-01a, draft dated July 2001.  Syracuse Environmental Research Associates, Inc., Fayetteville, NY.  Available at www.sera-inc.com."]
["SERA 2010","SERA (Syracuse Environmental Research Associates, Inc.).  2010. Strychnine Human Health and Ecological Risk Assessment, SERA TR-052-17-02a, draft dated February 22, 2010.  Syracuse Environmental Research Associates, Inc., Manlius, NY.  Available at www.sera-inc.com."]
["Sibley 2000","Sibley DA.  2000.  The Sibley Guide to Birds.  National Audubon Society, Chanticleer Press Edition.  Alfred A. Knopf Inc., New York.  545 pp."]
["Teske et al. 2001","Teske ME; Bird SL; Esterly DM; Ray SL; Perry SG.  2001.  A User’s Guide for AgDRIFT 2.0: A Tiered Approach for the Assesment of Spray Drift.  Continuum Dynamics, Inc. Public Use Version.  C.D.I. Report No. 01-01.  Available, with executable model at: http://www.agdrift.com"]
["U.S. EPA/OPP 1999","U.S. EPA/OPP ((U.S. Environmental Protection Agency/Office of Pesticide Programs).  1999.  ECOFRAM:  Terrestrial ECOFRAM Terrestrial Draft Report.  Ecological Committee on FIFRA Risk Assessment Methods(ECOFRAM).  Report dated May 10, 1999.  Available at:  http://www.epa.gov/oppefed1/ ecorisk/terrreport.pdf."]
["U.S. EPA/ORD 1985","U.S. EPA/ORD (U.S. Environmental Protection Agency/Office of Research and Development).  1985. Development of Statistical Distributions or Ranges of Standard Factors Used in Exposure Assessments,  Report prepared by GCA Corp., Chapel Hill.  Available from NTIS: PB85-242667."]
["U.S. EPA/ORD 1992","U.S. EPA/ORD (U.S. Environmental Protection Agency/Office of Research and Development).  1992.  Dermal Exposure Assessment: Principles and Applications.  EPA/600/8-91/011B.  Interim Report.  Exposure Assessment Group, Office of Health and Environmental Assessment, Washington, DC."]
["U.S. EPA/ORD 1993","U.S. EPA/ORD (U.S. Environmental Protection Agency/Office of Research and Development).  1993.  Wildlife Exposure Factors Handbook.  Volumes 1 and 2.  EPA/600/R-93/187a,b.  Pagination not continuous.  Available NTIS: PB94-174778 and PB94-174779."]
["U.S. EPA/ORD 1996","U.S. EPA (U.S. Environmental Protection Agency/Office of Research and Development).  1996.  Exposure Factors Handbook. National Center for Environmental Assessment, U.S. EPA, Washington, DC.  EPA/600/P-95/002Ba-c.  Avail. NTIS: PB97-117683, 97-117691, PB97-117709."]
["U.S. EPA/ORD 1997","U.S. EPA (U.S. Environmental Protection Agency/Office of Research and Development).  1996.  Exposure Factors Handbook. National Center for Environmental Assessment, U.S. EPA, Washington, DC.  EPA/600/P-95/002Fa.  Available at: http://rais.ornl.gov/homepage/EFH_Final_1997_EPA600P95002Fa.pdf"]
["USDA 1989a","USDA (U.S. Department of Agriculture/Forest Service).  1989a.  Final Environmental Impact Statement: Vegetation Management in the Coastal Plain/Piedmont, Management Bulletin R8-MB-23, dated January, 1989.  1213 pp."]
["USDA 1989b","USDA (U.S. Department of Agriculture/Forest Service).  1989b.  Draft Environmental Impact Statement: Vegetation Management in the Ozark/Ouachita Mountains, Management Bulletin R8-MB-23, dated June, 1989.  499 pp."]
["USDA 1989c","USDA (U.S. Department of Agriculture/Forest Service).  1989c.  Final Environmental Impact Statement: Vegetation Management in the Appalachian Mountains, Management Bulletin R8-MB-38, dated July, 1989. 1104 pp."]
["Waldbauer 1968","Waldbauer GP.  1968.  The consumption and utilization of food by insects.  Advan Insect Physiol.  5: 229-288"]
["Winston 1987","Winston ML.  1987.  The Biology of the Honey Bee.  Harvard University Press, Cambridge, MA.  ISBN 0-674-07409-2  280 pp."]
["Wolfram Research 1997","Wolfram Research.  1997. Mathematica Version 3.0.1.  Available from Wolfram Research, Inc.  Champaign, IL."]